Dept/Family,Entity,Expense Type,Expense Area,Supplier,Payment Date, Amount ,SME,UNSPCC Code,UNSPCC Description
"Ministry of Housing, Communities and Local Government",Homes England,Nat Brownfield Strat National,Programmes,BARTON GRANGE LANDSCAPES,09/11/2018,400,L,72101500,Building maintenance and repair services
"Ministry of Housing, Communities and Local Government",Homes England,Nat Brownfield Strat National,Programmes,BARTON GRANGE LANDSCAPES,09/11/2018,450,L,72101500,Building maintenance and repair services
"Ministry of Housing, Communities and Local Government",Homes England,Nat Brownfield Strat National,Programmes,BARTON GRANGE LANDSCAPES,09/11/2018,650,L,72101500,Building maintenance and repair services
"Ministry of Housing, Communities and Local Government",Homes England,Nat Brownfield Strat National,Programmes,BARTON GRANGE LANDSCAPES,09/11/2018,"1,000.00",L,72101500,Building maintenance and repair services
"Ministry of Housing, Communities and Local Government",Homes England,Economic Assets Nw Prog,North West,BARTON GRANGE LANDSCAPES,26/11/2018,"1,403.00",L,72101500,Building maintenance and repair services
"Ministry of Housing, Communities and Local Government",Homes England,Legal Services Arpley House,Finance & Corporate Services,HM LAND REGISTRY,09/11/2018,267,G,80131500,Lease and rental of property or building
"Ministry of Housing, Communities and Local Government",Homes England,Legal Services Arpley House,Finance & Corporate Services,HM LAND REGISTRY,13/11/2018,327,G,80131500,Lease and rental of property or building
"Ministry of Housing, Communities and Local Government",Homes England,Legal Services Arpley House,Finance & Corporate Services,HM LAND REGISTRY,13/11/2018,324,G,80131500,Lease and rental of property or building
"Ministry of Housing, Communities and Local Government",Homes England,Legal Services Arpley House,Finance & Corporate Services,HM LAND REGISTRY,20/11/2018,285,G,80131500,Lease and rental of property or building
"Ministry of Housing, Communities and Local Government",Homes England,Legal Services Arpley House,Finance & Corporate Services,HM LAND REGISTRY,29/11/2018,372,G,80131500,Lease and rental of property or building
"Ministry of Housing, Communities and Local Government",Homes England,Capital Grant to Local Authorities,North West,BURY METROPOLIAN BOROUGH COUNCIL,30/11/2018,"925,000.00",G,N/A,Grant
"Ministry of Housing, Communities and Local Government",Homes England,Capital Grant to Local Authorities,North West,WIGAN COUNCIL,30/11/2018,"262,500.00",G,N/A,Grant
"Ministry of Housing, Communities and Local Government",Homes England,Capital Grant to Local Authorities,North West,WIGAN COUNCIL,30/11/2018,"160,000.00",G,N/A,Grant
"Ministry of Housing, Communities and Local Government",Homes England,Capital Grant to Local Authorities,North East And Yorkshire,BARNSLEY METROPOLITAN BOROUGH COUNCIL,13/11/2018,"18,750.00",G,N/A,Grant
"Ministry of Housing, Communities and Local Government",Homes England,Capital Grant to Local Authorities,North East And Yorkshire,BARNSLEY METROPOLITAN BOROUGH COUNCIL,21/11/2018,"45,000.00",G,N/A,Grant
"Ministry of Housing, Communities and Local Government",Homes England,Capital Grant to Local Authorities,North East And Yorkshire,BARNSLEY METROPOLITAN BOROUGH COUNCIL,22/11/2018,"6,250.00",G,N/A,Grant
"Ministry of Housing, Communities and Local Government",Homes England,Capital Grant to Local Authorities,North East And Yorkshire,HARTLEPOOL BOROUGH COUNCIL,13/11/2018,"27,750.00",G,N/A,Grant
"Ministry of Housing, Communities and Local Government",Homes England,Capital Grant to Local Authorities,North East And Yorkshire,HARTLEPOOL BOROUGH COUNCIL,13/11/2018,"27,750.00",G,N/A,Grant
"Ministry of Housing, Communities and Local Government",Homes England,Capital Grant to Local Authorities,North East And Yorkshire,HARTLEPOOL BOROUGH COUNCIL,13/11/2018,"27,750.00",G,N/A,Grant
"Ministry of Housing, Communities and Local Government",Homes England,Capital Grant to Local Authorities,North East And Yorkshire,HARTLEPOOL BOROUGH COUNCIL,13/11/2018,"27,750.00",G,N/A,Grant
"Ministry of Housing, Communities and Local Government",Homes England,Capital Grant to Local Authorities,North East And Yorkshire,HARTLEPOOL BOROUGH COUNCIL,30/11/2018,"27,750.00",G,N/A,Grant
"Ministry of Housing, Communities and Local Government",Homes England,Capital Grant to Local Authorities,North East And Yorkshire,HARTLEPOOL BOROUGH COUNCIL,30/11/2018,"27,750.00",G,N/A,Grant
"Ministry of Housing, Communities and Local Government",Homes England,Capital Grant to Local Authorities,North East And Yorkshire,HARTLEPOOL BOROUGH COUNCIL,30/11/2018,"27,750.00",G,N/A,Grant
"Ministry of Housing, Communities and Local Government",Homes England,Capital Grant to Local Authorities,North East And Yorkshire,HARTLEPOOL BOROUGH COUNCIL,30/11/2018,"27,750.00",G,N/A,Grant
"Ministry of Housing, Communities and Local Government",Homes England,Capital Grant to Local Authorities,North East And Yorkshire,HARTLEPOOL BOROUGH COUNCIL,30/11/2018,"9,250.00",G,N/A,Grant
"Ministry of Housing, Communities and Local Government",Homes England,Capital Grant to Local Authorities,North East And Yorkshire,MIDDLEBROUGH COUNCIL,22/11/2018,"5,985.00",G,N/A,Grant
"Ministry of Housing, Communities and Local Government",Homes England,Capital Grant to Local Authorities,North East And Yorkshire,MIDDLEBROUGH COUNCIL,27/11/2018,"1,995.00",G,N/A,Grant
"Ministry of Housing, Communities and Local Government",Homes England,Capital Grant to Local Authorities,North East And Yorkshire,NORTHUMBERLAND COUNTY COUNCIL,09/11/2018,"6,981.00",G,N/A,Grant
"Ministry of Housing, Communities and Local Government",Homes England,Capital Grant to Local Authorities,North East And Yorkshire,NORTHUMBERLAND COUNTY COUNCIL,16/11/2018,"2,181.00",G,N/A,Grant
"Ministry of Housing, Communities and Local Government",Homes England,Capital Grant to Local Authorities,North East And Yorkshire,NORTHUMBERLAND COUNTY COUNCIL,16/11/2018,714,G,N/A,Grant
"Ministry of Housing, Communities and Local Government",Homes England,Capital Grant to Local Authorities,North East And Yorkshire,NORTHUMBERLAND COUNTY COUNCIL,16/11/2018,"4,239.00",G,N/A,Grant
"Ministry of Housing, Communities and Local Government",Homes England,Capital Grant to Local Authorities,North East And Yorkshire,NORTHUMBERLAND COUNTY COUNCIL,20/11/2018,"3,149.00",G,N/A,Grant
"Ministry of Housing, Communities and Local Government",Homes England,Capital Grant to Local Authorities,North East And Yorkshire,BLACKPOOL COUNCIL,30/11/2018,"247,500.00",G,N/A,Grant
"Ministry of Housing, Communities and Local Government",Homes England,Capital Grant to Local Authorities,North East And Yorkshire,KINGSTON UPON HULL CITY COUNCIL,15/11/2018,"22,500.00",G,N/A,Grant
"Ministry of Housing, Communities and Local Government",Homes England,Capital Grant to Local Authorities,North East And Yorkshire,KINGSTON UPON HULL CITY COUNCIL,15/11/2018,"22,500.00",G,N/A,Grant
"Ministry of Housing, Communities and Local Government",Homes England,Capital Grant to Local Authorities,North East And Yorkshire,KINGSTON UPON HULL CITY COUNCIL,15/11/2018,"22,500.00",G,N/A,Grant
"Ministry of Housing, Communities and Local Government",Homes England,Capital Grant to Local Authorities,North East And Yorkshire,KINGSTON UPON HULL CITY COUNCIL,15/11/2018,"22,500.00",G,N/A,Grant
"Ministry of Housing, Communities and Local Government",Homes England,Capital Grant to Local Authorities,North East And Yorkshire,KINGSTON UPON HULL CITY COUNCIL,15/11/2018,"22,500.00",G,N/A,Grant
"Ministry of Housing, Communities and Local Government",Homes England,Capital Grant to Local Authorities,North East And Yorkshire,KINGSTON UPON HULL CITY COUNCIL,15/11/2018,"22,500.00",G,N/A,Grant
"Ministry of Housing, Communities and Local Government",Homes England,Capital Grant to Local Authorities,North East And Yorkshire,KINGSTON UPON HULL CITY COUNCIL,15/11/2018,"22,500.00",G,N/A,Grant
"Ministry of Housing, Communities and Local Government",Homes England,Capital Grant to Local Authorities,North East And Yorkshire,KINGSTON UPON HULL CITY COUNCIL,15/11/2018,"22,500.00",G,N/A,Grant
"Ministry of Housing, Communities and Local Government",Homes England,Capital Grant to Local Authorities,North East And Yorkshire,KINGSTON UPON HULL CITY COUNCIL,15/11/2018,"22,500.00",G,N/A,Grant
"Ministry of Housing, Communities and Local Government",Homes England,Capital Grant to Local Authorities,North East And Yorkshire,EAST RIDING OF YORKSHIRE COUNCIL,22/11/2018,"8,750.00",G,N/A,Grant
"Ministry of Housing, Communities and Local Government",Homes England,Capital Grant to Local Authorities,North East And Yorkshire,EAST RIDING OF YORKSHIRE COUNCIL,22/11/2018,"8,750.00",G,N/A,Grant
"Ministry of Housing, Communities and Local Government",Homes England,Capital Grant to Local Authorities,North East And Yorkshire,EAST RIDING OF YORKSHIRE COUNCIL,22/11/2018,"8,750.00",G,N/A,Grant
"Ministry of Housing, Communities and Local Government",Homes England,Capital Grant to Local Authorities,North East And Yorkshire,EAST RIDING OF YORKSHIRE COUNCIL,26/11/2018,"22,500.00",G,N/A,Grant
"Ministry of Housing, Communities and Local Government",Homes England,Capital Grant to Local Authorities,North East And Yorkshire,EAST RIDING OF YORKSHIRE COUNCIL,27/11/2018,"8,750.00",G,N/A,Grant
"Ministry of Housing, Communities and Local Government",Homes England,Capital Grant to Local Authorities,North East And Yorkshire,EAST RIDING OF YORKSHIRE COUNCIL,30/11/2018,"8,750.00",G,N/A,Grant
"Ministry of Housing, Communities and Local Government",Homes England,Capital Grant to Local Authorities,North East And Yorkshire,EAST RIDING OF YORKSHIRE COUNCIL,30/11/2018,"7,500.00",G,N/A,Grant
"Ministry of Housing, Communities and Local Government",Homes England,Capital Grant to Local Authorities,North East And Yorkshire,EAST RIDING OF YORKSHIRE COUNCIL,30/11/2018,"26,250.00",G,N/A,Grant
"Ministry of Housing, Communities and Local Government",Homes England,Capital Grant to Local Authorities,North East And Yorkshire,EAST RIDING OF YORKSHIRE COUNCIL,30/11/2018,"6,250.00",G,N/A,Grant
"Ministry of Housing, Communities and Local Government",Homes England,Capital Grant to Local Authorities,North East And Yorkshire,EAST RIDING OF YORKSHIRE COUNCIL,30/11/2018,"26,250.00",G,N/A,Grant
"Ministry of Housing, Communities and Local Government",Homes England,Capital Grant to Local Authorities,North East And Yorkshire,EAST RIDING OF YORKSHIRE COUNCIL,30/11/2018,"68,750.00",G,N/A,Grant
"Ministry of Housing, Communities and Local Government",Homes England,Land Nr Fairfield Park,East And South East,R D LANDSCAPES LTD,09/11/2018,"1,260.00",S,72101500,Building maintenance and repair services
"Ministry of Housing, Communities and Local Government",Homes England,Area Dir Mids Se Mids Mk Tarri,Midlands,MK FIRE LIMITED,06/11/2018,282,M,72102900,Facility maintenance and repair services
"Ministry of Housing, Communities and Local Government",Homes England,Area Dir Mids Se Mids Mk Tarri,Midlands,SIMON TRANTER LANDSCAPE CONTRACTORS,29/11/2018,"2,270.00",S,72101500,Building maintenance and repair services
"Ministry of Housing, Communities and Local Government",Homes England,Area Dir Mids Se Mids Mk Tarri,Midlands,SIMON TRANTER LANDSCAPE CONTRACTORS,29/11/2018,"3,420.00",S,72101500,Building maintenance and repair services
"Ministry of Housing, Communities and Local Government",Homes England,Nat Brownfield Strat National,Programmes,SIMON TRANTER LANDSCAPE CONTRACTORS,29/11/2018,"2,550.00",S,72101500,Building maintenance and repair services
"Ministry of Housing, Communities and Local Government",Homes England,Comms Transition Budget,Finance & Corporate Services,OFFICE TEAM LIMITED,02/11/2018,"1,400.00",L,44120000,Office supplies
"Ministry of Housing, Communities and Local Government",Homes England,Comms Transition Budget,Finance & Corporate Services,OFFICE TEAM LIMITED,13/11/2018,"20,181.26",L,44120000,Office supplies
"Ministry of Housing, Communities and Local Government",Homes England,Comms Transition Budget,Finance & Corporate Services,OFFICE TEAM LIMITED,13/11/2018,"9,414.00",L,44120000,Office supplies
"Ministry of Housing, Communities and Local Government",Homes England,Communications Hex,Executive Office,OFFICE TEAM LIMITED,21/11/2018,435,L,44120000,Office supplies
"Ministry of Housing, Communities and Local Government",Homes England,Capital Grant to Local Authorities,East And South East,UTTLESFORD DISTRICT COUNCIL,13/11/2018,"143,000.00",,N/A,Grant
"Ministry of Housing, Communities and Local Government",Homes England,Nat Brownfield Strat National,Programmes,IDVERDE LIMITED,26/11/2018,458.71,L,72101500,Building maintenance and repair services
"Ministry of Housing, Communities and Local Government",Homes England,Nat Brownfield Strat National,Programmes,LOWTHER FORESTRY GROUP,30/11/2018,"4,456.02",L,72101500,Building maintenance and repair services
"Ministry of Housing, Communities and Local Government",Homes England,Nat Brownfield Strat National,Programmes,LOWTHER FORESTRY GROUP,30/11/2018,"2,241.42",L,72101500,Building maintenance and repair services
"Ministry of Housing, Communities and Local Government",Homes England,Legal Services Cbx,Finance & Corporate Services,IRON MOUNTAIN (UK) LTD,13/11/2018,"6,667.00",L,78131800,Specialized warehousing and storage
"Ministry of Housing, Communities and Local Government",Homes England,Wakefield Magistrates Court,North East And Yorkshire,BRODEX TRIDENT LIMITED,15/11/2018,700,S,77101500,Environmental auditing
"Ministry of Housing, Communities and Local Government",Homes England,Facilities Ashford,Finance & Corporate Services,MK LONDON LINK,05/11/2018,770.44,S,78102200,Postal and small parcel and courier services
"Ministry of Housing, Communities and Local Government",Homes England,Facilities Ashford,Finance & Corporate Services,MK LONDON LINK,30/11/2018,922.13,S,78102200,Postal and small parcel and courier services
"Ministry of Housing, Communities and Local Government",Homes England,Nat Brownfield Strat National,Programmes,ESRI (UK) LTD,07/11/2018,"63,019.00",M,81112300,Computer hardware maintenance and support
"Ministry of Housing, Communities and Local Government",Homes England,Nat Brownfield Strat National,Programmes,GROUND CONTROL LIMITED,06/11/2018,"3,350.00",L,72101500,Building maintenance and repair services
"Ministry of Housing, Communities and Local Government",Homes England,Economic Assets Ne-Y Prog,North East And Yorkshire,GROUND CONTROL LIMITED,08/11/2018,"1,120.00",L,72101500,Building maintenance and repair services
"Ministry of Housing, Communities and Local Government",Homes England,Economic Assets Ne-Y Prog,North East And Yorkshire,GROUND CONTROL LIMITED,12/11/2018,"2,050.00",L,72101500,Building maintenance and repair services
"Ministry of Housing, Communities and Local Government",Homes England,Capital Grant to Local Authorities,North West,NORTH KESTEVEN DISTRICT COUNCIL,30/11/2018,"7,500.00",,N/A,Grant
"Ministry of Housing, Communities and Local Government",Homes England,Capital Grant to Local Authorities,North East And Yorkshire,HARROGATE BOROUGH COUNCIL,28/11/2018,"21,938.00",G,N/A,Grant
"Ministry of Housing, Communities and Local Government",Homes England,Capital Grant to Local Authorities,North East And Yorkshire,HARROGATE BOROUGH COUNCIL,30/11/2018,"21,938.00",G,N/A,Grant
"Ministry of Housing, Communities and Local Government",Homes England,Capital Grant to Local Authorities,North East And Yorkshire,MANSFIELD DISTRICT COUNCIL,19/11/2018,"120,000.00",G,N/A,Grant
"Ministry of Housing, Communities and Local Government",Homes England,Capital Grant to Local Authorities,North East And Yorkshire,NEWARK AND SHERWOOD DISTRICT COUNCIL,30/11/2018,"24,750.00",G,N/A,Grant
"Ministry of Housing, Communities and Local Government",Homes England,Capital Grant to Local Authorities,North East And Yorkshire,NEWARK AND SHERWOOD DISTRICT COUNCIL,30/11/2018,"82,270.00",G,N/A,Grant
"Ministry of Housing, Communities and Local Government",Homes England,Capital Grant to Local Authorities,North East And Yorkshire,NEWARK AND SHERWOOD DISTRICT COUNCIL,30/11/2018,"24,995.00",G,N/A,Grant
"Ministry of Housing, Communities and Local Government",Homes England,Capital Grant to Local Authorities,North East And Yorkshire,NEWARK AND SHERWOOD DISTRICT COUNCIL,30/11/2018,"11,998.00",G,N/A,Grant
"Ministry of Housing, Communities and Local Government",Homes England,Capital Grant to Local Authorities,North East And Yorkshire,NEWARK AND SHERWOOD DISTRICT COUNCIL,30/11/2018,"27,750.00",G,N/A,Grant
"Ministry of Housing, Communities and Local Government",Homes England,Capital Grant to Local Authorities,North East And Yorkshire,NEWARK AND SHERWOOD DISTRICT COUNCIL,30/11/2018,"23,121.00",G,N/A,Grant
"Ministry of Housing, Communities and Local Government",Homes England,East And South East,East And South East,CAMBRIDGESHIRE COUNTY COUNCIL,12/11/2018,"1,125.00",G,80131800,Real estate management services
"Ministry of Housing, Communities and Local Government",Homes England,Capital Grant to Local Authorities,North West,BOLTON AT HOME LIMITED,20/11/2018,"9,000.00",,N/A,Grant
"Ministry of Housing, Communities and Local Government",Homes England,Capital Grant to Local Authorities,North West,BOLTON AT HOME LIMITED,20/11/2018,"9,000.00",,N/A,Grant
"Ministry of Housing, Communities and Local Government",Homes England,Capital Grant to Local Authorities,North West,FIRST CHOICE HOMES OLDHAM LIMITED,28/11/2018,"9,000.00",,N/A,Grant
"Ministry of Housing, Communities and Local Government",Homes England,Capital Grant to Local Authorities,North West,FIRST CHOICE HOMES OLDHAM LIMITED,29/11/2018,"49,500.00",,N/A,Grant
"Ministry of Housing, Communities and Local Government",Homes England,Capital Grant to RPs,North West,ROCHDALE BOROUGHWIDE HOUSING LIMITED,30/11/2018,"199,500.00",,N/A,Grant
"Ministry of Housing, Communities and Local Government",Homes England,Capital Grant to RPs,North West,TRISTAR HOMES LIMITED,20/11/2018,"9,000.00",,N/A,Grant
"Ministry of Housing, Communities and Local Government",Homes England,Capital Grant to RPs,North East And Yorkshire,LEAZES HOMES LIMITED,30/11/2018,"10,500.00",,N/A,Grant
"Ministry of Housing, Communities and Local Government",Homes England,Capital Grant to RPs,East And South East,YMCA DOWNSLINK GROUP,19/11/2018,"12,000.00",,N/A,Grant
"Ministry of Housing, Communities and Local Government",Homes England,Capital Grant to RPs,North East And Yorkshire,KARBON HOMES -ISOS HOUSING LIMITED,30/11/2018,"210,000.00",L,N/A,Grant
"Ministry of Housing, Communities and Local Government",Homes England,Capital Grant to RPs,North East And Yorkshire,KEELMAN HOMES,08/11/2018,"18,000.00",L,N/A,Grant
"Ministry of Housing, Communities and Local Government",Homes England,Capital Grant to RPs,North East And Yorkshire,KEELMAN HOMES,28/11/2018,"24,000.00",L,N/A,Grant
"Ministry of Housing, Communities and Local Government",Homes England,Capital Grant to RPs,North East And Yorkshire,KEELMAN HOMES,28/11/2018,"15,000.00",L,N/A,Grant
"Ministry of Housing, Communities and Local Government",Homes England,Capital Grant to RPs,North East And Yorkshire,KEELMAN HOMES,28/11/2018,"7,500.00",L,N/A,Grant
"Ministry of Housing, Communities and Local Government",Homes England,Capital Grant to RPs,North East And Yorkshire,KEELMAN HOMES,28/11/2018,"9,000.00",L,N/A,Grant
"Ministry of Housing, Communities and Local Government",Homes England,Capital Grant to RPs,North East And Yorkshire,KEELMAN HOMES,30/11/2018,"10,000.00",L,N/A,Grant
"Ministry of Housing, Communities and Local Government",Homes England,Capital Grant to RPs,North East And Yorkshire,KEELMAN HOMES,30/11/2018,"13,500.00",L,N/A,Grant
"Ministry of Housing, Communities and Local Government",Homes England,Capital Grant to RPs,Midlands,BROMFORD HOME OWNERSHIP LTD,19/11/2018,"175,000.00",,N/A,Grant
"Ministry of Housing, Communities and Local Government",Homes England,Capital Grant to RPs,Midlands,BROMFORD HOME OWNERSHIP LTD,26/11/2018,"22,000.00",,N/A,Grant
"Ministry of Housing, Communities and Local Government",Homes England,Capital Grant to RPs,Programmes,THE GUINNESS PARTNERSHIP LIMITED,30/11/2018,"9,000.00",L,N/A,Grant
"Ministry of Housing, Communities and Local Government",Homes England,Capital Grant to RPs,Programmes,THE GUINNESS PARTNERSHIP LIMITED,30/11/2018,"9,000.00",L,N/A,Grant
"Ministry of Housing, Communities and Local Government",Homes England,Capital Grant to RPs,Programmes,THE GUINNESS PARTNERSHIP LIMITED,30/11/2018,"9,000.00",L,N/A,Grant
"Ministry of Housing, Communities and Local Government",Homes England,Capital Grant to RPs,North West,J & M RESIDENTIAL LETTINGS LIMITED,26/11/2018,"9,937.00",,N/A,Grant
"Ministry of Housing, Communities and Local Government",Homes England,Capital Grant to RPs,North West,J & M RESIDENTIAL LETTINGS LIMITED,28/11/2018,"8,000.00",,N/A,Grant
"Ministry of Housing, Communities and Local Government",Homes England,Capital Grant to RPs,North West,J & M RESIDENTIAL LETTINGS LIMITED,29/11/2018,"7,000.00",,N/A,Grant
"Ministry of Housing, Communities and Local Government",Homes England,Capital Grant to RPs,North West,J & M RESIDENTIAL LETTINGS LIMITED,30/11/2018,"5,000.00",,N/A,Grant
"Ministry of Housing, Communities and Local Government",Homes England,Capital Grant to RPs,North West,J & M RESIDENTIAL LETTINGS LIMITED,30/11/2018,"5,000.00",,N/A,Grant
"Ministry of Housing, Communities and Local Government",Homes England,Capital Grant to RPs,North East And Yorkshire,SOUTH TYNESIDE HOUSING VENTURE TRUST LTD,22/11/2018,"13,425.00",,N/A,Grant
"Ministry of Housing, Communities and Local Government",Homes England,Capital Grant to RPs,North East And Yorkshire,SOUTH TYNESIDE HOUSING VENTURE TRUST LTD,30/11/2018,"4,475.00",,N/A,Grant
"Ministry of Housing, Communities and Local Government",Homes England,Capital Grant to RPs,North East And Yorkshire,FORTIS LIVING GROUP,30/11/2018,"22,500.00",L,N/A,Grant
"Ministry of Housing, Communities and Local Government",Homes England,Capital Grant to RPs,North East And Yorkshire,FORTIS LIVING GROUP,30/11/2018,"22,500.00",L,N/A,Grant
"Ministry of Housing, Communities and Local Government",Homes England,Capital Grant to RPs,North East And Yorkshire,FORTIS LIVING GROUP,30/11/2018,"22,500.00",L,N/A,Grant
"Ministry of Housing, Communities and Local Government",Homes England,Capital Grant to RPs,North East And Yorkshire,FORTIS LIVING GROUP,30/11/2018,"157,300.00",L,N/A,Grant
"Ministry of Housing, Communities and Local Government",Homes England,Capital Grant to RPs,North East And Yorkshire,FORTIS LIVING GROUP,30/11/2018,"22,500.00",L,N/A,Grant
"Ministry of Housing, Communities and Local Government",Homes England,Capital Grant to RPs,North East And Yorkshire,FORTIS LIVING GROUP,30/11/2018,"22,500.00",L,N/A,Grant
"Ministry of Housing, Communities and Local Government",Homes England,Capital Grant to RPs,North East And Yorkshire,FORTIS LIVING GROUP,30/11/2018,"133,100.00",L,N/A,Grant
"Ministry of Housing, Communities and Local Government",Homes England,Capital Grant to RPs,North East And Yorkshire,FORTIS LIVING GROUP,30/11/2018,"22,500.00",L,N/A,Grant
"Ministry of Housing, Communities and Local Government",Homes England,Capital Grant to RPs,North East And Yorkshire,FORTIS LIVING GROUP,30/11/2018,"22,500.00",L,N/A,Grant
"Ministry of Housing, Communities and Local Government",Homes England,Capital Grant to RPs,North East And Yorkshire,FORTIS LIVING GROUP,30/11/2018,"22,500.00",L,N/A,Grant
"Ministry of Housing, Communities and Local Government",Homes England,Capital Grant to RPs,North East And Yorkshire,FORTIS LIVING GROUP,30/11/2018,"7,500.00",L,N/A,Grant
"Ministry of Housing, Communities and Local Government",Homes England,Capital Grant to RPs,North East And Yorkshire,FORTIS LIVING GROUP,30/11/2018,"7,500.00",L,N/A,Grant
"Ministry of Housing, Communities and Local Government",Homes England,Capital Grant to RPs,North East And Yorkshire,FORTIS LIVING GROUP,30/11/2018,"7,500.00",L,N/A,Grant
"Ministry of Housing, Communities and Local Government",Homes England,Capital Grant to RPs,North East And Yorkshire,FORTIS LIVING GROUP,30/11/2018,"7,500.00",L,N/A,Grant
"Ministry of Housing, Communities and Local Government",Homes England,Capital Grant to RPs,North East And Yorkshire,FORTIS LIVING GROUP,30/11/2018,"7,500.00",L,N/A,Grant
"Ministry of Housing, Communities and Local Government",Homes England,Capital Grant to RPs,North East And Yorkshire,FORTIS LIVING GROUP,30/11/2018,"7,500.00",L,N/A,Grant
"Ministry of Housing, Communities and Local Government",Homes England,Capital Grant to RPs,South West,DEVON AND CORNWALL HOUSING LIMITED,29/11/2018,"185,600.00",L,N/A,Grant
"Ministry of Housing, Communities and Local Government",Homes England,Capital Grant to RPs,South West,DEVON AND CORNWALL HOUSING LIMITED,29/11/2018,"92,800.00",L,N/A,Grant
"Ministry of Housing, Communities and Local Government",Homes England,Capital Grant to RPs,South West,DEVON AND CORNWALL HOUSING LIMITED,30/11/2018,"240,000.00",L,N/A,Grant
"Ministry of Housing, Communities and Local Government",Homes England,Capital Grant to RPs,South West,DEVON AND CORNWALL HOUSING LIMITED,30/11/2018,"159,600.00",L,N/A,Grant
"Ministry of Housing, Communities and Local Government",Homes England,Capital Grant to RPs,South West,DEVON AND CORNWALL HOUSING LIMITED,30/11/2018,"15,750.00",L,N/A,Grant
"Ministry of Housing, Communities and Local Government",Homes England,Capital Grant to RPs,South West,DEVON AND CORNWALL HOUSING LIMITED,30/11/2018,"425,600.00",L,N/A,Grant
"Ministry of Housing, Communities and Local Government",Homes England,Capital Grant to RPs,South West,DEVON AND CORNWALL HOUSING LIMITED,30/11/2018,"399,000.00",L,N/A,Grant
"Ministry of Housing, Communities and Local Government",Homes England,Capital Grant to RPs,South West,DEVON AND CORNWALL HOUSING LIMITED,30/11/2018,"15,750.00",L,N/A,Grant
"Ministry of Housing, Communities and Local Government",Homes England,Capital Grant to RPs,South West,DEVON AND CORNWALL HOUSING LIMITED,30/11/2018,"204,750.00",L,N/A,Grant
"Ministry of Housing, Communities and Local Government",Homes England,Capital Grant to RPs,South West,LODDON HOMES LIMITED,13/11/2018,"18,554.00",L,N/A,Grant
"Ministry of Housing, Communities and Local Government",Homes England,Capital Grant to RPs,South West,LODDON HOMES LIMITED,30/11/2018,"15,000.00",,N/A,Grant
"Ministry of Housing, Communities and Local Government",Homes England,Capital Grant to RPs,South West,LINCOLNSHIRE HOUSING PARTNERSHIP LTD,28/11/2018,"9,000.00",,N/A,Grant
"Ministry of Housing, Communities and Local Government",Homes England,Capital Grant to RPs,South West,LINCOLNSHIRE HOUSING PARTNERSHIP LTD,28/11/2018,"9,000.00",,N/A,Grant
"Ministry of Housing, Communities and Local Government",Homes England,Capital Grant to RPs,South West,LINCOLNSHIRE HOUSING PARTNERSHIP LTD,28/11/2018,"9,000.00",,N/A,Grant
"Ministry of Housing, Communities and Local Government",Homes England,Economic Assets Ne-Y Prog,North East And Yorkshire,GARDENSTYLE LTD,09/11/2018,"1,912.00",S,72101500,Building maintenance and repair services
"Ministry of Housing, Communities and Local Government",Homes England,Economic Assets S&Sw Prog,South West,DYER & BUTLER LTD,23/11/2018,"27,570.15",L,811001500,Civil Engineering
"Ministry of Housing, Communities and Local Government",Homes England,Land And Regeneration Mh,Programmes,AMION CONSULTING LTD,01/11/2018,"3,000.00",S,81121500,Economic analysis
"Ministry of Housing, Communities and Local Government",Homes England,Nat Brownfield Strat National,Programmes,AMION CONSULTING LTD,12/11/2018,"4,365.00",S,81121500,Economic analysis
"Ministry of Housing, Communities and Local Government",Homes England,Land And Regeneration Mh,Programmes,ADECCO UK LTD,08/11/2018,705.95,L,80111600,Temporary personnel services
"Ministry of Housing, Communities and Local Government",Homes England,Land And Regeneration Mh,Programmes,ADECCO UK LTD,12/11/2018,705.95,L,80111600,Temporary personnel services
"Ministry of Housing, Communities and Local Government",Homes England,Land And Regeneration Mh,Programmes,ADECCO UK LTD,20/11/2018,564.76,L,80111600,Temporary personnel services
"Ministry of Housing, Communities and Local Government",Homes England,Assistant Chief Exec Cbx,Executive Office,ADECCO UK LTD,21/11/2018,562.88,L,80111600,Temporary personnel services
"Ministry of Housing, Communities and Local Government",Homes England,Assistant Chief Exec Cbx,Executive Office,ADECCO UK LTD,21/11/2018,562.88,L,80111600,Temporary personnel services
"Ministry of Housing, Communities and Local Government",Homes England,Assistant Chief Exec Cbx,Executive Office,ADECCO UK LTD,21/11/2018,450.3,L,80111600,Temporary personnel services
"Ministry of Housing, Communities and Local Government",Homes England,Assistant Chief Exec Cbx,Executive Office,ADECCO UK LTD,21/11/2018,562.88,L,80111600,Temporary personnel services
"Ministry of Housing, Communities and Local Government",Homes England,Assistant Chief Exec Cbx,Executive Office,ADECCO UK LTD,29/11/2018,562.88,L,80111600,Temporary personnel services
"Ministry of Housing, Communities and Local Government",Homes England,Land And Regeneration Mh,Programmes,ADECCO UK LTD,29/11/2018,705.95,L,80111600,Temporary personnel services
"Ministry of Housing, Communities and Local Government",Homes England,Nat Brownfield Strat National,Programmes,ALLIES AND MORRISON,13/11/2018,"10,000.00",L,80131800,Real estate management services
"Ministry of Housing, Communities and Local Government",Homes England,Economic Assets Nw Prog,North West,ATKINS LTD,26/11/2018,"50,000.00",L,80131800,Real estate management services
"Ministry of Housing, Communities and Local Government",Homes England,Economic Assets Nw Prog,North West,EDENRED,12/11/2018,243,L,n/a,Unclassifed
"Ministry of Housing, Communities and Local Government",Homes England,Wakefield Magistrates Court,North East And Yorkshire,ALPHA HEATING (CHESTERFIELD) LTD,26/11/2018,420,S,72101500,Building maintenance and repair services
"Ministry of Housing, Communities and Local Government",Homes England,Estate Managemt Black Country,North West,LEASEPLAN UK LIMITED,29/11/2018,498,L,25101500,Passenger motor vehicles
"Ministry of Housing, Communities and Local Government",Homes England,National Programmes Arpley Hse,Programmes,LEASEPLAN UK LIMITED,29/11/2018,376.57,L,25101500,Passenger motor vehicles
"Ministry of Housing, Communities and Local Government",Homes England,Finance Sgh,Finance & Corporate Services,LEASEPLAN UK LIMITED,29/11/2018,328.76,L,25101500,Passenger motor vehicles
"Ministry of Housing, Communities and Local Government",Homes England,Economic Assets Nw Prog,North West,LEASEPLAN UK LIMITED,29/11/2018,"1,714.46",L,25101500,Passenger motor vehicles
"Ministry of Housing, Communities and Local Government",Homes England,Economic Assets Nw Prog,North West,LEASEPLAN UK LIMITED,29/11/2018,"2,303.95",L,25101500,Passenger motor vehicles
"Ministry of Housing, Communities and Local Government",Homes England,Economic Assets Nw Prog,North West,ALPHABET (GB) LTD,30/11/2018,"1,167.83",L,25101500,Passenger motor vehicles
"Ministry of Housing, Communities and Local Government",Homes England,Economic Assets Nw Prog,North West,ALPHABET (GB) LTD,30/11/2018,"1,671.72",L,25101500,Passenger motor vehicles
"Ministry of Housing, Communities and Local Government",Homes England,Estate Management Ne,North West,ALPHABET (GB) LTD,30/11/2018,289.23,L,25101500,Passenger motor vehicles
"Ministry of Housing, Communities and Local Government",Homes England,Economic Assets Hub Transition,Economic Assets Hub,ABERFELDY NEW VILLAGE LLP,15/11/2018,"193,078.68",,N/A,Loans
"Ministry of Housing, Communities and Local Government",Homes England,Economic Assets Nw Prog,North West,AUSTIN WILKINSON DEMOLITION LTD,07/11/2018,"77,323.52",S,72141500,Land preparation services
"Ministry of Housing, Communities and Local Government",Homes England,Legal Services Cbx,Finance & Corporate Services,ARVAL UK LIMITED,08/11/2018,"1,923.50",L,25101500,Passenger motor vehicles
"Ministry of Housing, Communities and Local Government",Homes England,Legal Services Cbx,Finance & Corporate Services,ARVAL UK LIMITED,08/11/2018,"2,523.26",L,25101500,Passenger motor vehicles
"Ministry of Housing, Communities and Local Government",Homes England,HCA Investment Credit Risk Man,Programmes,ARVAL UK LIMITED,08/11/2018,"2,024.63",L,25101500,Passenger motor vehicles
"Ministry of Housing, Communities and Local Government",Homes England,HCA Investment Credit Risk Man,Programmes,ARVAL UK LIMITED,08/11/2018,"2,624.38",L,25101500,Passenger motor vehicles
"Ministry of Housing, Communities and Local Government",Homes England,National Programmes Arpley Hse,Programmes,ARVAL UK LIMITED,29/11/2018,"1,275.93",L,25101500,Passenger motor vehicles
"Ministry of Housing, Communities and Local Government",Homes England,National Programmes Arpley Hse,Programmes,ARVAL UK LIMITED,29/11/2018,"1,805.00",L,25101500,Passenger motor vehicles
"Ministry of Housing, Communities and Local Government",Homes England,Economic Assets Hub Transition,Economic Assets Hub,HANWOOD PARK LLP,20/11/2018,"31,463.67",,N/A,Loans
"Ministry of Housing, Communities and Local Government",Homes England,Economic Assets Hub Transition,Economic Assets Hub,ADVENT DEVELOPMENTS PUDSEY LIMITED,20/11/2018,"191,185.00",,N/A,Loans
"Ministry of Housing, Communities and Local Government",Homes England,Bis - Compton Site,South West,AURORA HEALTH PHYSICS SERVICES LTD,07/11/2018,"10,160.00",S,77101500,Environmental auditing
"Ministry of Housing, Communities and Local Government",Homes England,Economic Assets Hub Transition,Economic Assets Hub,ACROM HOLDINGS LIMITED,01/11/2018,"121,428.00",,N/A,Loans
"Ministry of Housing, Communities and Local Government",Homes England,Economic Assets Ne-Y Prog,North East And Yorkshire,AIREDALE FORESTRY,01/11/2018,300,S,72101500,Building maintenance and repair services
"Ministry of Housing, Communities and Local Government",Homes England,Economic Assets Ne-Y Prog,North East And Yorkshire,AIREDALE FORESTRY,05/11/2018,467,S,72101500,Building maintenance and repair services
"Ministry of Housing, Communities and Local Government",Homes England,Economic Assets Ne-Y Prog,North East And Yorkshire,AIREDALE FORESTRY,07/11/2018,390.25,S,72101500,Building maintenance and repair services
"Ministry of Housing, Communities and Local Government",Homes England,Nat Brownfield Strat National,Programmes,AIREDALE FORESTRY,07/11/2018,408.97,S,72101500,Building maintenance and repair services
"Ministry of Housing, Communities and Local Government",Homes England,Economic Assets Ne-Y Prog,North East And Yorkshire,AIREDALE FORESTRY,08/11/2018,761,S,72101500,Building maintenance and repair services
"Ministry of Housing, Communities and Local Government",Homes England,Economic Assets Ne-Y Prog,North East And Yorkshire,AIREDALE FORESTRY,08/11/2018,260,S,72101500,Building maintenance and repair services
"Ministry of Housing, Communities and Local Government",Homes England,Economic Assets Ne-Y Prog,North East And Yorkshire,AIREDALE FORESTRY,08/11/2018,345,S,72101500,Building maintenance and repair services
"Ministry of Housing, Communities and Local Government",Homes England,Nat Brownfield Strat National,Programmes,AIREDALE FORESTRY,08/11/2018,"1,487.00",S,72101500,Building maintenance and repair services
"Ministry of Housing, Communities and Local Government",Homes England,Nat Brownfield Strat National,Programmes,AIREDALE FORESTRY,08/11/2018,660,S,72101500,Building maintenance and repair services
"Ministry of Housing, Communities and Local Government",Homes England,Nat Brownfield Strat National,Programmes,AIREDALE FORESTRY,09/11/2018,633,S,72101500,Building maintenance and repair services
"Ministry of Housing, Communities and Local Government",Homes England,Nat Brownfield Strat National,Programmes,AIREDALE FORESTRY,14/11/2018,500,S,72101500,Building maintenance and repair services
"Ministry of Housing, Communities and Local Government",Homes England,Economic Assets Ne-Y Prog,North East And Yorkshire,AIREDALE FORESTRY,14/11/2018,668,S,72101500,Building maintenance and repair services
"Ministry of Housing, Communities and Local Government",Homes England,Economic Assets Ne-Y Prog,North East And Yorkshire,AIREDALE FORESTRY,14/11/2018,250,S,72101500,Building maintenance and repair services
"Ministry of Housing, Communities and Local Government",Homes England,Economic Assets Ne-Y Prog,North East And Yorkshire,AIREDALE FORESTRY,16/11/2018,273,S,72101500,Building maintenance and repair services
"Ministry of Housing, Communities and Local Government",Homes England,Economic Assets Ne-Y Prog,North East And Yorkshire,AIREDALE FORESTRY,16/11/2018,488,S,72101500,Building maintenance and repair services
"Ministry of Housing, Communities and Local Government",Homes England,Economic Assets Ne-Y Prog,North East And Yorkshire,AIREDALE FORESTRY,21/11/2018,455,S,72101500,Building maintenance and repair services
"Ministry of Housing, Communities and Local Government",Homes England,Economic Assets Ne-Y Prog,North East And Yorkshire,AIREDALE FORESTRY,26/11/2018,270,S,72101500,Building maintenance and repair services
"Ministry of Housing, Communities and Local Government",Homes England,Communications Hex,Executive Office,AURORA DIGITAL PRINT LTD,16/11/2018,"1,085.00",S,82121500,Printing
"Ministry of Housing, Communities and Local Government",Homes England,Economic Assets Ne-Y Prog,North East And Yorkshire,AMBIENT AIR CONDITIONING UK LTD,21/11/2018,"1,340.00",S,72102900,Facility maintenance and repair services
"Ministry of Housing, Communities and Local Government",Homes England,Economic Assets S&Sw Prog,South West,ALPHA FIRE AND SECURITY SOLUTIONS LTD,29/11/2018,"3,500.00",S,72102900,Facility maintenance and repair services
"Ministry of Housing, Communities and Local Government",Homes England,Existing Stock Team National P,Programmes,BERWIN LEIGHTON PAISNER,05/11/2018,"1,518.00",L,80121600,Business law services
"Ministry of Housing, Communities and Local Government",Homes England,East And South East,East And South East,BERWIN LEIGHTON PAISNER,06/11/2018,"6,500.00",L,80121600,Business law services
"Ministry of Housing, Communities and Local Government",Homes England,East And South East,East And South East,BERWIN LEIGHTON PAISNER,06/11/2018,"2,000.00",L,80121600,Business law services
"Ministry of Housing, Communities and Local Government",Homes England,Economic Assets Hub Transition,Economic Assets Hub,BERWIN LEIGHTON PAISNER,07/11/2018,"46,500.00",L,80121600,Business law services
"Ministry of Housing, Communities and Local Government",Homes England,East And South East,East And South East,BERWIN LEIGHTON PAISNER,07/11/2018,"4,609.50",L,80121600,Business law services
"Ministry of Housing, Communities and Local Government",Homes England,East And South East,East And South East,BERWIN LEIGHTON PAISNER,07/11/2018,"2,000.00",L,80121600,Business law services
"Ministry of Housing, Communities and Local Government",Homes England,HCA Investment Invest FRY BDG,Programmes,BERWIN LEIGHTON PAISNER,08/11/2018,"169,089.58",L,80121600,Business law services
"Ministry of Housing, Communities and Local Government",Homes England,East And Se Cambs Herts And Bu,East And South East,BERWIN LEIGHTON PAISNER,09/11/2018,"3,951.83",L,80121600,Business law services
"Ministry of Housing, Communities and Local Government",Homes England,Economic Assets Hub Transition,Economic Assets Hub,BERWIN LEIGHTON PAISNER,15/11/2018,"2,125.00",L,80121600,Business law services
"Ministry of Housing, Communities and Local Government",Homes England,Economic Assets Hub Transition,Economic Assets Hub,BERWIN LEIGHTON PAISNER,15/11/2018,"55,000.00",L,80121600,Business law services
"Ministry of Housing, Communities and Local Government",Homes England,East And Se Essex And Kent,East And South East,BERWIN LEIGHTON PAISNER,16/11/2018,"2,904.00",L,80121600,Business law services
"Ministry of Housing, Communities and Local Government",Homes England,South West Of Eng-Glouc-Oxford,South West,BERWIN LEIGHTON PAISNER,19/11/2018,"4,524.30",L,80121600,Business law services
"Ministry of Housing, Communities and Local Government",Homes England,East And Se And Surr And Suss,East And South East,BERWIN LEIGHTON PAISNER,21/11/2018,"10,584.00",L,80121600,Business law services
"Ministry of Housing, Communities and Local Government",Homes England,East And Se And Surr And Suss,East And South East,BERWIN LEIGHTON PAISNER,21/11/2018,"15,679.50",L,80121600,Business law services
"Ministry of Housing, Communities and Local Government",Homes England,East And Se And Surr And Suss,East And South East,BERWIN LEIGHTON PAISNER,21/11/2018,"25,173.64",L,80121600,Business law services
"Ministry of Housing, Communities and Local Government",Homes England,East And Se And Surr And Suss,East And South East,BERWIN LEIGHTON PAISNER,21/11/2018,"31,319.50",L,80121600,Business law services
"Ministry of Housing, Communities and Local Government",Homes England,East And Se And Surr And Suss,East And South East,BERWIN LEIGHTON PAISNER,21/11/2018,"15,154.00",L,80121600,Business law services
"Ministry of Housing, Communities and Local Government",Homes England,East And Se And Surr And Suss,East And South East,BERWIN LEIGHTON PAISNER,21/11/2018,"8,807.29",L,80121600,Business law services
"Ministry of Housing, Communities and Local Government",Homes England,East And Se And Surr And Suss,East And South East,BERWIN LEIGHTON PAISNER,21/11/2018,"13,812.10",L,80121600,Business law services
"Ministry of Housing, Communities and Local Government",Homes England,East And Se And Surr And Suss,East And South East,BERWIN LEIGHTON PAISNER,21/11/2018,"7,414.60",L,80121600,Business law services
"Ministry of Housing, Communities and Local Government",Homes England,East And Se And Surr And Suss,East And South East,BERWIN LEIGHTON PAISNER,21/11/2018,"6,276.00",L,80121600,Business law services
"Ministry of Housing, Communities and Local Government",Homes England,East And Se And Surr And Suss,East And South East,BERWIN LEIGHTON PAISNER,21/11/2018,"4,076.50",L,80121600,Business law services
"Ministry of Housing, Communities and Local Government",Homes England,East And Se And Surr And Suss,East And South East,BERWIN LEIGHTON PAISNER,21/11/2018,"8,927.09",L,80121600,Business law services
"Ministry of Housing, Communities and Local Government",Homes England,Economic Assets Hub Transition,Economic Assets Hub,BERWIN LEIGHTON PAISNER,21/11/2018,"12,000.00",L,80121600,Business law services
"Ministry of Housing, Communities and Local Government",Homes England,East And Se And Surr And Suss,East And South East,BERWIN LEIGHTON PAISNER,21/11/2018,"12,816.50",L,80121600,Business law services
"Ministry of Housing, Communities and Local Government",Homes England,East And Se And Surr And Suss,East And South East,BERWIN LEIGHTON PAISNER,21/11/2018,"12,355.50",L,80121600,Business law services
"Ministry of Housing, Communities and Local Government",Homes England,Economic Assets S&Sw Prog,South West,BERWIN LEIGHTON PAISNER,22/11/2018,"14,110.00",L,80121600,Business law services
"Ministry of Housing, Communities and Local Government",Homes England,Economic Assets S&Sw Prog,South West,BERWIN LEIGHTON PAISNER,22/11/2018,"1,507.50",L,80121600,Business law services
"Ministry of Housing, Communities and Local Government",Homes England,Economic Assets S&Sw Prog,South West,BERWIN LEIGHTON PAISNER,22/11/2018,"8,000.00",L,80121600,Business law services
"Ministry of Housing, Communities and Local Government",Homes England,Economic Assets Ne-Y Prog,North East And Yorkshire,BERWIN LEIGHTON PAISNER,27/11/2018,291.8,L,80121600,Business law services
"Ministry of Housing, Communities and Local Government",Homes England,Economic Assets Ne-Y Prog,North East And Yorkshire,BERWIN LEIGHTON PAISNER,27/11/2018,"19,524.99",L,80121600,Business law services
"Ministry of Housing, Communities and Local Government",Homes England,Land And Regeneration Mh,Programmes,BERWIN LEIGHTON PAISNER,29/11/2018,"17,500.00",L,80121600,Business law services
"Ministry of Housing, Communities and Local Government",Homes England,South West Of Eng-Glouc-Oxford,South West,BERWIN LEIGHTON PAISNER,30/11/2018,"5,083.50",L,80121600,Business law services
"Ministry of Housing, Communities and Local Government",Homes England,It Sgh,Finance & Corporate Services,BUSINESS IT,01/11/2018,"9,850.00",S,81112300,Computer hardware maintenance and support
"Ministry of Housing, Communities and Local Government",Homes England,It Sgh,Finance & Corporate Services,BUSINESS IT,05/11/2018,"9,850.00",S,81112300,Computer hardware maintenance and support
"Ministry of Housing, Communities and Local Government",Homes England,It Sgh,Finance & Corporate Services,BUSINESS IT,05/11/2018,"19,700.00",S,81112300,Computer hardware maintenance and support
"Ministry of Housing, Communities and Local Government",Homes England,It Sgh,Finance & Corporate Services,BUSINESS IT,12/11/2018,"9,850.00",S,81112300,Computer hardware maintenance and support
"Ministry of Housing, Communities and Local Government",Homes England,It Sgh,Finance & Corporate Services,BUSINESS IT,15/11/2018,"9,850.00",S,81112300,Computer hardware maintenance and support
"Ministry of Housing, Communities and Local Government",Homes England,Economic Assets Ne-Y Prog,North East And Yorkshire,BROWNE JACOBSON LLP,02/11/2018,"3,500.00",L,80121600,Business law services
"Ministry of Housing, Communities and Local Government",Homes England,South West Of Eng-Glouc-Oxford,South West,BROWNE JACOBSON LLP,05/11/2018,"2,300.00",L,80121600,Business law services
"Ministry of Housing, Communities and Local Government",Homes England,Public Land and Regeneration,Programmes,BROWNE JACOBSON LLP,05/11/2018,"2,135.00",L,80121600,Business law services
"Ministry of Housing, Communities and Local Government",Homes England,Economic Assets S&Sw Prog,South West,BROWNE JACOBSON LLP,08/11/2018,"9,984.00",L,80121600,Business law services
"Ministry of Housing, Communities and Local Government",Homes England,Area Dir Mids Se Mids Mk Tarri,Midlands,BROWNE JACOBSON LLP,09/11/2018,"6,623.00",L,80121600,Business law services
"Ministry of Housing, Communities and Local Government",Homes England,Area Dir Mids Se Mids Mk Tarri,Midlands,BROWNE JACOBSON LLP,09/11/2018,"1,611.50",L,80121600,Business law services
"Ministry of Housing, Communities and Local Government",Homes England,Economic Assets S&Sw Prog,South West,BROWNE JACOBSON LLP,13/11/2018,924.5,L,80121600,Business law services
"Ministry of Housing, Communities and Local Government",Homes England,Economic Assets Nw Prog,North West,BUILDING DESIGN PARTNERSHIP,01/11/2018,"41,160.16",L,80131800,Real estate management services
"Ministry of Housing, Communities and Local Government",Homes England,Land And Regeneration Mh,Programmes,BUILDING DESIGN PARTNERSHIP,06/11/2018,"3,600.00",L,80131800,Real estate management services
"Ministry of Housing, Communities and Local Government",Homes England,Economic Assets Nw Prog,North West,BUILDING DESIGN PARTNERSHIP,07/11/2018,"5,460.00",L,80131800,Real estate management services
"Ministry of Housing, Communities and Local Government",Homes England,Land And Regeneration Mh,Programmes,BUILDING DESIGN PARTNERSHIP,09/11/2018,"1,800.00",L,80131800,Real estate management services
"Ministry of Housing, Communities and Local Government",Homes England,Economic Assets Nw Prog,North West,BUILDING DESIGN PARTNERSHIP,16/11/2018,"10,228.05",L,80131800,Real estate management services
"Ministry of Housing, Communities and Local Government",Homes England,Economic Assets Nw Prog,North West,BUILDING DESIGN PARTNERSHIP,30/11/2018,"3,387.50",L,80131800,Real estate management services
"Ministry of Housing, Communities and Local Government",Homes England,Area Dir Mids Se Mids Mk Tarri,Midlands,CANAL & RIVER TRUST,16/11/2018,657.5,L,80131500,Lease and rental of property or building
"Ministry of Housing, Communities and Local Government",Homes England,Area Dir Mids Se Mids Mk Tarri,Midlands,CANAL & RIVER TRUST,29/11/2018,657.5,L,80131500,Lease and rental of property or building
"Ministry of Housing, Communities and Local Government",Homes England,Area Dir Mids Se Mids Mk Tarri,Midlands,CANAL & RIVER TRUST,30/11/2018,333.75,L,80131500,Lease and rental of property or building
"Ministry of Housing, Communities and Local Government",Homes England,Worksop & Retford Magist Court,Midlands,BASSETLAW DISTRICT COUNCIL (NNDR),01/11/2018,775,G,80131500,Lease and rental of property or building
"Ministry of Housing, Communities and Local Government",Homes England,East And South East,East And South East,PETER BRETT ASSOCIATES LLP,02/11/2018,"3,450.00",L,80131800,Real estate management services
"Ministry of Housing, Communities and Local Government",Homes England,Economic Assets Nw Prog,North West,PETER BRETT ASSOCIATES LLP,19/11/2018,978.6,L,80131800,Real estate management services
"Ministry of Housing, Communities and Local Government",Homes England,Economic Assets S&Sw Prog,South West,PETER BRETT ASSOCIATES LLP,21/11/2018,"39,381.75",L,80131800,Real estate management services
"Ministry of Housing, Communities and Local Government",Homes England,Economic Assets S&Sw Prog,South West,PETER BRETT ASSOCIATES LLP,21/11/2018,"6,000.00",L,80131800,Real estate management services
"Ministry of Housing, Communities and Local Government",Homes England,Economic Assets S&Sw Prog,South West,PETER BRETT ASSOCIATES LLP,21/11/2018,"2,000.00",L,80131800,Real estate management services
"Ministry of Housing, Communities and Local Government",Homes England,Economic Assets S&Sw Prog,South West,PETER BRETT ASSOCIATES LLP,21/11/2018,"2,365.00",L,80131800,Real estate management services
"Ministry of Housing, Communities and Local Government",Homes England,Economic Assets S&Sw Prog,South West,PETER BRETT ASSOCIATES LLP,21/11/2018,291.45,L,80131800,Real estate management services
"Ministry of Housing, Communities and Local Government",Homes England,Economic Assets S&Sw Prog,South West,PETER BRETT ASSOCIATES LLP,21/11/2018,"2,302.37",L,80131800,Real estate management services
"Ministry of Housing, Communities and Local Government",Homes England,Nat Brownfield Strat National,Programmes,PETER BRETT ASSOCIATES LLP,21/11/2018,"7,900.55",L,80131800,Real estate management services
"Ministry of Housing, Communities and Local Government",Homes England,Economic Assets S&Sw Prog,South West,PETER BRETT ASSOCIATES LLP,21/11/2018,"3,750.00",L,80131800,Real estate management services
"Ministry of Housing, Communities and Local Government",Homes England,Nat Brownfield Strat National,Programmes,PETER BRETT ASSOCIATES LLP,23/11/2018,"10,244.22",L,80131800,Real estate management services
"Ministry of Housing, Communities and Local Government",Homes England,Economic Assets S&Sw Prog,South West,PETER BRETT ASSOCIATES LLP,23/11/2018,"17,804.00",L,80131800,Real estate management services
"Ministry of Housing, Communities and Local Government",Homes England,Economic Assets S&Sw Prog,South West,PETER BRETT ASSOCIATES LLP,26/11/2018,"13,216.00",L,80131800,Real estate management services
"Ministry of Housing, Communities and Local Government",Homes England,East And South East,East And South East,PETER BRETT ASSOCIATES LLP,26/11/2018,900,L,80131800,Real estate management services
"Ministry of Housing, Communities and Local Government",Homes England,Economic Assets S&Sw Prog,South West,PETER BRETT ASSOCIATES LLP,29/11/2018,"1,500.00",L,80131800,Real estate management services
"Ministry of Housing, Communities and Local Government",Homes England,Economic Assets S&Sw Prog,South West,PETER BRETT ASSOCIATES LLP,29/11/2018,"25,624.75",L,80131800,Real estate management services
"Ministry of Housing, Communities and Local Government",Homes England,It Sgh,Finance & Corporate Services,BADENOCH & CLARK,01/11/2018,772.45,L,80111600,Temporary personnel services
"Ministry of Housing, Communities and Local Government",Homes England,It Sgh,Finance & Corporate Services,BADENOCH & CLARK,01/11/2018,384.68,L,80111600,Temporary personnel services
"Ministry of Housing, Communities and Local Government",Homes England,It Sgh,Finance & Corporate Services,BRITISH TELECOMMUNICATIONS PLC,05/11/2018,"7,301.75",L,83111500,Local and long distance telephone communications
"Ministry of Housing, Communities and Local Government",Homes England,It Sgh,Finance & Corporate Services,BRITISH TELECOMMUNICATIONS PLC,23/11/2018,839.97,L,83111500,Local and long distance telephone communications
"Ministry of Housing, Communities and Local Government",Homes England,Human Resources-Sgh,Finance & Corporate Services,BE APPLIED LTD,01/11/2018,800,S,80111700,Personnel recruitment
"Ministry of Housing, Communities and Local Government",Homes England,Ne-Yh Sheffield And Humb Ne-Y,North East And Yorkshire,JACOBS UK LTD,08/11/2018,"4,585.25",L,80131800,Real estate management services
"Ministry of Housing, Communities and Local Government",Homes England,Ne-Yh Sheffield And Humb Ne-Y,North East And Yorkshire,JACOBS UK LTD,20/11/2018,"2,748.36",L,80131800,Real estate management services
"Ministry of Housing, Communities and Local Government",Homes England,Ne-Yh Sheffield And Humb Ne-Y,North East And Yorkshire,JACOBS UK LTD,20/11/2018,"3,743.38",L,80131800,Real estate management services
"Ministry of Housing, Communities and Local Government",Homes England,Ne-Yh Sheffield And Humb Ne-Y,North East And Yorkshire,JACOBS UK LTD,20/11/2018,"1,271.61",L,80131800,Real estate management services
"Ministry of Housing, Communities and Local Government",Homes England,Ne-Yh Sheffield And Humb Ne-Y,North East And Yorkshire,JACOBS UK LTD,20/11/2018,"2,082.58",L,80131800,Real estate management services
"Ministry of Housing, Communities and Local Government",Homes England,Ne-Yh Sheffield And Humb Ne-Y,North East And Yorkshire,JACOBS UK LTD,20/11/2018,"4,418.40",L,80131800,Real estate management services
"Ministry of Housing, Communities and Local Government",Homes England,Ne-Yh Sheffield And Humb Ne-Y,North East And Yorkshire,JACOBS UK LTD,29/11/2018,774.11,L,80131800,Real estate management services
"Ministry of Housing, Communities and Local Government",Homes England,Ne-Yh Sheffield And Humb Ne-Y,North East And Yorkshire,JACOBS UK LTD,29/11/2018,"1,231.76",L,80131800,Real estate management services
"Ministry of Housing, Communities and Local Government",Homes England,Ne-Yh Sheffield And Humb Ne-Y,North East And Yorkshire,JACOBS UK LTD,29/11/2018,"2,120.26",L,80131800,Real estate management services
"Ministry of Housing, Communities and Local Government",Homes England,Ne-Yh Sheffield And Humb Ne-Y,North East And Yorkshire,JACOBS UK LTD,29/11/2018,"4,347.58",L,80131800,Real estate management services
"Ministry of Housing, Communities and Local Government",Homes England,Nat Brownfield Strat National,Programmes,BRITISH GAS BUSINESS,05/11/2018,"6,742.94",L,83101800,Electric utilities
"Ministry of Housing, Communities and Local Government",Homes England,Beis - Haughton Grange,North East And Yorkshire,BRITISH GAS BUSINESS,14/11/2018,327.97,L,83101800,Electric utilities
"Ministry of Housing, Communities and Local Government",Homes England,Newbury Magistratescourt,South West,BRITISH GAS BUSINESS,14/11/2018,"1,233.61",L,83101800,Electric utilities
"Ministry of Housing, Communities and Local Government",Homes England,Economic Assets S&Sw Prog,South West,BRITISH GAS BUSINESS,15/11/2018,541.69,L,83101800,Electric utilities
"Ministry of Housing, Communities and Local Government",Homes England,Area Dir Mids Se Mids Mk Tarri,Midlands,BIRMINGHAM CITY COUNCIL,29/11/2018,"4,094.60",G,80131500,Lease and rental of property or building
"Ministry of Housing, Communities and Local Government",Homes England,Area Dir Mids Se Mids Mk Tarri,Midlands,BIRMINGHAM CITY COUNCIL,29/11/2018,"9,839.34",G,80131500,Lease and rental of property or building
"Ministry of Housing, Communities and Local Government",Homes England,Economic Assets S&Sw Prog,South West,KNIGHTS BROWN CONSTRUCTION LIMITED,07/11/2018,"155,254.79",M,72141500,Land preparation services
"Ministry of Housing, Communities and Local Government",Homes England,Economic Assets S&Sw Prog,South West,KNIGHTS BROWN CONSTRUCTION LIMITED,12/11/2018,"199,435.80",M,72141500,Land preparation services
"Ministry of Housing, Communities and Local Government",Homes England,Economic Assets Hub Transition,Economic Assets Hub,BAGNALL HEIGHTS LTD,07/11/2018,"170,968.00",,N/A,Loans
"Ministry of Housing, Communities and Local Government",Homes England,Economic Assets Hub Transition,Economic Assets Hub,BAGNALL HEIGHTS LTD,21/11/2018,"97,734.00",,N/A,Loans
"Ministry of Housing, Communities and Local Government",Homes England,Economic Assets Hub Transition,Economic Assets Hub,BEAUCHIEF HOMES LIMITED,21/11/2018,"123,435.48",,N/A,Loans
"Ministry of Housing, Communities and Local Government",Homes England,Economic Assets S&Sw Prog,South West,BURGES SALMON LLP,20/11/2018,"3,000.00",M,80121600,Business law services
"Ministry of Housing, Communities and Local Government",Homes England,Nat Brownfield Strat National,Programmes,BRYAN LECOCHE LTD,06/11/2018,253.47,S,92121500,Guard services
"Ministry of Housing, Communities and Local Government",Homes England,Nat Brownfield Strat National,Programmes,BRYAN LECOCHE LTD,29/11/2018,320,S,92121500,Guard services
"Ministry of Housing, Communities and Local Government",Homes England,Finance Sgh,Finance & Corporate Services,BC LEGAL (OFFICE ACCOUNT),05/11/2018,831.45,S,80121600,Business law services
"Ministry of Housing, Communities and Local Government",Homes England,Economic Assets S&Sw Prog,South West,BAWDEN CONTRACTING SERVICES LIMITED,09/11/2018,474,S,72101500,Building maintenance and repair services
"Ministry of Housing, Communities and Local Government",Homes England,Economic Assets Hub Transition,Economic Assets Hub,BARTHOLOMEW HOMES LIMITED,05/11/2018,"55,195.35",,N/A,Loans
"Ministry of Housing, Communities and Local Government",Homes England,Economic Assets Hub Transition,Economic Assets Hub,BARTHOLOMEW HOMES LIMITED,26/11/2018,"50,012.98",,N/A,Loans
"Ministry of Housing, Communities and Local Government",Homes England,Estate Management W Mids,North West,BIRMINGHAM CITY UNIVERSITY,08/11/2018,"2,950.00",L,86101800,In service training and manpower development
"Ministry of Housing, Communities and Local Government",Homes England,Economic Assets S&Sw Prog,South West,BRUTON KNOWLES PROPERTY CONSULTANTS,13/11/2018,"1,177.51",M,80131500,Lease and rental of property or building
"Ministry of Housing, Communities and Local Government",Homes England,Area Dir Mids Se Mids Mk Tarri,Midlands,BIRMINGHAM CITY COUNCIL,20/11/2018,"886,155.64",G,N/A,Grant
"Ministry of Housing, Communities and Local Government",Homes England,Economic Assets Ne-Y Prog,North East And Yorkshire,P F BURRIDGE & SONS LTD,21/11/2018,"3,518.65",M,72101500,Building maintenance and repair services
"Ministry of Housing, Communities and Local Government",Homes England,Land And Regeneration Mh,Programmes,BNP PARIBAS REAL ESTATE,01/11/2018,500,L,80131800,Real estate management services
"Ministry of Housing, Communities and Local Government",Homes England,Nat Brownfield Strat National,Programmes,BNP PARIBAS REAL ESTATE,02/11/2018,"1,800.00",L,80131800,Real estate management services
"Ministry of Housing, Communities and Local Government",Homes England,Land And Regeneration Mh,Programmes,BNP PARIBAS REAL ESTATE,02/11/2018,650,L,80131800,Real estate management services
"Ministry of Housing, Communities and Local Government",Homes England,Land And Regeneration Mh,Programmes,BNP PARIBAS REAL ESTATE,05/11/2018,450,L,80131800,Real estate management services
"Ministry of Housing, Communities and Local Government",Homes England,Land And Regeneration Mh,Programmes,BNP PARIBAS REAL ESTATE,05/11/2018,450,L,80131800,Real estate management services
"Ministry of Housing, Communities and Local Government",Homes England,Land And Regeneration Mh,Programmes,BNP PARIBAS REAL ESTATE,05/11/2018,600,L,80131800,Real estate management services
"Ministry of Housing, Communities and Local Government",Homes England,Land And Regeneration Mh,Programmes,BNP PARIBAS REAL ESTATE,05/11/2018,500,L,80131800,Real estate management services
"Ministry of Housing, Communities and Local Government",Homes England,Land And Regeneration Mh,Programmes,BNP PARIBAS REAL ESTATE,05/11/2018,500,L,80131800,Real estate management services
"Ministry of Housing, Communities and Local Government",Homes England,Land And Regeneration Mh,Programmes,BNP PARIBAS REAL ESTATE,05/11/2018,500,L,80131800,Real estate management services
"Ministry of Housing, Communities and Local Government",Homes England,Economic Assets Hub Transition,Economic Assets Hub,BNP PARIBAS REAL ESTATE,06/11/2018,"2,950.00",L,80131800,Real estate management services
"Ministry of Housing, Communities and Local Government",Homes England,Economic Assets Hub Transition,Economic Assets Hub,BNP PARIBAS REAL ESTATE,06/11/2018,"2,250.00",L,80131800,Real estate management services
"Ministry of Housing, Communities and Local Government",Homes England,Economic Assets Hub Transition,Economic Assets Hub,BNP PARIBAS REAL ESTATE,06/11/2018,850,L,80131800,Real estate management services
"Ministry of Housing, Communities and Local Government",Homes England,Economic Assets Hub Transition,Economic Assets Hub,BNP PARIBAS REAL ESTATE,06/11/2018,640,L,80131800,Real estate management services
"Ministry of Housing, Communities and Local Government",Homes England,Economic Assets Hub Transition,Economic Assets Hub,BNP PARIBAS REAL ESTATE,07/11/2018,"2,750.00",L,80131800,Real estate management services
"Ministry of Housing, Communities and Local Government",Homes England,Kickstart Yorks & Humber,Programmes,BNP PARIBAS REAL ESTATE,21/11/2018,850,L,80131800,Real estate management services
"Ministry of Housing, Communities and Local Government",Homes England,Land And Regeneration Mh,Programmes,BNP PARIBAS REAL ESTATE,21/11/2018,450,L,80131800,Real estate management services
"Ministry of Housing, Communities and Local Government",Homes England,Land And Regeneration Mh,Programmes,BNP PARIBAS REAL ESTATE,21/11/2018,600,L,80131800,Real estate management services
"Ministry of Housing, Communities and Local Government",Homes England,Economic Assets S&Sw Prog,South West,BNP PARIBAS REAL ESTATE,22/11/2018,"7,000.00",L,80131800,Real estate management services
"Ministry of Housing, Communities and Local Government",Homes England,Kickstart Yorks & Humber,Programmes,BNP PARIBAS REAL ESTATE,29/11/2018,850,L,80131800,Real estate management services
"Ministry of Housing, Communities and Local Government",Homes England,Economic Assets Ne-Y Prog,North East And Yorkshire,G BURLEY & SONS LTD,06/11/2018,261,S,72101500,Building maintenance and repair services
"Ministry of Housing, Communities and Local Government",Homes England,Economic Assets Ne-Y Prog,North East And Yorkshire,G BURLEY & SONS LTD,16/11/2018,947.55,S,72101500,Building maintenance and repair services
"Ministry of Housing, Communities and Local Government",Homes England,Nat Brownfield Strat National,Programmes,G BURLEY & SONS LTD,28/11/2018,"1,250.00",S,72101500,Building maintenance and repair services
"Ministry of Housing, Communities and Local Government",Homes England,Nat Brownfield Strat National,Programmes,BERRYS,06/11/2018,"1,000.00",S,80131800,Real estate management services
"Ministry of Housing, Communities and Local Government",Homes England,East And South East,East And South East,BERRYS,06/11/2018,"5,000.00",S,80131800,Real estate management services
"Ministry of Housing, Communities and Local Government",Homes England,East And South East,East And South East,BERRYS,06/11/2018,"5,000.00",S,80131800,Real estate management services
"Ministry of Housing, Communities and Local Government",Homes England,Area Dir Mids Se Mids Mk Tarri,Midlands,CAMPBELL REITH,02/11/2018,"27,445.00",M,77101500,Environmental auditing
"Ministry of Housing, Communities and Local Government",Homes England,Economic Assets Nw Prog,North West,CAMPBELL REITH,02/11/2018,"3,465.00",M,77101500,Environmental auditing
"Ministry of Housing, Communities and Local Government",Homes England,Economic Assets Nw Prog,North West,CAMPBELL REITH,02/11/2018,660.03,M,77101500,Environmental auditing
"Ministry of Housing, Communities and Local Government",Homes England,Economic Assets Nw Prog,North West,CAMPBELL REITH,02/11/2018,632.42,M,77101500,Environmental auditing
"Ministry of Housing, Communities and Local Government",Homes England,Lodge Hill,East And South East,CAMPBELL REITH,06/11/2018,"2,500.00",M,77101500,Environmental auditing
"Ministry of Housing, Communities and Local Government",Homes England,Economic Assets S&Sw Prog,South West,CAMPBELL REITH,06/11/2018,"43,323.99",M,77101500,Environmental auditing
"Ministry of Housing, Communities and Local Government",Homes England,Economic Assets S&Sw Prog,South West,CAMPBELL REITH,06/11/2018,"12,000.00",M,77101500,Environmental auditing
"Ministry of Housing, Communities and Local Government",Homes England,Economic Assets Nw Prog,North West,CAMPBELL REITH,07/11/2018,791.2,M,77101500,Environmental auditing
"Ministry of Housing, Communities and Local Government",Homes England,Economic Assets S&Sw Prog,South West,CAMPBELL REITH,08/11/2018,"3,450.00",M,77101500,Environmental auditing
"Ministry of Housing, Communities and Local Government",Homes England,Economic Assets S&Sw Prog,South West,CAMPBELL REITH,08/11/2018,"3,185.98",M,77101500,Environmental auditing
"Ministry of Housing, Communities and Local Government",Homes England,Economic Assets S&Sw Prog,South West,CAMPBELL REITH,08/11/2018,"4,000.00",M,77101500,Environmental auditing
"Ministry of Housing, Communities and Local Government",Homes England,Area Dir Mids Se Mids Mk Tarri,Midlands,CAMPBELL REITH,09/11/2018,595,M,77101500,Environmental auditing
"Ministry of Housing, Communities and Local Government",Homes England,Economic Assets Nw Prog,North West,CAMPBELL REITH,12/11/2018,"2,000.00",M,77101500,Environmental auditing
"Ministry of Housing, Communities and Local Government",Homes England,Economic Assets Nw Prog,North West,CAMPBELL REITH,12/11/2018,"6,795.41",M,77101500,Environmental auditing
"Ministry of Housing, Communities and Local Government",Homes England,Economic Assets Nw Prog,North West,CAMPBELL REITH,12/11/2018,"6,283.78",M,77101500,Environmental auditing
"Ministry of Housing, Communities and Local Government",Homes England,Economic Assets Nw Prog,North West,CAMPBELL REITH,12/11/2018,"6,155.13",M,77101500,Environmental auditing
"Ministry of Housing, Communities and Local Government",Homes England,Economic Assets E-Se Progs,East And South East,CAMPBELL REITH,15/11/2018,"2,000.00",M,77101500,Environmental auditing
"Ministry of Housing, Communities and Local Government",Homes England,East And South East,East And South East,CAMPBELL REITH,15/11/2018,"4,000.00",M,77101500,Environmental auditing
"Ministry of Housing, Communities and Local Government",Homes England,East And South East,East And South East,CAMPBELL REITH,19/11/2018,"4,000.00",M,77101500,Environmental auditing
"Ministry of Housing, Communities and Local Government",Homes England,East And South East,East And South East,CAMPBELL REITH,19/11/2018,"3,000.00",M,77101500,Environmental auditing
"Ministry of Housing, Communities and Local Government",Homes England,East And South East,East And South East,CAMPBELL REITH,19/11/2018,"8,918.71",M,77101500,Environmental auditing
"Ministry of Housing, Communities and Local Government",Homes England,Moj Wealstun Land At Wighill L,North East And Yorkshire,CAMPBELL REITH,21/11/2018,"2,689.32",M,77101500,Environmental auditing
"Ministry of Housing, Communities and Local Government",Homes England,Area Dir Mids Se Mids Mk Tarri,Midlands,CAMPBELL REITH,22/11/2018,"9,469.00",M,77101500,Environmental auditing
"Ministry of Housing, Communities and Local Government",Homes England,Mod Chalgrove,East And South East,CARTER JONAS,12/11/2018,"2,371.88",L,80131800,Real estate management services
"Ministry of Housing, Communities and Local Government",Homes England,Economic Assets S&Sw Prog,South West,CARTER JONAS,16/11/2018,"3,870.00",L,80131800,Real estate management services
"Ministry of Housing, Communities and Local Government",Homes England,Mod Chalgrove,East And South East,CARTER JONAS,16/11/2018,"1,810.00",L,80131800,Real estate management services
"Ministry of Housing, Communities and Local Government",Homes England,Public Land and Regeneration,Programmes,CARTER JONAS,21/11/2018,"1,800.00",L,80131800,Real estate management services
"Ministry of Housing, Communities and Local Government",Homes England,Area Dir Mids Se Mids Mk Tarri,Midlands,CADENT GAS LIMITED,22/11/2018,"28,007.00",S,72101500,Building maintenance and repair services
"Ministry of Housing, Communities and Local Government",Homes England,Facilities Arpley House,Finance & Corporate Services,CORONA ENERGY,15/11/2018,521.51,L,83101600,Oil and gas utilities
"Ministry of Housing, Communities and Local Government",Homes England,Facilities Arpley House,Finance & Corporate Services,CORONA ENERGY,15/11/2018,510.64,L,83101600,Oil and gas utilities
"Ministry of Housing, Communities and Local Government",Homes England,Public Land and Regeneration,Programmes,CORONA ENERGY,15/11/2018,659.82,L,83101600,Oil and gas utilities
"Ministry of Housing, Communities and Local Government",Homes England,Oldham Mc,North West,CORONA ENERGY,26/11/2018,"1,171.37",L,83101600,Oil and gas utilities
"Ministry of Housing, Communities and Local Government",Homes England,Wrest Park Area 1a & 1b,East And South East,CONCEPT DOMESTIC FLOORS LTD,26/11/2018,258.85,S,30161700,Flooring
"Ministry of Housing, Communities and Local Government",Homes England,Economic Assets Nw Prog,North West,COOKE FUELS,13/11/2018,390,M,15101502,Kerosene
"Ministry of Housing, Communities and Local Government",Homes England,Communications Hex,Executive Office,CALDER CONFERENCES & WORLD TRAVEL,21/11/2018,"39,830.00",S,90111600,Meeting facilities
"Ministry of Housing, Communities and Local Government",Homes England,Lodge Hill,East And South East,F M CONWAY LIMITED,01/11/2018,"2,450.00",L,72101500,Building maintenance and repair services
"Ministry of Housing, Communities and Local Government",Homes England,East And South East,East And South East,F M CONWAY LIMITED,01/11/2018,"7,145.71",L,72101500,Building maintenance and repair services
"Ministry of Housing, Communities and Local Government",Homes England,Economic Assets Hub Transition,Economic Assets Hub,CHIPPING HOMES LIMITED,16/11/2018,"223,879.54",,N/A,Loans
"Ministry of Housing, Communities and Local Government",Homes England,Ftbi South East,East And South East,CAMBRIDGE ARCHAEOLOGY UNIT,07/11/2018,"46,805.00",L,80131800,Real estate management services
"Ministry of Housing, Communities and Local Government",Homes England,Economic Assets Hub Transition,Economic Assets Hub,CHIPRO DEVELOPMENTS,15/11/2018,"247,511.00",,N/A,Loans
"Ministry of Housing, Communities and Local Government",Homes England,Area Dir Mids Se Mids Mk Tarri,Midlands,CPUK CIVILS & REMEDIATION LTD,19/11/2018,"102,334.65",M,72141500,Land preparation services
"Ministry of Housing, Communities and Local Government",Homes England,Area Dir Mids Se Mids Mk Tarri,Midlands,CPUK CIVILS & REMEDIATION LTD,27/11/2018,"24,155.64",M,72141500,Land preparation services
"Ministry of Housing, Communities and Local Government",Homes England,Economic Assets Hub Transition,Economic Assets Hub,C & S HOMES LLP,20/11/2018,"27,427.63",,N/A,Loans
"Ministry of Housing, Communities and Local Government",Homes England,Chesterfield County Court,Midlands,CHESTERFIELD BOROUGH COUNCIL,20/11/2018,"4,485.25",G,80131500,Lease and rental of property or building
"Ministry of Housing, Communities and Local Government",Homes England,Chesterfield County Court,Midlands,CHESTERFIELD BOROUGH COUNCIL,20/11/2018,"15,489.53",G,80131500,Lease and rental of property or building
"Ministry of Housing, Communities and Local Government",Homes England,Chesterfield County Court,Midlands,CHESTERFIELD BOROUGH COUNCIL,20/11/2018,"18,642.34",G,80131500,Lease and rental of property or building
"Ministry of Housing, Communities and Local Government",Homes England,Area Dir Mids Se Mids Mk Tarri,Midlands,COLLIERS INTERNATIONAL PROPERTY CONSULTANTS,08/11/2018,"5,135.00",S,80131800,Real estate management services
"Ministry of Housing, Communities and Local Government",Homes England,Economic Assets Hub Transition,Economic Assets Hub,CLARKE WILLMOTT LLP,05/11/2018,400,M,80121600,Business law services
"Ministry of Housing, Communities and Local Government",Homes England,East And Se Director Cambridge,East And South East,CHARTERED INSTITUTE OF HOUSING,12/11/2018,"1,150.00",L,94101600,Professional associations
"Ministry of Housing, Communities and Local Government",Homes England,Economic Assets Hub Transition,Economic Assets Hub,CLL (WHINNEY LANE) LIMITED,21/11/2018,"177,994.39",,N/A,Loans
"Ministry of Housing, Communities and Local Government",Homes England,Economic Assets S&Sw Prog,South West,C.M.A. (NEMESIS) LTD,15/11/2018,285,S,72102100,Pest control
"Ministry of Housing, Communities and Local Government",Homes England,Economic Assets S&Sw Prog,South West,C.M.A. (NEMESIS) LTD,15/11/2018,325,S,72102100,Pest control
"Ministry of Housing, Communities and Local Government",Homes England,Economic Assets S&Sw Prog,South West,C.M.A. (NEMESIS) LTD,20/11/2018,294,S,72102100,Pest control
"Ministry of Housing, Communities and Local Government",Homes England,Economic Assets S&Sw Prog,South West,C.M.A. (NEMESIS) LTD,20/11/2018,760,S,72102100,Pest control
"Ministry of Housing, Communities and Local Government",Homes England,Economic Assets S&Sw Prog,South West,C.M.A. (NEMESIS) LTD,21/11/2018,395,S,72102100,Pest control
"Ministry of Housing, Communities and Local Government",Homes England,Nat Brownfield Strat National,Programmes,FRANK COOPER & SON LIMITED,12/11/2018,415.45,M,76121500,Refuse collection and disposal
"Ministry of Housing, Communities and Local Government",Homes England,Economic Assets S&Sw Prog,South West,CLAPHAMS LANDSCAPE SERVICES LTD,01/11/2018,567.66,S,72101500,Building maintenance and repair services
"Ministry of Housing, Communities and Local Government",Homes England,Economic Assets S&Sw Prog,South West,CLAPHAMS LANDSCAPE SERVICES LTD,01/11/2018,495,S,72101500,Building maintenance and repair services
"Ministry of Housing, Communities and Local Government",Homes England,Economic Assets S&Sw Prog,South West,CLAPHAMS LANDSCAPE SERVICES LTD,12/11/2018,567.66,S,72101500,Building maintenance and repair services
"Ministry of Housing, Communities and Local Government",Homes England,Economic Assets S&Sw Prog,South West,CLAPHAMS LANDSCAPE SERVICES LTD,15/11/2018,600,S,72101500,Building maintenance and repair services
"Ministry of Housing, Communities and Local Government",Homes England,It Sgh,Finance & Corporate Services,CENTERPRISE INTERNATIONAL,01/11/2018,"8,691.04",L,73231500,Business function specific software
"Ministry of Housing, Communities and Local Government",Homes England,Human Resources-Sgh,Finance & Corporate Services,CHARTERED INSTITUTE OF PAYROLL PROFESSIONALS,21/11/2018,"2,770.00",M,86101800,In service training and manpower development
"Ministry of Housing, Communities and Local Government",Homes England,Economic Assets S&Sw Prog,South West,CONCEPT BUILDING SERVICES  (SOUTHERN) LTD,02/11/2018,"2,042.00",M,72101500,Building maintenance and repair services
"Ministry of Housing, Communities and Local Government",Homes England,Economic Assets S&Sw Prog,South West,CONCEPT BUILDING SERVICES  (SOUTHERN) LTD,16/11/2018,"45,000.00",M,72101500,Building maintenance and repair services
"Ministry of Housing, Communities and Local Government",Homes England,Nat Brownfield Strat National,Programmes,K D CHILDS STONEWORK DEVELOPMENTS,07/11/2018,"6,500.00",S,72101500,Building maintenance and repair services
"Ministry of Housing, Communities and Local Government",Homes England,Bury St Edmunds,East And South East,C-ELECT ASSOCIATES LIMITED,01/11/2018,"1,242.81",S,72101500,Building maintenance and repair services
"Ministry of Housing, Communities and Local Government",Homes England,Beis - Haughton Grange,North East And Yorkshire,C-ELECT ASSOCIATES LIMITED,06/11/2018,"3,397.17",S,72101500,Building maintenance and repair services
"Ministry of Housing, Communities and Local Government",Homes England,Lodge Hill,East And South East,C-ELECT ASSOCIATES LIMITED,27/11/2018,490,S,72101500,Building maintenance and repair services
"Ministry of Housing, Communities and Local Government",Homes England,Bis - Compton Site,South West,C-ELECT ASSOCIATES LIMITED,27/11/2018,808.35,S,72101500,Building maintenance and repair services
"Ministry of Housing, Communities and Local Government",Homes England,Eastbourne Magistrates Court,East And South East,C-ELECT ASSOCIATES LIMITED,29/11/2018,440,S,72101500,Building maintenance and repair services
"Ministry of Housing, Communities and Local Government",Homes England,Area Dir Mids Se Mids Mk Tarri,Midlands,CAWARDEN CO LIMITED,20/11/2018,"116,863.64",S,72141500,Land preparation services
"Ministry of Housing, Communities and Local Government",Homes England,Area Dir Mids Se Mids Mk Tarri,Midlands,CAWARDEN CO LIMITED,20/11/2018,"39,924.29",S,72141500,Land preparation services
"Ministry of Housing, Communities and Local Government",Homes England,Area Dir Mids Se Mids Mk Tarri,Midlands,CONTINENTAL LANDSCAPES - GREENHAND,06/11/2018,550.77,L,72101500,Building maintenance and repair services
"Ministry of Housing, Communities and Local Government",Homes England,Nat Brownfield Strat National,Programmes,CONTINENTAL LANDSCAPES - GREENHAND,13/11/2018,295,L,72101500,Building maintenance and repair services
"Ministry of Housing, Communities and Local Government",Homes England,Economic Assets Nw Prog,North West,CONTINENTAL LANDSCAPES - GREENHAND,16/11/2018,360.08,L,72101500,Building maintenance and repair services
"Ministry of Housing, Communities and Local Government",Homes England,Economic Assets Nw Prog,North West,CONTINENTAL LANDSCAPES - GREENHAND,16/11/2018,360.96,L,72101500,Building maintenance and repair services
"Ministry of Housing, Communities and Local Government",Homes England,Economic Assets Nw Prog,North West,CONTINENTAL LANDSCAPES - GREENHAND,16/11/2018,390.96,L,72101500,Building maintenance and repair services
"Ministry of Housing, Communities and Local Government",Homes England,Economic Assets Nw Prog,North West,CONTINENTAL LANDSCAPES - GREENHAND,16/11/2018,790.34,L,72101500,Building maintenance and repair services
"Ministry of Housing, Communities and Local Government",Homes England,Economic Assets Nw Prog,North West,CONTINENTAL LANDSCAPES - GREENHAND,16/11/2018,360.08,L,72101500,Building maintenance and repair services
"Ministry of Housing, Communities and Local Government",Homes England,Economic Assets Nw Prog,North West,CONTINENTAL LANDSCAPES - GREENHAND,16/11/2018,360.96,L,72101500,Building maintenance and repair services
"Ministry of Housing, Communities and Local Government",Homes England,Economic Assets Nw Prog,North West,CONTINENTAL LANDSCAPES - GREENHAND,16/11/2018,390.96,L,72101500,Building maintenance and repair services
"Ministry of Housing, Communities and Local Government",Homes England,Economic Assets Nw Prog,North West,CONTINENTAL LANDSCAPES - GREENHAND,16/11/2018,738.97,L,72101500,Building maintenance and repair services
"Ministry of Housing, Communities and Local Government",Homes England,Nat Brownfield Strat National,Programmes,CONTINENTAL LANDSCAPES - GREENHAND,23/11/2018,"3,079.00",L,72101500,Building maintenance and repair services
"Ministry of Housing, Communities and Local Government",Homes England,Economic Assets Nw Prog,North West,CONTINENTAL LANDSCAPES - GREENHAND,29/11/2018,955.08,L,72101500,Building maintenance and repair services
"Ministry of Housing, Communities and Local Government",Homes England,Economic Assets S&Sw Prog,South West,CASTLE WATER LIMITED,23/11/2018,"3,047.60",M,83101500,Water and sewer utilities
"Ministry of Housing, Communities and Local Government",Homes England,Economic Assets S&Sw Prog,South West,CB RICHARD ELLIS,27/11/2018,"1,750.00",L,80131800,Real estate management services
"Ministry of Housing, Communities and Local Government",Homes England,Economic Assets S&Sw Prog,South West,THE CROWN ESTATE,09/11/2018,"12,827.50",G,80131500,Lease and rental of property or building
"Ministry of Housing, Communities and Local Government",Homes England,East And South East,East And South East,CHANNEL ENGINEERING LTD,05/11/2018,780,S,72101500,Building maintenance and repair services
"Ministry of Housing, Communities and Local Government",Homes England,Lodge Hill,East And South East,CHANNEL ENGINEERING LTD,05/11/2018,"1,431.00",S,72101500,Building maintenance and repair services
"Ministry of Housing, Communities and Local Government",Homes England,Lodge Hill,East And South East,CHANNEL ENGINEERING LTD,13/11/2018,503,S,72101500,Building maintenance and repair services
"Ministry of Housing, Communities and Local Government",Homes England,Lodge Hill,East And South East,CHANNEL ENGINEERING LTD,13/11/2018,"1,575.00",S,72101500,Building maintenance and repair services
"Ministry of Housing, Communities and Local Government",Homes England,Lodge Hill,East And South East,CHANNEL ENGINEERING LTD,26/11/2018,"2,896.00",S,72101500,Building maintenance and repair services
"Ministry of Housing, Communities and Local Government",Homes England,East And South East,East And South East,CHANNEL ENGINEERING LTD,26/11/2018,362.5,S,72101500,Building maintenance and repair services
"Ministry of Housing, Communities and Local Government",Homes England,East And South East,East And South East,CHANNEL ENGINEERING LTD,26/11/2018,510,S,72101500,Building maintenance and repair services
"Ministry of Housing, Communities and Local Government",Homes England,East And South East,East And South East,CHANNEL ENGINEERING LTD,29/11/2018,600,S,72101500,Building maintenance and repair services
"Ministry of Housing, Communities and Local Government",Homes England,Lodge Hill,East And South East,CHANNEL ENGINEERING LTD,29/11/2018,"1,955.00",S,72101500,Building maintenance and repair services
"Ministry of Housing, Communities and Local Government",Homes England,East And South East,East And South East,CHANNEL ENGINEERING LTD,29/11/2018,411,S,72101500,Building maintenance and repair services
"Ministry of Housing, Communities and Local Government",Homes England,Lodge Hill,East And South East,CHANNEL ENGINEERING LTD,29/11/2018,"2,846.00",S,72101500,Building maintenance and repair services
"Ministry of Housing, Communities and Local Government",Homes England,Human Resources-Sgh,Finance & Corporate Services,CABINET OFFICE HM SHARED SERVICES,08/11/2018,"1,108.00",G,80111600,Temporary personnel services
"Ministry of Housing, Communities and Local Government",Homes England,Human Resources-Sgh,Finance & Corporate Services,CABINET OFFICE HM SHARED SERVICES,29/11/2018,"2,791.00",G,90111600,Meeting facilities
"Ministry of Housing, Communities and Local Government",Homes England,Human Resources-Sgh,Finance & Corporate Services,CABINET OFFICE HM SHARED SERVICES,29/11/2018,"1,900.00",G,90111600,Meeting facilities
"Ministry of Housing, Communities and Local Government",Homes England,Human Resources-Sgh,Finance & Corporate Services,CABINET OFFICE HM SHARED SERVICES,29/11/2018,"1,232.00",G,90111600,Meeting facilities
"Ministry of Housing, Communities and Local Government",Homes England,Area Dir Mids Se Mids Mk Tarri,Midlands,CARTWRIGHT LANDSCAPES,21/11/2018,"1,190.00",S,72101500,Building maintenance and repair services
"Ministry of Housing, Communities and Local Government",Homes England,Area Dir Mids Se Mids Mk Tarri,Midlands,CARTWRIGHT LANDSCAPES,21/11/2018,"3,081.60",S,72101500,Building maintenance and repair services
"Ministry of Housing, Communities and Local Government",Homes England,East And South East,East And South East,CARTWRIGHT LANDSCAPES,26/11/2018,541.14,S,72101500,Building maintenance and repair services
"Ministry of Housing, Communities and Local Government",Homes England,East And South East,East And South East,CARTWRIGHT LANDSCAPES,26/11/2018,541.14,S,72101500,Building maintenance and repair services
"Ministry of Housing, Communities and Local Government",Homes England,Facilities Arpley House,Finance & Corporate Services,ENGIE FM LIMITED,12/11/2018,926.93,L,72102900,Facility maintenance and repair services
"Ministry of Housing, Communities and Local Government",Homes England,Facilities Arpley House,Finance & Corporate Services,ENGIE FM LIMITED,12/11/2018,"2,009.19",L,72102900,Facility maintenance and repair services
"Ministry of Housing, Communities and Local Government",Homes England,It Sgh,Finance & Corporate Services,VODAFONE LIMITED,16/11/2018,"4,868.46",L,81112000,Data services
"Ministry of Housing, Communities and Local Government",Homes England,It Sgh,Finance & Corporate Services,OASIS UK NORTH LIMITED,08/11/2018,"1,177.08",L,81111200,Data services
"Ministry of Housing, Communities and Local Government",Homes England,Land And Regeneration Mh,Programmes,DRIVERS JONAS DELOITTE,02/11/2018,"395,060.41",L,80131800,Real estate management services
"Ministry of Housing, Communities and Local Government",Homes England,East And South East,East And South East,DRIVERS JONAS DELOITTE,22/11/2018,"3,300.00",L,80131800,Real estate management services
"Ministry of Housing, Communities and Local Government",Homes England,East And South East,East And South East,DRIVERS JONAS DELOITTE,23/11/2018,"6,700.00",L,80131800,Real estate management services
"Ministry of Housing, Communities and Local Government",Homes England,Land And Regeneration Mh,Programmes,DRIVERS JONAS DELOITTE,29/11/2018,"41,681.25",L,80131800,Real estate management services
"Ministry of Housing, Communities and Local Government",Homes England,Land And Regeneration Mh,Programmes,DRIVERS JONAS DELOITTE,29/11/2018,"35,662.50",L,80131800,Real estate management services
"Ministry of Housing, Communities and Local Government",Homes England,Land And Regeneration Mh,Programmes,DRIVERS JONAS DELOITTE,29/11/2018,"30,991.40",L,80131800,Real estate management services
"Ministry of Housing, Communities and Local Government",Homes England,Land And Regeneration Mh,Programmes,DRIVERS JONAS DELOITTE,29/11/2018,"68,124.60",L,80131800,Real estate management services
"Ministry of Housing, Communities and Local Government",Homes England,LIF LS Loans Private additions,Programmes,DRIVERS JONAS DELOITTE,30/11/2018,"132,080.73",L,80131800,Real estate management services
"Ministry of Housing, Communities and Local Government",Homes England,LIF LS Loans Private additions,Programmes,DRIVERS JONAS DELOITTE,30/11/2018,"152,129.11",L,80131800,Real estate management services
"Ministry of Housing, Communities and Local Government",Homes England,Communications Hex,Executive Office,GORKANA GROUP LTD,06/11/2018,943.9,L,82101500,Print advertising
"Ministry of Housing, Communities and Local Government",Homes England,Land And Regeneration Mh,Programmes,CUSHMAN & WAKEFIELD DEBENHAM TIE LEUNG,01/11/2018,800,L,80131800,Real estate management services
"Ministry of Housing, Communities and Local Government",Homes England,Economic Assets Hub Transition,Economic Assets Hub,CUSHMAN & WAKEFIELD DEBENHAM TIE LEUNG,01/11/2018,650,L,80131800,Real estate management services
"Ministry of Housing, Communities and Local Government",Homes England,Economic Assets Hub Transition,Economic Assets Hub,CUSHMAN & WAKEFIELD DEBENHAM TIE LEUNG,01/11/2018,700,L,80131800,Real estate management services
"Ministry of Housing, Communities and Local Government",Homes England,Land And Regeneration Mh,Programmes,CUSHMAN & WAKEFIELD DEBENHAM TIE LEUNG,01/11/2018,800,L,80131800,Real estate management services
"Ministry of Housing, Communities and Local Government",Homes England,Economic Assets Hub Transition,Economic Assets Hub,CUSHMAN & WAKEFIELD DEBENHAM TIE LEUNG,01/11/2018,700,L,80131800,Real estate management services
"Ministry of Housing, Communities and Local Government",Homes England,Land And Regeneration Mh,Programmes,CUSHMAN & WAKEFIELD DEBENHAM TIE LEUNG,01/11/2018,750,L,80131800,Real estate management services
"Ministry of Housing, Communities and Local Government",Homes England,Land And Regeneration Mh,Programmes,CUSHMAN & WAKEFIELD DEBENHAM TIE LEUNG,01/11/2018,750,L,80131800,Real estate management services
"Ministry of Housing, Communities and Local Government",Homes England,Economic Assets Hub Transition,Economic Assets Hub,CUSHMAN & WAKEFIELD DEBENHAM TIE LEUNG,01/11/2018,700,L,80131800,Real estate management services
"Ministry of Housing, Communities and Local Government",Homes England,Economic Assets Hub Transition,Economic Assets Hub,CUSHMAN & WAKEFIELD DEBENHAM TIE LEUNG,01/11/2018,750,L,80131800,Real estate management services
"Ministry of Housing, Communities and Local Government",Homes England,Bis - Compton Site,South West,CUSHMAN & WAKEFIELD DEBENHAM TIE LEUNG,02/11/2018,"2,237.50",L,80131800,Real estate management services
"Ministry of Housing, Communities and Local Government",Homes England,Eastbourne Magistrates Court,East And South East,CUSHMAN & WAKEFIELD DEBENHAM TIE LEUNG,02/11/2018,"1,187.50",L,80131800,Real estate management services
"Ministry of Housing, Communities and Local Government",Homes England,Sturton Place,South East,CUSHMAN & WAKEFIELD DEBENHAM TIE LEUNG,02/11/2018,"1,196.00",L,80131800,Real estate management services
"Ministry of Housing, Communities and Local Government",Homes England,Economic Assets S&Sw Prog,South West,CUSHMAN & WAKEFIELD DEBENHAM TIE LEUNG,02/11/2018,"2,000.00",L,80131800,Real estate management services
"Ministry of Housing, Communities and Local Government",Homes England,Economic Assets S&Sw Prog,South West,CUSHMAN & WAKEFIELD DEBENHAM TIE LEUNG,02/11/2018,"1,675.00",L,80131800,Real estate management services
"Ministry of Housing, Communities and Local Government",Homes England,Economic Assets S&Sw Prog,South West,CUSHMAN & WAKEFIELD DEBENHAM TIE LEUNG,02/11/2018,"1,375.00",L,80131800,Real estate management services
"Ministry of Housing, Communities and Local Government",Homes England,Economic Assets S&Sw Prog,South West,CUSHMAN & WAKEFIELD DEBENHAM TIE LEUNG,02/11/2018,"2,125.00",L,80131800,Real estate management services
"Ministry of Housing, Communities and Local Government",Homes England,Economic Assets S&Sw Prog,South West,CUSHMAN & WAKEFIELD DEBENHAM TIE LEUNG,02/11/2018,"1,375.00",L,80131800,Real estate management services
"Ministry of Housing, Communities and Local Government",Homes England,Economic Assets S&Sw Prog,South West,CUSHMAN & WAKEFIELD DEBENHAM TIE LEUNG,02/11/2018,"8,421.88",L,80131800,Real estate management services
"Ministry of Housing, Communities and Local Government",Homes England,Economic Assets S&Sw Prog,South West,CUSHMAN & WAKEFIELD DEBENHAM TIE LEUNG,02/11/2018,"1,250.00",L,80131800,Real estate management services
"Ministry of Housing, Communities and Local Government",Homes England,"Blood Centre, Brentwood",East And South East,CUSHMAN & WAKEFIELD DEBENHAM TIE LEUNG,02/11/2018,"3,375.00",L,80131800,Real estate management services
"Ministry of Housing, Communities and Local Government",Homes England,Bury St Edmunds,East And South East,CUSHMAN & WAKEFIELD DEBENHAM TIE LEUNG,02/11/2018,"3,000.00",L,80131800,Real estate management services
"Ministry of Housing, Communities and Local Government",Homes England,East And South East,East And South East,CUSHMAN & WAKEFIELD DEBENHAM TIE LEUNG,02/11/2018,"1,375.00",L,80131800,Real estate management services
"Ministry of Housing, Communities and Local Government",Homes England,East And South East,East And South East,CUSHMAN & WAKEFIELD DEBENHAM TIE LEUNG,02/11/2018,"2,710.00",L,80131800,Real estate management services
"Ministry of Housing, Communities and Local Government",Homes England,East And South East,East And South East,CUSHMAN & WAKEFIELD DEBENHAM TIE LEUNG,02/11/2018,"3,840.00",L,80131800,Real estate management services
"Ministry of Housing, Communities and Local Government",Homes England,Beis - Haughton Grange,North East And Yorkshire,CUSHMAN & WAKEFIELD DEBENHAM TIE LEUNG,02/11/2018,"3,750.00",L,80131800,Real estate management services
"Ministry of Housing, Communities and Local Government",Homes England,Economic Assets Hub Transition,Economic Assets Hub,CUSHMAN & WAKEFIELD DEBENHAM TIE LEUNG,02/11/2018,650,L,80131800,Real estate management services
"Ministry of Housing, Communities and Local Government",Homes England,Economic Assets Hub Transition,Economic Assets Hub,CUSHMAN & WAKEFIELD DEBENHAM TIE LEUNG,05/11/2018,"2,250.00",L,80131800,Real estate management services
"Ministry of Housing, Communities and Local Government",Homes England,Lowestoft Magistrates Court,East And South East,CUSHMAN & WAKEFIELD DEBENHAM TIE LEUNG,05/11/2018,"1,500.00",L,80131800,Real estate management services
"Ministry of Housing, Communities and Local Government",Homes England,Corby Magistrates Court,Midlands,CUSHMAN & WAKEFIELD DEBENHAM TIE LEUNG,05/11/2018,"3,108.00",L,80131800,Real estate management services
"Ministry of Housing, Communities and Local Government",Homes England,Economic Assets Hub Transition,Economic Assets Hub,CUSHMAN & WAKEFIELD DEBENHAM TIE LEUNG,06/11/2018,700,L,80131800,Real estate management services
"Ministry of Housing, Communities and Local Government",Homes England,Land And Regeneration Mh,Programmes,CUSHMAN & WAKEFIELD DEBENHAM TIE LEUNG,06/11/2018,700,L,80131800,Real estate management services
"Ministry of Housing, Communities and Local Government",Homes England,Land And Regeneration Mh,Programmes,CUSHMAN & WAKEFIELD DEBENHAM TIE LEUNG,06/11/2018,"1,500.00",L,80131800,Real estate management services
"Ministry of Housing, Communities and Local Government",Homes England,Economic Assets Hub Transition,Economic Assets Hub,CUSHMAN & WAKEFIELD DEBENHAM TIE LEUNG,06/11/2018,"2,000.00",L,80131800,Real estate management services
"Ministry of Housing, Communities and Local Government",Homes England,Economic Assets Hub Transition,Economic Assets Hub,CUSHMAN & WAKEFIELD DEBENHAM TIE LEUNG,06/11/2018,650,L,80131800,Real estate management services
"Ministry of Housing, Communities and Local Government",Homes England,Economic Assets Nw Prog,North West,CUSHMAN & WAKEFIELD DEBENHAM TIE LEUNG,06/11/2018,"2,000.00",L,80131800,Real estate management services
"Ministry of Housing, Communities and Local Government",Homes England,Economic Assets Hub Transition,Economic Assets Hub,CUSHMAN & WAKEFIELD DEBENHAM TIE LEUNG,07/11/2018,700,L,80131800,Real estate management services
"Ministry of Housing, Communities and Local Government",Homes England,Economic Assets Hub Transition,Economic Assets Hub,CUSHMAN & WAKEFIELD DEBENHAM TIE LEUNG,07/11/2018,700,L,80131800,Real estate management services
"Ministry of Housing, Communities and Local Government",Homes England,Economic Assets Ne-Y Prog,North East And Yorkshire,CUSHMAN & WAKEFIELD DEBENHAM TIE LEUNG,07/11/2018,"2,000.00",L,80131800,Real estate management services
"Ministry of Housing, Communities and Local Government",Homes England,Economic Assets Nw Prog,North West,CUSHMAN & WAKEFIELD DEBENHAM TIE LEUNG,08/11/2018,"5,028.80",L,80131800,Real estate management services
"Ministry of Housing, Communities and Local Government",Homes England,Economic Assets Hub Transition,Economic Assets Hub,CUSHMAN & WAKEFIELD DEBENHAM TIE LEUNG,12/11/2018,700,L,80131800,Real estate management services
"Ministry of Housing, Communities and Local Government",Homes England,Land And Regeneration Mh,Programmes,CUSHMAN & WAKEFIELD DEBENHAM TIE LEUNG,19/11/2018,"10,650.00",L,80131800,Real estate management services
"Ministry of Housing, Communities and Local Government",Homes England,Land And Regeneration Mh,Programmes,CUSHMAN & WAKEFIELD DEBENHAM TIE LEUNG,19/11/2018,"8,630.00",L,80131800,Real estate management services
"Ministry of Housing, Communities and Local Government",Homes England,Land And Regeneration Mh,Programmes,CUSHMAN & WAKEFIELD DEBENHAM TIE LEUNG,19/11/2018,"6,870.00",L,80131800,Real estate management services
"Ministry of Housing, Communities and Local Government",Homes England,Economic Assets Ne-Y Prog,North East And Yorkshire,CUSHMAN & WAKEFIELD DEBENHAM TIE LEUNG,20/11/2018,"1,500.00",L,80131800,Real estate management services
"Ministry of Housing, Communities and Local Government",Homes England,Economic Assets S&Sw Prog,South West,CUSHMAN & WAKEFIELD DEBENHAM TIE LEUNG,23/11/2018,"1,015.28",L,80131800,Real estate management services
"Ministry of Housing, Communities and Local Government",Homes England,Economic Assets Nw Prog,North West,CUSHMAN & WAKEFIELD DEBENHAM TIE LEUNG,26/11/2018,"4,965.00",L,80131800,Real estate management services
"Ministry of Housing, Communities and Local Government",Homes England,East And South East,East And South East,CUSHMAN & WAKEFIELD DEBENHAM TIE LEUNG,26/11/2018,436.61,L,80131800,Real estate management services
"Ministry of Housing, Communities and Local Government",Homes England,Land And Regeneration Mh,Programmes,CUSHMAN & WAKEFIELD DEBENHAM TIE LEUNG,27/11/2018,800,L,80131800,Real estate management services
"Ministry of Housing, Communities and Local Government",Homes England,Economic Assets Hub Transition,Economic Assets Hub,CUSHMAN & WAKEFIELD DEBENHAM TIE LEUNG,27/11/2018,700,L,80131800,Real estate management services
"Ministry of Housing, Communities and Local Government",Homes England,Land And Regeneration Mh,Programmes,CUSHMAN & WAKEFIELD DEBENHAM TIE LEUNG,27/11/2018,800,L,80131800,Real estate management services
"Ministry of Housing, Communities and Local Government",Homes England,Economic Assets Hub Transition,Economic Assets Hub,CUSHMAN & WAKEFIELD DEBENHAM TIE LEUNG,27/11/2018,700,L,80131800,Real estate management services
"Ministry of Housing, Communities and Local Government",Homes England,Economic Assets Hub Transition,Economic Assets Hub,CUSHMAN & WAKEFIELD DEBENHAM TIE LEUNG,27/11/2018,700,L,80131800,Real estate management services
"Ministry of Housing, Communities and Local Government",Homes England,Economic Assets Hub Transition,Economic Assets Hub,CUSHMAN & WAKEFIELD DEBENHAM TIE LEUNG,27/11/2018,700,L,80131800,Real estate management services
"Ministry of Housing, Communities and Local Government",Homes England,Land And Regeneration Mh,Programmes,CUSHMAN & WAKEFIELD DEBENHAM TIE LEUNG,27/11/2018,750,L,80131800,Real estate management services
"Ministry of Housing, Communities and Local Government",Homes England,Land And Regeneration Mh,Programmes,CUSHMAN & WAKEFIELD DEBENHAM TIE LEUNG,27/11/2018,750,L,80131800,Real estate management services
"Ministry of Housing, Communities and Local Government",Homes England,Area Dir Manchester Nw,North West,CUSHMAN & WAKEFIELD DEBENHAM TIE LEUNG,27/11/2018,"1,500.00",L,80131800,Real estate management services
"Ministry of Housing, Communities and Local Government",Homes England,Economic Assets Hub Transition,Economic Assets Hub,CUSHMAN & WAKEFIELD DEBENHAM TIE LEUNG,27/11/2018,500,L,80131800,Real estate management services
"Ministry of Housing, Communities and Local Government",Homes England,Economic Assets Hub Transition,Economic Assets Hub,CUSHMAN & WAKEFIELD DEBENHAM TIE LEUNG,27/11/2018,"1,000.00",L,80131800,Real estate management services
"Ministry of Housing, Communities and Local Government",Homes England,Economic Assets Hub Transition,Economic Assets Hub,CUSHMAN & WAKEFIELD DEBENHAM TIE LEUNG,27/11/2018,"2,000.00",L,80131800,Real estate management services
"Ministry of Housing, Communities and Local Government",Homes England,Economic Assets Hub Transition,Economic Assets Hub,CUSHMAN & WAKEFIELD DEBENHAM TIE LEUNG,29/11/2018,700,L,80131800,Real estate management services
"Ministry of Housing, Communities and Local Government",Homes England,Economic Assets Hub Transition,Economic Assets Hub,CUSHMAN & WAKEFIELD DEBENHAM TIE LEUNG,29/11/2018,700,L,80131800,Real estate management services
"Ministry of Housing, Communities and Local Government",Homes England,Economic Assets Hub Transition,Economic Assets Hub,CUSHMAN & WAKEFIELD DEBENHAM TIE LEUNG,29/11/2018,700,L,80131800,Real estate management services
"Ministry of Housing, Communities and Local Government",Homes England,Economic Assets Hub Transition,Economic Assets Hub,CUSHMAN & WAKEFIELD DEBENHAM TIE LEUNG,29/11/2018,700,L,80131800,Real estate management services
"Ministry of Housing, Communities and Local Government",Homes England,Economic Assets Hub Transition,Economic Assets Hub,CUSHMAN & WAKEFIELD DEBENHAM TIE LEUNG,30/11/2018,"2,750.00",L,80131800,Real estate management services
"Ministry of Housing, Communities and Local Government",Homes England,Communications Hex,Executive Office,DARWIN PRESS,09/11/2018,280,S,80141600,Sales and business promotion activities
"Ministry of Housing, Communities and Local Government",Homes England,Communications Hex,Executive Office,DARWIN PRESS,12/11/2018,328,S,80141600,Sales and business promotion activities
"Ministry of Housing, Communities and Local Government",Homes England,Communications Hex,Executive Office,DARWIN PRESS,12/11/2018,468,S,80141600,Sales and business promotion activities
"Ministry of Housing, Communities and Local Government",Homes England,Communications Hex,Executive Office,DARWIN PRESS,12/11/2018,"1,624.00",S,80141600,Sales and business promotion activities
"Ministry of Housing, Communities and Local Government",Homes England,Communications Hex,Executive Office,DARWIN PRESS,12/11/2018,"1,688.00",S,80141600,Sales and business promotion activities
"Ministry of Housing, Communities and Local Government",Homes England,Communications Hex,Executive Office,DARWIN PRESS,15/11/2018,"2,823.00",S,80141600,Sales and business promotion activities
"Ministry of Housing, Communities and Local Government",Homes England,Communications Hex,Executive Office,DEPARTMENT OF INTERNATIONAL TRADE,05/11/2018,"40,000.00",G,90111600,Meeting facilities
"Ministry of Housing, Communities and Local Government",Homes England,Area Dir Mids Se Mids Mk Tarri,Midlands,DSM DEMOLITION LIMITED,09/11/2018,"183,908.16",M,72141500,Land preparation services
"Ministry of Housing, Communities and Local Government",Homes England,Human Resources-Sgh,Finance & Corporate Services,DODS,27/11/2018,"1,575.00",L,94101500,Business associations
"Ministry of Housing, Communities and Local Government",Homes England,Change Management Team Bpr,Executive Office,DESIGN FOR HOMES,30/11/2018,"5,831.22",L,86101800,In service training and manpower development
"Ministry of Housing, Communities and Local Government",Homes England,Economic Assets Hub Transition,Economic Assets Hub,DRIFFIELD DEVCO LLP,09/11/2018,"503,285.00",,N/A,Loans
"Ministry of Housing, Communities and Local Government",Homes England,Area Dir Mids Se Mids Mk Tarri,Midlands,DWF LLP,01/11/2018,"1,406.60",L,80121600,Business law services
"Ministry of Housing, Communities and Local Government",Homes England,Area Dir Mids Se Mids Mk Tarri,Midlands,DWF LLP,01/11/2018,"1,732.50",L,80121600,Business law services
"Ministry of Housing, Communities and Local Government",Homes England,Land And Regeneration Mh,Programmes,DWF LLP,02/11/2018,"1,711.00",L,80121600,Business law services
"Ministry of Housing, Communities and Local Government",Homes England,Economic Assets E-Se Progs,East And South East,DWF LLP,05/11/2018,514.5,L,80121600,Business law services
"Ministry of Housing, Communities and Local Government",Homes England,Economic Assets E-Se Progs,East And South East,DWF LLP,05/11/2018,762.9,L,80121600,Business law services
"Ministry of Housing, Communities and Local Government",Homes England,East And South East,East And South East,DWF LLP,05/11/2018,650,L,80121600,Business law services
"Ministry of Housing, Communities and Local Government",Homes England,Economic Assets Ne-Y Prog,North East And Yorkshire,DWF LLP,06/11/2018,"3,150.00",L,80121600,Business law services
"Ministry of Housing, Communities and Local Government",Homes England,Economic Assets Ne-Y Prog,North East And Yorkshire,DWF LLP,06/11/2018,"1,318.00",L,80121600,Business law services
"Ministry of Housing, Communities and Local Government",Homes England,Consett Magistrates' Court,North East And Yorkshire,DWF LLP,07/11/2018,"1,009.00",L,80121600,Business law services
"Ministry of Housing, Communities and Local Government",Homes England,Economic Assets Nw Prog,North West,DWF LLP,08/11/2018,"3,378.69",L,80121600,Business law services
"Ministry of Housing, Communities and Local Government",Homes England,Ne-Y North East Projects,North East And Yorkshire,DWF LLP,08/11/2018,506.5,L,80121600,Business law services
"Ministry of Housing, Communities and Local Government",Homes England,Economic Assets S&Sw Prog,South West,DWF LLP,14/11/2018,"2,595.50",L,80121600,Business law services
"Ministry of Housing, Communities and Local Government",Homes England,Economic Assets Ne-Y Prog,North East And Yorkshire,DWF LLP,14/11/2018,755,L,80121600,Business law services
"Ministry of Housing, Communities and Local Government",Homes England,Economic Assets Ne-Y Prog,North East And Yorkshire,DWF LLP,16/11/2018,"1,245.00",L,80121600,Business law services
"Ministry of Housing, Communities and Local Government",Homes England,Economic Assets Nw Prog,North West,DWF LLP,23/11/2018,"1,702.01",L,80121600,Business law services
"Ministry of Housing, Communities and Local Government",Homes England,Economic Assets Ne-Y Prog,North East And Yorkshire,DWF LLP,23/11/2018,"10,734.84",L,80121600,Business law services
"Ministry of Housing, Communities and Local Government",Homes England,Economic Assets Hub Transition,Economic Assets Hub,DWF LLP,27/11/2018,500,L,80121600,Business law services
"Ministry of Housing, Communities and Local Government",Homes England,Economic Assets Ne-Y Prog,North East And Yorkshire,DWF LLP,27/11/2018,"1,992.00",L,80121600,Business law services
"Ministry of Housing, Communities and Local Government",Homes England,Area Dir Mids Se Mids Mk Tarri,Midlands,DWF LLP,29/11/2018,"2,109.00",L,80121600,Business law services
"Ministry of Housing, Communities and Local Government",Homes England,Area Dir Mids Se Mids Mk Tarri,Midlands,DWF LLP,29/11/2018,"3,009.97",L,80121600,Business law services
"Ministry of Housing, Communities and Local Government",Homes England,Area Dir Mids Se Mids Mk Tarri,Midlands,DWF LLP,30/11/2018,"1,841.50",L,80121600,Business law services
"Ministry of Housing, Communities and Local Government",Homes England,Economic Assets Ne-Y Prog,North East And Yorkshire,DWF LLP,30/11/2018,"1,304.00",L,80121600,Business law services
"Ministry of Housing, Communities and Local Government",Homes England,Comms Transition Budget,Finance & Corporate Services,DEAN TAXI LIMITED,07/11/2018,"1,049.20",S,78111800,Passenger road transportation
"Ministry of Housing, Communities and Local Government",Homes England,Economic Assets Ne-Y Prog,North East And Yorkshire,DWW CONTRACTING SERVICES LTD,08/11/2018,"1,486.00",S,72101500,Building maintenance and repair services
"Ministry of Housing, Communities and Local Government",Homes England,Economic Assets Ne-Y Prog,North East And Yorkshire,DWW CONTRACTING SERVICES LTD,08/11/2018,285,S,72101500,Building maintenance and repair services
"Ministry of Housing, Communities and Local Government",Homes England,Economic Assets Ne-Y Prog,North East And Yorkshire,DWW CONTRACTING SERVICES LTD,08/11/2018,684,S,72101500,Building maintenance and repair services
"Ministry of Housing, Communities and Local Government",Homes England,Economic Assets Ne-Y Prog,North East And Yorkshire,DURHAM COUNTY COUNCIL,01/11/2018,"26,700.00",G,80131800,Real estate management services
"Ministry of Housing, Communities and Local Government",Homes England,Economic Assets Ne-Y Prog,North East And Yorkshire,DARCY SPILLCARE,23/11/2018,"1,090.00",M,72102900,Facility maintenance and repair services
"Ministry of Housing, Communities and Local Government",Homes England,It Sgh,Finance & Corporate Services,GEOMETRIC RESULTS INTERNATIONAL LTD,01/11/2018,"1,363.70",L,80111600,Temporary personnel services
"Ministry of Housing, Communities and Local Government",Homes England,It Sgh,Finance & Corporate Services,GEOMETRIC RESULTS INTERNATIONAL LTD,01/11/2018,"1,363.70",L,80111600,Temporary personnel services
"Ministry of Housing, Communities and Local Government",Homes England,It Sgh,Finance & Corporate Services,GEOMETRIC RESULTS INTERNATIONAL LTD,01/11/2018,"2,272.83",L,80111600,Temporary personnel services
"Ministry of Housing, Communities and Local Government",Homes England,It Sgh,Finance & Corporate Services,GEOMETRIC RESULTS INTERNATIONAL LTD,01/11/2018,"1,818.27",L,80111600,Temporary personnel services
"Ministry of Housing, Communities and Local Government",Homes England,It Sgh,Finance & Corporate Services,GEOMETRIC RESULTS INTERNATIONAL LTD,01/11/2018,"2,272.83",L,80111600,Temporary personnel services
"Ministry of Housing, Communities and Local Government",Homes England,Finance Sgh,Finance & Corporate Services,GEOMETRIC RESULTS INTERNATIONAL LTD,07/11/2018,569.68,L,80111600,Temporary personnel services
"Ministry of Housing, Communities and Local Government",Homes England,Finance Sgh,Finance & Corporate Services,GEOMETRIC RESULTS INTERNATIONAL LTD,07/11/2018,455.74,L,80111600,Temporary personnel services
"Ministry of Housing, Communities and Local Government",Homes England,Finance Sgh,Finance & Corporate Services,GEOMETRIC RESULTS INTERNATIONAL LTD,13/11/2018,544.92,L,80111600,Temporary personnel services
"Ministry of Housing, Communities and Local Government",Homes England,Finance Sgh,Finance & Corporate Services,GEOMETRIC RESULTS INTERNATIONAL LTD,14/11/2018,530.83,L,80111600,Temporary personnel services
"Ministry of Housing, Communities and Local Government",Homes England,Finance Sgh,Finance & Corporate Services,GEOMETRIC RESULTS INTERNATIONAL LTD,21/11/2018,530.83,L,80111600,Temporary personnel services
"Ministry of Housing, Communities and Local Government",Homes England,Finance Sgh,Finance & Corporate Services,GEOMETRIC RESULTS INTERNATIONAL LTD,23/11/2018,"1,865.38",L,80111600,Temporary personnel services
"Ministry of Housing, Communities and Local Government",Homes England,Finance Sgh,Finance & Corporate Services,GEOMETRIC RESULTS INTERNATIONAL LTD,23/11/2018,"1,861.18",L,80111600,Temporary personnel services
"Ministry of Housing, Communities and Local Government",Homes England,Finance Sgh,Finance & Corporate Services,GEOMETRIC RESULTS INTERNATIONAL LTD,27/11/2018,"1,425.92",L,80111600,Temporary personnel services
"Ministry of Housing, Communities and Local Government",Homes England,Finance Sgh,Finance & Corporate Services,GEOMETRIC RESULTS INTERNATIONAL LTD,27/11/2018,"1,425.92",L,80111600,Temporary personnel services
"Ministry of Housing, Communities and Local Government",Homes England,Economic Assets S&Sw Prog,South West,ENQUIN ENVIRONMENTAL LIMITED,23/11/2018,407.5,S,80131800,Real estate management services
"Ministry of Housing, Communities and Local Government",Homes England,East And South East,East And South East,WOOD ENVIRONMENT & INFRASTRUCTURE SOLUTIONS,07/11/2018,"14,983.60",L,80131800,Real estate management services
"Ministry of Housing, Communities and Local Government",Homes England,Fareham Magistrates Court,East And South East,WOOD ENVIRONMENT & INFRASTRUCTURE SOLUTIONS,07/11/2018,"3,000.00",L,80131800,Real estate management services
"Ministry of Housing, Communities and Local Government",Homes England,South West Of Eng-Glouc-Oxford,South West,WOOD ENVIRONMENT & INFRASTRUCTURE SOLUTIONS,08/11/2018,"14,389.86",L,80131800,Real estate management services
"Ministry of Housing, Communities and Local Government",Homes England,East And South East,East And South East,WOOD ENVIRONMENT & INFRASTRUCTURE SOLUTIONS,12/11/2018,"5,000.00",L,80131800,Real estate management services
"Ministry of Housing, Communities and Local Government",Homes England,East And South East,East And South East,WOOD ENVIRONMENT & INFRASTRUCTURE SOLUTIONS,12/11/2018,"4,943.00",L,80131800,Real estate management services
"Ministry of Housing, Communities and Local Government",Homes England,Area Dir Mids Se Mids Mk Tarri,Midlands,WOOD ENVIRONMENT & INFRASTRUCTURE SOLUTIONS,12/11/2018,"7,627.50",L,80131800,Real estate management services
"Ministry of Housing, Communities and Local Government",Homes England,Area Dir Mids Se Mids Mk Tarri,Midlands,WOOD ENVIRONMENT & INFRASTRUCTURE SOLUTIONS,13/11/2018,"10,191.51",L,80131800,Real estate management services
"Ministry of Housing, Communities and Local Government",Homes England,Area Dir Mids Se Mids Mk Tarri,Midlands,WOOD ENVIRONMENT & INFRASTRUCTURE SOLUTIONS,13/11/2018,"12,815.98",L,80131800,Real estate management services
"Ministry of Housing, Communities and Local Government",Homes England,Area Dir Mids Se Mids Mk Tarri,Midlands,WOOD ENVIRONMENT & INFRASTRUCTURE SOLUTIONS,13/11/2018,"12,450.00",L,80131800,Real estate management services
"Ministry of Housing, Communities and Local Government",Homes England,Kickstart Yorks & Humber,Programmes,WOOD ENVIRONMENT & INFRASTRUCTURE SOLUTIONS,26/11/2018,"2,470.23",L,80131800,Real estate management services
"Ministry of Housing, Communities and Local Government",Homes England,Area Dir Mids Se Mids Mk Tarri,Midlands,WOOD ENVIRONMENT & INFRASTRUCTURE SOLUTIONS,26/11/2018,"1,279.54",L,80131800,Real estate management services
"Ministry of Housing, Communities and Local Government",Homes England,Comms Transition Budget,Finance & Corporate Services,EDE'S (UK) LTD.,13/11/2018,"3,251.80",L,72102900,Facility maintenance and repair services
"Ministry of Housing, Communities and Local Government",Homes England,Economic Assets S&Sw Prog,South West,ENVIROCHEM ANALYTICAL LABORATORIES LTD,21/11/2018,"6,230.00",L,77101500,Environmental auditing
"Ministry of Housing, Communities and Local Government",Homes England,Human Resources-Sgh,Finance & Corporate Services,REED BUSINESS INFORMATION LIMITED,13/11/2018,"1,000.00",M,82101500,Print advertising
"Ministry of Housing, Communities and Local Government",Homes England,Human Resources-Sgh,Finance & Corporate Services,REED BUSINESS INFORMATION LIMITED,13/11/2018,"1,682.00",M,82101500,Print advertising
"Ministry of Housing, Communities and Local Government",Homes England,Human Resources-Sgh,Finance & Corporate Services,REED BUSINESS INFORMATION LIMITED,21/11/2018,"1,682.00",M,82101500,Print advertising
"Ministry of Housing, Communities and Local Government",Homes England,Facilities Ashford,Finance & Corporate Services,ENTERPRISE RENT A CAR,13/11/2018,350.24,L,25101500,Passenger motor vehicles
"Ministry of Housing, Communities and Local Government",Homes England,Human Resources-Ah,Finance & Corporate Services,EDENRED (UK GROUP) LTD,07/11/2018,550,L,14111803,Vouchers
"Ministry of Housing, Communities and Local Government",Homes England,Economic Assets Hub Transition,Economic Assets Hub,EASINGWOLD DEVCO LLP,08/11/2018,"863,243.00",,N/A,Loans
"Ministry of Housing, Communities and Local Government",Homes England,Economic Assets Hub Transition,Economic Assets Hub,EASINGWOLD DEVCO LLP,28/11/2018,"347,237.00",,N/A,Loans
"Ministry of Housing, Communities and Local Government",Homes England,It Sgh,Finance & Corporate Services,EE LTD,22/11/2018,"11,817.82",L,83101600,Mobile communications services
"Ministry of Housing, Communities and Local Government",Homes England,It Sgh,Finance & Corporate Services,EE LTD,22/11/2018,"20,540.00",L,83101600,Mobile communications services
"Ministry of Housing, Communities and Local Government",Homes England,Economic Assets Nw Prog,North West,EVERSHEDS CLIENT ACCOUNT,21/11/2018,"6,446.57",L,80121600,Business law services
"Ministry of Housing, Communities and Local Government",Homes England,Ad Manchester Arpley,North West,EVERSHEDS CLIENT ACCOUNT,21/11/2018,"3,500.00",L,80121600,Business law services
"Ministry of Housing, Communities and Local Government",Homes England,Economic Assets Nw Prog,North West,EVERSHEDS CLIENT ACCOUNT,27/11/2018,"13,044.20",L,80121600,Business law services
"Ministry of Housing, Communities and Local Government",Homes England,Kickstart North West,Programmes,EVERSHEDS CLIENT ACCOUNT,27/11/2018,627,L,80121600,Business law services
"Ministry of Housing, Communities and Local Government",Homes England,Economic Assets Nw Prog,North West,EA FORMBY (NW) LIMITED,09/11/2018,"2,504.42",S,72101500,Building maintenance and repair services
"Ministry of Housing, Communities and Local Government",Homes England,Land And Regeneration Mh,Programmes,E-CAREERS LIMITED,27/11/2018,"5,833.40",M,86101800,In service training and manpower development
"Ministry of Housing, Communities and Local Government",Homes England,Economic Assets Nw Prog,North West,ECOLOGICAL LAND MANGEMENT LTD,02/11/2018,560,S,72101500,Building maintenance and repair services
"Ministry of Housing, Communities and Local Government",Homes England,Economic Assets Nw Prog,North West,ECOLOGICAL LAND MANGEMENT LTD,05/11/2018,800,S,72101500,Building maintenance and repair services
"Ministry of Housing, Communities and Local Government",Homes England,Economic Assets Nw Prog,North West,ECOLOGICAL LAND MANGEMENT LTD,05/11/2018,"1,120.00",S,72101500,Building maintenance and repair services
"Ministry of Housing, Communities and Local Government",Homes England,Economic Assets Nw Prog,North West,ECOLOGICAL LAND MANGEMENT LTD,29/11/2018,840,S,72101500,Building maintenance and repair services
"Ministry of Housing, Communities and Local Government",Homes England,Economic Assets Hub Transition,Economic Assets Hub,EDG PROPERTY COVENTRY LTD,16/11/2018,"711,656.00",,N/A,Loans
"Ministry of Housing, Communities and Local Government",Homes England,Economic Assets Hub Transition,Economic Assets Hub,ERRIS HOMES (BARNSLEY)LTD,30/11/2018,"218,952.93",,N/A,Loans
"Ministry of Housing, Communities and Local Government",Homes England,Area Dir Mids Se Mids Mk Tarri,Midlands,ENGIE POWER LIMITED,29/11/2018,"16,376.97",L,83101800,Electric utilities
"Ministry of Housing, Communities and Local Government",Homes England,Bis - Compton Site,South West,EDF ENERGY CUST FIELD SERVICES,16/11/2018,432,L,83101800,Electric utilities
"Ministry of Housing, Communities and Local Government",Homes England,East And South East,East And South East,EVERSHEDS SUTHERLAND LLP CLIENT ACCOUNT,23/11/2018,"225,000.00",,N/A,Acquisition
"Ministry of Housing, Communities and Local Government",Homes England,Area Dir Mids Se Mids Mk Tarri,Midlands,ENVIROCARE MAINTENACE SOLUTIONS LIMITED,20/11/2018,"1,445.00",S,72101500,Building maintenance and repair services
"Ministry of Housing, Communities and Local Government",Homes England,HCA Investment Invest FRY BDG,Programmes,ESCAPE REALITY BIRMINGHAM,15/11/2018,261.1,S,90111600,Meeting facilities
"Ministry of Housing, Communities and Local Government",Homes England,Dh - Peasley Cross,North West,E3P,21/11/2018,500,S,77101500,Environmental auditing
"Ministry of Housing, Communities and Local Government",Homes England,Area Dir Mids Se Mids Mk Tarri,Midlands,EAST STAFFORDSHIRE BOROUGH COUNCIL,20/11/2018,326.87,G,80131500,Lease and rental of property or building
"Ministry of Housing, Communities and Local Government",Homes England,Human Resources-Sgh,Finance & Corporate Services,FRONTIER SOFTWARE PLC,13/11/2018,"1,800.00",S,81112200,Software maintenance and support
"Ministry of Housing, Communities and Local Government",Homes England,Economic Assets Nw Prog,North West,AECOM LIMITED,01/11/2018,"7,572.81",L,72101500,Building maintenance and repair services
"Ministry of Housing, Communities and Local Government",Homes England,Economic Assets S&Sw Prog,South West,AECOM LIMITED,05/11/2018,"11,325.00",L,72101500,Building maintenance and repair services
"Ministry of Housing, Communities and Local Government",Homes England,Land And Regeneration Mh,Programmes,AECOM LIMITED,05/11/2018,"1,500.00",L,72101500,Building maintenance and repair services
"Ministry of Housing, Communities and Local Government",Homes England,South West Hants-Iow-Dorset-Bu,South West,AECOM LIMITED,07/11/2018,"4,604.00",L,72101500,Building maintenance and repair services
"Ministry of Housing, Communities and Local Government",Homes England,South West Hants-Iow-Dorset-Bu,South West,AECOM LIMITED,07/11/2018,"1,056.50",L,72101500,Building maintenance and repair services
"Ministry of Housing, Communities and Local Government",Homes England,LIF LS Loans Private additions,Programmes,AECOM LIMITED,07/11/2018,"4,542.00",L,72101500,Building maintenance and repair services
"Ministry of Housing, Communities and Local Government",Homes England,Assistant Chief Exec Arpley Hs,Executive Office,AECOM LIMITED,07/11/2018,"35,978.00",L,72101500,Building maintenance and repair services
"Ministry of Housing, Communities and Local Government",Homes England,Assistant Chief Exec Arpley Hs,Executive Office,AECOM LIMITED,07/11/2018,"35,978.00",L,72101500,Building maintenance and repair services
"Ministry of Housing, Communities and Local Government",Homes England,Kickstart Yorks & Humber,Programmes,AECOM LIMITED,08/11/2018,"6,434.74",L,72101500,Building maintenance and repair services
"Ministry of Housing, Communities and Local Government",Homes England,East And South East,East And South East,AECOM LIMITED,09/11/2018,"190,000.00",L,72101500,Building maintenance and repair services
"Ministry of Housing, Communities and Local Government",Homes England,East And South East,East And South East,AECOM LIMITED,09/11/2018,"190,000.00",L,72101500,Building maintenance and repair services
"Ministry of Housing, Communities and Local Government",Homes England,Economic Assets S&Sw Prog,South West,AECOM LIMITED,09/11/2018,"9,950.00",L,72101500,Building maintenance and repair services
"Ministry of Housing, Communities and Local Government",Homes England,Kickstart Yorks & Humber,Programmes,AECOM LIMITED,13/11/2018,"1,916.98",L,72101500,Building maintenance and repair services
"Ministry of Housing, Communities and Local Government",Homes England,Economic Assets Nw Prog,North West,AECOM LIMITED,14/11/2018,"4,000.00",L,72101500,Building maintenance and repair services
"Ministry of Housing, Communities and Local Government",Homes England,East And Se Cambs Herts And Bu,East And South East,AECOM LIMITED,19/11/2018,"60,000.00",L,72101500,Building maintenance and repair services
"Ministry of Housing, Communities and Local Government",Homes England,Economic Assets S&Sw Prog,South West,AECOM LIMITED,19/11/2018,"15,000.00",L,72101500,Building maintenance and repair services
"Ministry of Housing, Communities and Local Government",Homes England,Kickstart Yorks & Humber,Programmes,AECOM LIMITED,20/11/2018,"1,220.00",L,72101500,Building maintenance and repair services
"Ministry of Housing, Communities and Local Government",Homes England,Land And Regeneration Mh,Programmes,AECOM LIMITED,20/11/2018,"1,500.00",L,72101500,Building maintenance and repair services
"Ministry of Housing, Communities and Local Government",Homes England,Bis - Compton Site,South West,AECOM LIMITED,22/11/2018,"14,437.91",L,72101500,Building maintenance and repair services
"Ministry of Housing, Communities and Local Government",Homes England,Economic Assets Ne-Y Prog,North East And Yorkshire,AECOM LIMITED,23/11/2018,"1,012.50",L,72101500,Building maintenance and repair services
"Ministry of Housing, Communities and Local Government",Homes England,Economic Assets Nw Prog,North West,AECOM LIMITED,26/11/2018,"2,936.54",L,72101500,Building maintenance and repair services
"Ministry of Housing, Communities and Local Government",Homes England,East And South East,East And South East,AECOM LIMITED,26/11/2018,"1,500.00",L,72101500,Building maintenance and repair services
"Ministry of Housing, Communities and Local Government",Homes England,Ne-Y North East Projects,North East And Yorkshire,AECOM LIMITED,26/11/2018,"3,800.00",L,72101500,Building maintenance and repair services
"Ministry of Housing, Communities and Local Government",Homes England,Ne-Yh North East,North East And Yorkshire,AECOM LIMITED,26/11/2018,"5,915.25",L,72101500,Building maintenance and repair services
"Ministry of Housing, Communities and Local Government",Homes England,Assistant Chief Exec Arpley Hs,Executive Office,AECOM LIMITED,26/11/2018,"53,967.00",L,72101500,Building maintenance and repair services
"Ministry of Housing, Communities and Local Government",Homes England,Economic Assets Ne-Y Prog,North East And Yorkshire,AECOM LIMITED,27/11/2018,"2,953.85",L,72101500,Building maintenance and repair services
"Ministry of Housing, Communities and Local Government",Homes England,Nat Brownfield Strat National,Programmes,AECOM LIMITED,29/11/2018,"25,169.12",L,72101500,Building maintenance and repair services
"Ministry of Housing, Communities and Local Government",Homes England,Economic Assets Nw Prog,North West,AECOM LIMITED,29/11/2018,"2,944.75",L,72101500,Building maintenance and repair services
"Ministry of Housing, Communities and Local Government",Homes England,Economic Assets Nw Prog,North West,AECOM LIMITED,29/11/2018,"6,849.94",L,72101500,Building maintenance and repair services
"Ministry of Housing, Communities and Local Government",Homes England,Sturton Place,South East,FOXLEYS LTD,29/11/2018,330,S,72101500,Building maintenance and repair services
"Ministry of Housing, Communities and Local Government",Homes England,Nat Brownfield Strat National,Programmes,SAVILLS UK LIMITED,02/11/2018,250,L,80131800,Real estate management services
"Ministry of Housing, Communities and Local Government",Homes England,Nat Brownfield Strat National,Programmes,SAVILLS UK LIMITED,02/11/2018,"3,000.00",L,80131800,Real estate management services
"Ministry of Housing, Communities and Local Government",Homes England,Nat Brownfield Strat National,Programmes,SAVILLS UK LIMITED,05/11/2018,887.89,L,80131800,Real estate management services
"Ministry of Housing, Communities and Local Government",Homes England,Economic Assets E-Se Progs,East And South East,SAVILLS UK LIMITED,07/11/2018,"4,500.00",L,80131800,Real estate management services
"Ministry of Housing, Communities and Local Government",Homes England,Economic Assets S&Sw Prog,South West,SAVILLS UK LIMITED,08/11/2018,"2,500.00",L,80131800,Real estate management services
"Ministry of Housing, Communities and Local Government",Homes England,East And South East,East And South East,SAVILLS UK LIMITED,15/11/2018,"4,500.00",L,80131800,Real estate management services
"Ministry of Housing, Communities and Local Government",Homes England,Economic Assets Hub Transition,Economic Assets Hub,SAVILLS UK LIMITED,19/11/2018,"45,000.00",L,80131800,Real estate management services
"Ministry of Housing, Communities and Local Government",Homes England,Area Dir Mids Se Mids Mk Tarri,Midlands,SAVILLS UK LIMITED,21/11/2018,"3,360.00",L,80131800,Real estate management services
"Ministry of Housing, Communities and Local Government",Homes England,Lodge Hill,East And South East,SAVILLS UK LIMITED,23/11/2018,700,L,80131800,Real estate management services
"Ministry of Housing, Communities and Local Government",Homes England,Economic Assets Nw Prog,North West,SAVILLS UK LIMITED,27/11/2018,"6,000.00",L,80131800,Real estate management services
"Ministry of Housing, Communities and Local Government",Homes England,Change Management Team Bpr,Executive Office,SAVILLS UK LIMITED,27/11/2018,"66,000.00",L,80131800,Real estate management services
"Ministry of Housing, Communities and Local Government",Homes England,Economic Assets Hub Transition,Economic Assets Hub,SAVILLS UK LIMITED,29/11/2018,"2,500.00",L,80131800,Real estate management services
"Ministry of Housing, Communities and Local Government",Homes England,Area Dir Mids Se Mids Mk Tarri,Midlands,SAVILLS UK LIMITED,29/11/2018,"2,000.00",L,80131800,Real estate management services
"Ministry of Housing, Communities and Local Government",Homes England,Economic Assets Hub Transition,Economic Assets Hub,FAIRBRIDGE DEVELOPMENTS LTD,14/11/2018,"1,091,016.00",,N/A,Loans
"Ministry of Housing, Communities and Local Government",Homes England,Economic Assets Hub Transition,Economic Assets Hub,FORGE WEIR VIEW LIMITED,02/11/2018,"296,959.00",,N/A,Loans
"Ministry of Housing, Communities and Local Government",Homes England,Economic Assets Hub Transition,Economic Assets Hub,FOXGLOVE INVESTMENTS HOMES LIMITED,21/11/2018,"83,684.00",,N/A,Loans
"Ministry of Housing, Communities and Local Government",Homes England,Economic Assets S&Sw Prog,South West,R FOX T/A SOUTHCOAST MAINTENANCE,09/11/2018,"1,000.00",S,72101500,Building maintenance and repair services
"Ministry of Housing, Communities and Local Government",Homes England,Economic Assets S&Sw Prog,South West,R FOX T/A SOUTHCOAST MAINTENANCE,09/11/2018,"1,250.00",S,72101500,Building maintenance and repair services
"Ministry of Housing, Communities and Local Government",Homes England,Economic Assets S&Sw Prog,South West,R FOX T/A SOUTHCOAST MAINTENANCE,09/11/2018,800,S,72101500,Building maintenance and repair services
"Ministry of Housing, Communities and Local Government",Homes England,Economic Assets S&Sw Prog,South West,R FOX T/A SOUTHCOAST MAINTENANCE,09/11/2018,900,S,72101500,Building maintenance and repair services
"Ministry of Housing, Communities and Local Government",Homes England,Economic Assets S&Sw Prog,South West,R FOX T/A SOUTHCOAST MAINTENANCE,21/11/2018,"4,500.00",S,72101500,Building maintenance and repair services
"Ministry of Housing, Communities and Local Government",Homes England,Economic Assets S&Sw Prog,South West,R FOX T/A SOUTHCOAST MAINTENANCE,21/11/2018,"12,000.00",S,72101500,Building maintenance and repair services
"Ministry of Housing, Communities and Local Government",Homes England,Economic Assets S&Sw Prog,South West,R FOX T/A SOUTHCOAST MAINTENANCE,23/11/2018,"22,500.00",S,72101500,Building maintenance and repair services
"Ministry of Housing, Communities and Local Government",Homes England,Defra - Luddington,Midlands,FALCON SECURITY,06/11/2018,"1,560.00",M,92121500,Guard services
"Ministry of Housing, Communities and Local Government",Homes England,Defra - Luddington,Midlands,FALCON SECURITY,08/11/2018,"1,120.00",M,92121500,Guard services
"Ministry of Housing, Communities and Local Government",Homes England,Beis - Haughton Grange,North East And Yorkshire,FALCON SECURITY,16/11/2018,"16,368.68",M,92121500,Guard services
"Ministry of Housing, Communities and Local Government",Homes England,East And South East,East And South East,FALCON SECURITY,16/11/2018,"19,818.40",M,92121500,Guard services
"Ministry of Housing, Communities and Local Government",Homes England,Economic Assets S&Sw Prog,South West,FOREST OF DEAN DISTRICT COUNCIL,16/11/2018,"1,037.73",G,80131500,Lease and rental of property or building
"Ministry of Housing, Communities and Local Government",Homes England,Change Management Team Bpr,Executive Office,FUTUREGOV LTD,02/11/2018,"3,227.72",S,80101500,Business and corporate management consultation services�
"Ministry of Housing, Communities and Local Government",Homes England,Change Management Team Bpr,Executive Office,FUTUREGOV LTD,20/11/2018,"430,650.00",S,80101500,Business and corporate management consultation services�
"Ministry of Housing, Communities and Local Government",Homes England,Wrest Park Area 3,East And South East,FIRST CHOICE CLEANING & MAINTENANCE LTD,29/11/2018,"1,595.00",S,72153501,Building exterior cleaning service  
"Ministry of Housing, Communities and Local Government",Homes England,Wrest Park Area 3,East And South East,FIRST CHOICE CLEANING & MAINTENANCE LTD,29/11/2018,"1,435.00",S,72153501,Building exterior cleaning service  
"Ministry of Housing, Communities and Local Government",Homes England,Wrest Park Area 3,East And South East,FIRST CHOICE CLEANING & MAINTENANCE LTD,29/11/2018,"1,975.00",S,72153501,Building exterior cleaning service  
"Ministry of Housing, Communities and Local Government",Homes England,Wrest Park Area 3,East And South East,FIRST CHOICE CLEANING & MAINTENANCE LTD,29/11/2018,"2,650.00",S,72153501,Building exterior cleaning service  
"Ministry of Housing, Communities and Local Government",Homes England,Wrest Park Area 3,East And South East,FIRST CHOICE CLEANING & MAINTENANCE LTD,29/11/2018,"1,985.00",S,72153501,Building exterior cleaning service  
"Ministry of Housing, Communities and Local Government",Homes England,Wrest Park Area 3,East And South East,FIRST CHOICE CLEANING & MAINTENANCE LTD,29/11/2018,850,S,72153501,Building exterior cleaning service  
"Ministry of Housing, Communities and Local Government",Homes England,Wrest Park Area 3,East And South East,FIRST CHOICE CLEANING & MAINTENANCE LTD,29/11/2018,"1,560.00",S,72153501,Building exterior cleaning service  
"Ministry of Housing, Communities and Local Government",Homes England,Wrest Park Area 3,East And South East,FIRST CHOICE CLEANING & MAINTENANCE LTD,29/11/2018,"1,385.00",S,72153501,Building exterior cleaning service  
"Ministry of Housing, Communities and Local Government",Homes England,Economic Assets S&Sw Prog,South West,FRISKA LTD.,12/11/2018,602.44,S,90101600,Banquet and catering services
"Ministry of Housing, Communities and Local Government",Homes England,Economic Assets Hub Transition,Economic Assets Hub,FLOUR DEVELOPMENTS LIMITED,14/11/2018,"331,525.13",,N/A,Loans
"Ministry of Housing, Communities and Local Government",Homes England,Nat Brownfield Strat National,Programmes,F T GEARING L/S LTD,29/11/2018,600,M,72101500,Building maintenance and repair services
"Ministry of Housing, Communities and Local Government",Homes England,Hinckley Mc,Midlands,GVA GRIMLEY,01/11/2018,"6,806.46",L,80131800,Real estate management services
"Ministry of Housing, Communities and Local Government",Homes England,Land And Regeneration Mh,Programmes,GVA GRIMLEY,01/11/2018,750,L,80131800,Real estate management services
"Ministry of Housing, Communities and Local Government",Homes England,Area Dir Mids Se Mids Mk Tarri,Midlands,GVA GRIMLEY,02/11/2018,600,L,80131800,Real estate management services
"Ministry of Housing, Communities and Local Government",Homes England,Area Dir Mids Se Mids Mk Tarri,Midlands,GVA GRIMLEY,02/11/2018,400,L,80131800,Real estate management services
"Ministry of Housing, Communities and Local Government",Homes England,Area Dir Mids Se Mids Mk Tarri,Midlands,GVA GRIMLEY,02/11/2018,"3,000.00",L,80131800,Real estate management services
"Ministry of Housing, Communities and Local Government",Homes England,East And Se Cambs Herts And Bu,East And South East,GVA GRIMLEY,02/11/2018,"3,500.00",L,80131800,Real estate management services
"Ministry of Housing, Communities and Local Government",Homes England,East And South East,East And South East,GVA GRIMLEY,02/11/2018,"6,500.00",L,80131800,Real estate management services
"Ministry of Housing, Communities and Local Government",Homes England,Land And Regeneration Mh,Programmes,GVA GRIMLEY,05/11/2018,"1,900.00",L,80131800,Real estate management services
"Ministry of Housing, Communities and Local Government",Homes England,East And South East,East And South East,GVA GRIMLEY,05/11/2018,"2,375.00",L,80131800,Real estate management services
"Ministry of Housing, Communities and Local Government",Homes England,Land And Regeneration Mh,Programmes,GVA GRIMLEY,05/11/2018,900,L,80131800,Real estate management services
"Ministry of Housing, Communities and Local Government",Homes England,Land And Regeneration Mh,Programmes,GVA GRIMLEY,05/11/2018,750,L,80131800,Real estate management services
"Ministry of Housing, Communities and Local Government",Homes England,Land And Regeneration Mh,Programmes,GVA GRIMLEY,05/11/2018,750,L,80131800,Real estate management services
"Ministry of Housing, Communities and Local Government",Homes England,Nat Brownfield Strat National,Programmes,GVA GRIMLEY,05/11/2018,"6,000.00",L,80131800,Real estate management services
"Ministry of Housing, Communities and Local Government",Homes England,Economic Assets Hub Transition,Economic Assets Hub,GVA GRIMLEY,05/11/2018,"2,250.00",L,80131800,Real estate management services
"Ministry of Housing, Communities and Local Government",Homes England,Economic Assets Hub Transition,Economic Assets Hub,GVA GRIMLEY,06/11/2018,800,L,80131800,Real estate management services
"Ministry of Housing, Communities and Local Government",Homes England,Economic Assets Ne-Y Prog,North East And Yorkshire,GVA GRIMLEY,08/11/2018,637.5,L,80131800,Real estate management services
"Ministry of Housing, Communities and Local Government",Homes England,S&K Learning & Skills Nottingh,Programmes,GVA GRIMLEY,08/11/2018,"12,408.99",L,80131800,Real estate management services
"Ministry of Housing, Communities and Local Government",Homes England,Land And Regeneration Mh,Programmes,GVA GRIMLEY,12/11/2018,750,L,80131800,Real estate management services
"Ministry of Housing, Communities and Local Government",Homes England,Economic Assets Hub Transition,Economic Assets Hub,GVA GRIMLEY,13/11/2018,"4,500.00",L,80131800,Real estate management services
"Ministry of Housing, Communities and Local Government",Homes England,Nat Brownfield Strat National,Programmes,GVA GRIMLEY,13/11/2018,"1,000.00",L,80131800,Real estate management services
"Ministry of Housing, Communities and Local Government",Homes England,Economic Assets Ne-Y Prog,North East And Yorkshire,GVA GRIMLEY,16/11/2018,"7,500.00",L,80131800,Real estate management services
"Ministry of Housing, Communities and Local Government",Homes England,Economic Assets Hub Transition,Economic Assets Hub,GVA GRIMLEY,19/11/2018,750,L,80131800,Real estate management services
"Ministry of Housing, Communities and Local Government",Homes England,Stafford Magistrates Court,North West,GVA GRIMLEY,20/11/2018,"1,400.00",L,80131800,Real estate management services
"Ministry of Housing, Communities and Local Government",Homes England,Land And Regeneration Mh,Programmes,GVA GRIMLEY,20/11/2018,750,L,80131800,Real estate management services
"Ministry of Housing, Communities and Local Government",Homes England,Economic Assets Hub Transition,Economic Assets Hub,GVA GRIMLEY,20/11/2018,"1,450.00",L,80131800,Real estate management services
"Ministry of Housing, Communities and Local Government",Homes England,Ne-Yh Sheffield And Humb Ne-Y,North East And Yorkshire,GVA GRIMLEY,20/11/2018,"1,113.00",L,80131800,Real estate management services
"Ministry of Housing, Communities and Local Government",Homes England,Stafford Magistrates Court,North West,GVA GRIMLEY,21/11/2018,"1,400.00",L,80131800,Real estate management services
"Ministry of Housing, Communities and Local Government",Homes England,Area Dir Mids Se Mids Mk Tarri,Midlands,GVA GRIMLEY,21/11/2018,"9,500.00",L,80131800,Real estate management services
"Ministry of Housing, Communities and Local Government",Homes England,HCA Investment Credit Risk Man,Programmes,GVA GRIMLEY,22/11/2018,"39,787.40",L,80131800,Real estate management services
"Ministry of Housing, Communities and Local Government",Homes England,Change Management Team Bpr,Executive Office,GVA GRIMLEY,27/11/2018,"73,811.00",L,80131800,Real estate management services
"Ministry of Housing, Communities and Local Government",Homes England,Economic Assets Hub Transition,Economic Assets Hub,GVA GRIMLEY,29/11/2018,800,L,80131800,Real estate management services
"Ministry of Housing, Communities and Local Government",Homes England,Economic Assets Hub Transition,Economic Assets Hub,GVA GRIMLEY,29/11/2018,800,L,80131800,Real estate management services
"Ministry of Housing, Communities and Local Government",Homes England,Economic Assets Ne-Y Prog,North East And Yorkshire,GM UTILITIES LIMITED,16/11/2018,684,S,72101500,Building maintenance and repair services
"Ministry of Housing, Communities and Local Government",Homes England,Economic Assets Ne-Y Prog,North East And Yorkshire,GM UTILITIES LIMITED,26/11/2018,"28,385.05",S,72101500,Building maintenance and repair services
"Ministry of Housing, Communities and Local Government",Homes England,Economic Assets Hub Transition,Economic Assets Hub,GLASS DEVELOPMENTS LIMITED,01/11/2018,"1,023,014.92",,N/A,Loans
"Ministry of Housing, Communities and Local Government",Homes England,Economic Assets Hub Transition,Economic Assets Hub,GLASSHOUSES123 LIMITED,08/11/2018,"208,646.00",,N/A,Loans
"Ministry of Housing, Communities and Local Government",Homes England,East And South East,East And South East,GAVIN JONES LTD,08/11/2018,259.58,L,72102900,Facility maintenance and repair services
"Ministry of Housing, Communities and Local Government",Homes England,Economic Assets Hub Transition,Economic Assets Hub,GENTOO HOMES LTD,29/11/2018,"1,220,698.00",L,N/A,Loans
"Ministry of Housing, Communities and Local Government",Homes England,Comms Transition Budget,Finance & Corporate Services,GOVERNMENT PROPERTY AGENCY,13/11/2018,"586,168.47",G,80131500,Lease and rental of property or building
"Ministry of Housing, Communities and Local Government",Homes England,Economic Assets S&Sw Prog,South West,GREENFIELDS GARDEN SERVICES LTD,02/11/2018,669.19,S,72101500,Building maintenance and repair services
"Ministry of Housing, Communities and Local Government",Homes England,Economic Assets S&Sw Prog,South West,GREENFIELDS GARDEN SERVICES LTD,15/11/2018,669.19,S,72101500,Building maintenance and repair services
"Ministry of Housing, Communities and Local Government",Homes England,HCA Investment Credit Risk Man,Programmes,HAYS ACCOUNTANCY & FINANCE,01/11/2018,"2,884.45",L,80111600,Temporary personnel services
"Ministry of Housing, Communities and Local Government",Homes England,HCA Investment Credit Risk Man,Programmes,HAYS ACCOUNTANCY & FINANCE,19/11/2018,"2,884.45",L,80111600,Temporary personnel services
"Ministry of Housing, Communities and Local Government",Homes England,HCA Investment Credit Risk Man,Programmes,HAYS ACCOUNTANCY & FINANCE,19/11/2018,"1,153.78",L,80111600,Temporary personnel services
"Ministry of Housing, Communities and Local Government",Homes England,Change Management Team Bpr,Executive Office,HAYS ACCOUNTANCY & FINANCE,20/11/2018,672.3,L,80111600,Temporary personnel services
"Ministry of Housing, Communities and Local Government",Homes England,Change Management Team Bpr,Executive Office,HAYS ACCOUNTANCY & FINANCE,20/11/2018,896.4,L,80111600,Temporary personnel services
"Ministry of Housing, Communities and Local Government",Homes England,HCA Investment Credit Risk Man,Programmes,HAYS ACCOUNTANCY & FINANCE,23/11/2018,"2,884.45",L,80111600,Temporary personnel services
"Ministry of Housing, Communities and Local Government",Homes England,Change Management Team Bpr,Executive Office,HAYS ACCOUNTANCY & FINANCE,27/11/2018,"1,120.50",L,80111600,Temporary personnel services
"Ministry of Housing, Communities and Local Government",Homes England,Kickstart Yorks & Humber,Programmes,ARCADIS CONSULTING (UK) LIMITED,05/11/2018,"1,900.00",L,811001500,Civil Engineering
"Ministry of Housing, Communities and Local Government",Homes England,East And South East,East And South East,ARCADIS CONSULTING (UK) LIMITED,07/11/2018,"270,673.17",L,811001500,Civil Engineering
"Ministry of Housing, Communities and Local Government",Homes England,Economic Assets S&Sw Prog,South West,ARCADIS CONSULTING (UK) LIMITED,16/11/2018,"6,302.50",L,811001500,Civil Engineering
"Ministry of Housing, Communities and Local Government",Homes England,Economic Assets S&Sw Prog,South West,ARCADIS CONSULTING (UK) LIMITED,16/11/2018,"6,197.50",L,811001500,Civil Engineering
"Ministry of Housing, Communities and Local Government",Homes England,Ftbi South East,East And South East,ARCADIS CONSULTING (UK) LIMITED,16/11/2018,"18,257.77",L,811001500,Civil Engineering
"Ministry of Housing, Communities and Local Government",Homes England,Kickstart Yorks & Humber,Programmes,ARCADIS CONSULTING (UK) LIMITED,27/11/2018,"1,900.00",L,811001500,Civil Engineering
"Ministry of Housing, Communities and Local Government",Homes England,Ftbi South East,East And South East,ARCADIS CONSULTING (UK) LIMITED,29/11/2018,"33,938.00",L,811001500,Civil Engineering
"Ministry of Housing, Communities and Local Government",Homes England,Economic Assets Hub Transition,Economic Assets Hub,KEEPMOAT HOMES LIMITED,15/11/2018,"243,231.43",L,N/A,Loans
"Ministry of Housing, Communities and Local Government",Homes England,Area Dir Mids Birm-Staffs-Bc,Midlands,CH2M HILL UNITED,22/11/2018,"6,865.00",L,81121500,Economic analysis
"Ministry of Housing, Communities and Local Government",Homes England,North Avon Magistrates Court,Midlands,HARTNELL TAYLOR COOK LLP,14/11/2018,"1,250.00",M,80131800,Real estate management services
"Ministry of Housing, Communities and Local Government",Homes England,Economic Assets S&Sw Prog,South West,HARTNELL TAYLOR COOK LLP,16/11/2018,"2,700.00",M,80131800,Real estate management services
"Ministry of Housing, Communities and Local Government",Homes England,Economic Assets S&Sw Prog,South West,HARTNELL TAYLOR COOK LLP,21/11/2018,"2,500.00",M,80131800,Real estate management services
"Ministry of Housing, Communities and Local Government",Homes England,Economic Assets S&Sw Prog,South West,HARTNELL TAYLOR COOK LLP,26/11/2018,"4,200.00",M,80131800,Real estate management services
"Ministry of Housing, Communities and Local Government",Homes England,Economic Assets S&Sw Prog,South West,HARTNELL TAYLOR COOK LLP,26/11/2018,"3,720.00",M,80131800,Real estate management services
"Ministry of Housing, Communities and Local Government",Homes England,Economic Assets S&Sw Prog,South West,"SQUIRE, PATTON BOGGS (UK) LLP",20/11/2018,960,L,80121600,Business law services
"Ministry of Housing, Communities and Local Government",Homes England,Economic Assets Hub Transition,Economic Assets Hub,HORNCASTLE GROUPL PLC,12/11/2018,"268,275.57",,N/A,Loans
"Ministry of Housing, Communities and Local Government",Homes England,Economic Assets Hub Transition,Economic Assets Hub,H & S DEVELOPMENT (SOMERTON) LTD,26/11/2018,"65,077.00",,N/A,Loans
"Ministry of Housing, Communities and Local Government",Homes England,Economic Assets Ne-Y Prog,North East And Yorkshire,HYDROSURE LIMITED,08/11/2018,"1,815.00",S,72101500,Building maintenance and repair services
"Ministry of Housing, Communities and Local Government",Homes England,Land And Regeneration Mh,Programmes,HOUSING GROWTH PARTNERSHIP LIMITED,08/11/2018,"1,159,200.00",,N/A,Loans
"Ministry of Housing, Communities and Local Government",Homes England,Land And Regeneration Mh,Programmes,HOUSING GROWTH PARTNERSHIP LIMITED,15/11/2018,"5,067,601.29",,N/A,Loans
"Ministry of Housing, Communities and Local Government",Homes England,Land And Regeneration Mh,Programmes,HOUSING GROWTH PARTNERSHIP LIMITED,29/11/2018,"837,128.12",,N/A,Loans
"Ministry of Housing, Communities and Local Government",Homes England,Economic Assets Hub Transition,Economic Assets Hub,HILL MARSHALL LLP,21/11/2018,"506,526.11",,N/A,Loans
"Ministry of Housing, Communities and Local Government",Homes England,Economic Assets Hub Transition,Economic Assets Hub,HAYCROFT HOMES LIMITED,06/11/2018,"142,962.00",,N/A,Loans
"Ministry of Housing, Communities and Local Government",Homes England,Economic Assets Hub Transition,Economic Assets Hub,HAYCROFT HOMES LIMITED,07/11/2018,"150,280.00",,N/A,Loans
"Ministry of Housing, Communities and Local Government",Homes England,Economic Assets Hub Transition,Economic Assets Hub,HOPTON BUILD (YORKSHIRE) LTD,23/11/2018,"31,513.40",,N/A,Loans
"Ministry of Housing, Communities and Local Government",Homes England,Economic Assets Hub Transition,Economic Assets Hub,HARDFIELD HOMES (BELPER) LTD,06/11/2018,"104,883.00",,N/A,Loans
"Ministry of Housing, Communities and Local Government",Homes England,Economic Assets Hub Transition,Economic Assets Hub,HENLEY CAMLAND EBBSFLEET 801 LIMITED,27/11/2018,"2,781,693.00",,N/A,Loans
"Ministry of Housing, Communities and Local Government",Homes England,Economic Assets Hub Transition,Economic Assets Hub,HODSON DEVELOPMENTS (ASHFORD) LTD.,14/11/2018,"280,901.98",,N/A,Loans
"Ministry of Housing, Communities and Local Government",Homes England,Capital Grant to RPs,East And South East,RAPPORT HOUSING AND CARE,30/11/2018,"17,500.00",,N/A,Grant
"Ministry of Housing, Communities and Local Government",Homes England,Capital Grant to RPs,East And South East,RAPPORT HOUSING AND CARE,30/11/2018,"223,720.00",,N/A,Grant
"Ministry of Housing, Communities and Local Government",Homes England,Capital Grant to RPs,East And South East,RAPPORT HOUSING AND CARE,30/11/2018,"105,000.00",,N/A,Grant
"Ministry of Housing, Communities and Local Government",Homes England,Economic Assets Hub Transition,Economic Assets Hub,HANWOOD PARK LLP,22/11/2018,"1,162,207.14",,N/A,Loans
"Ministry of Housing, Communities and Local Government",Homes England,Economic Assets Nw Prog,North West,HARDY ACCESS SERVICES LTD,30/11/2018,"1,380.00",S,72101500,Building maintenance and repair services
"Ministry of Housing, Communities and Local Government",Homes England,Economic Assets Nw Prog,North West,HARDY ACCESS SERVICES LTD,30/11/2018,"7,420.00",S,72101500,Building maintenance and repair services
"Ministry of Housing, Communities and Local Government",Homes England,Facilities Ashford,Finance & Corporate Services,HALES GROUP LTD,29/11/2018,896.51,M,80111600,Temporary personnel services
"Ministry of Housing, Communities and Local Government",Homes England,Facilities Ashford,Finance & Corporate Services,HALES GROUP LTD,29/11/2018,911.7,M,80111600,Temporary personnel services
"Ministry of Housing, Communities and Local Government",Homes England,Facilities Ashford,Finance & Corporate Services,HALES GROUP LTD,29/11/2018,911.7,M,80111600,Temporary personnel services
"Ministry of Housing, Communities and Local Government",Homes England,East And South East,East And South East,HEWITSONS SOLICITORS,01/11/2018,800,M,80121600,Business law services
"Ministry of Housing, Communities and Local Government",Homes England,Economic Assets Hub Transition,Economic Assets Hub,HEWITSONS SOLICITORS,02/11/2018,"1,001.99",M,80121600,Business law services
"Ministry of Housing, Communities and Local Government",Homes England,South West,South West,HEWITSONS SOLICITORS,02/11/2018,570,M,80121600,Business law services
"Ministry of Housing, Communities and Local Government",Homes England,Area Dir Cumbria Lancs Nw,North West,HEWITSONS SOLICITORS,02/11/2018,380,M,80121600,Business law services
"Ministry of Housing, Communities and Local Government",Homes England,Economic Assets S&Sw Prog,South West,HEWITSONS SOLICITORS,02/11/2018,285,M,80121600,Business law services
"Ministry of Housing, Communities and Local Government",Homes England,East And South East,East And South East,HEWITSONS SOLICITORS,02/11/2018,"1,140.00",M,80121600,Business law services
"Ministry of Housing, Communities and Local Government",Homes England,East And South East,East And South East,HEWITSONS SOLICITORS,02/11/2018,570,M,80121600,Business law services
"Ministry of Housing, Communities and Local Government",Homes England,Ne-Yh Nrth - West Yorks Ne-Y,North East And Yorkshire,HEWITSONS SOLICITORS,05/11/2018,380,M,80121600,Business law services
"Ministry of Housing, Communities and Local Government",Homes England,Ne-Yh Sheffield And Humb Ne-Y,North East And Yorkshire,HEWITSONS SOLICITORS,05/11/2018,475,M,80121600,Business law services
"Ministry of Housing, Communities and Local Government",Homes England,Area Dir Mids Se Mids Mk Tarri,Midlands,HEWITSONS SOLICITORS,05/11/2018,380,M,80121600,Business law services
"Ministry of Housing, Communities and Local Government",Homes England,Area Dir Mids Se Mids Mk Tarri,Midlands,HEWITSONS SOLICITORS,05/11/2018,380,M,80121600,Business law services
"Ministry of Housing, Communities and Local Government",Homes England,Economic Assets Hub Transition,Economic Assets Hub,HEWITSONS SOLICITORS,06/11/2018,250,M,80121600,Business law services
"Ministry of Housing, Communities and Local Government",Homes England,Economic Assets Hub Transition,Economic Assets Hub,HEWITSONS SOLICITORS,06/11/2018,250,M,80121600,Business law services
"Ministry of Housing, Communities and Local Government",Homes England,Ne-Yh Sheffield And Humb Ne-Y,North East And Yorkshire,HEWITSONS SOLICITORS,06/11/2018,475,M,80121600,Business law services
"Ministry of Housing, Communities and Local Government",Homes England,Economic Assets Ne-Y Prog,North East And Yorkshire,HEWITSONS SOLICITORS,06/11/2018,855,M,80121600,Business law services
"Ministry of Housing, Communities and Local Government",Homes England,Area Dir Mids Se Mids Mk Tarri,Midlands,HEWITSONS SOLICITORS,06/11/2018,250,M,80121600,Business law services
"Ministry of Housing, Communities and Local Government",Homes England,Area Dir Mids Se Mids Mk Tarri,Midlands,HEWITSONS SOLICITORS,06/11/2018,665,M,80121600,Business law services
"Ministry of Housing, Communities and Local Government",Homes England,Area Dir Mids Se Mids Mk Tarri,Midlands,HEWITSONS SOLICITORS,06/11/2018,"1,818.50",M,80121600,Business law services
"Ministry of Housing, Communities and Local Government",Homes England,Economic Assets Hub Transition,Economic Assets Hub,HEWITSONS SOLICITORS,07/11/2018,750,M,80121600,Business law services
"Ministry of Housing, Communities and Local Government",Homes England,Area Dir Cumbria Lancs Nw,North West,HEWITSONS SOLICITORS,07/11/2018,380,M,80121600,Business law services
"Ministry of Housing, Communities and Local Government",Homes England,Public Land and Regeneration,Programmes,HEWITSONS SOLICITORS,07/11/2018,"1,330.00",M,80121600,Business law services
"Ministry of Housing, Communities and Local Government",Homes England,Area Dir Cumbria Lancs Lanc,North West,HEWITSONS SOLICITORS,07/11/2018,340,M,80121600,Business law services
"Ministry of Housing, Communities and Local Government",Homes England,Economic Assets Nw Prog,North West,HEWITSONS SOLICITORS,07/11/2018,"1,425.00",M,80121600,Business law services
"Ministry of Housing, Communities and Local Government",Homes England,South West Hants-Iow-Dorset-Bu,South West,HEWITSONS SOLICITORS,07/11/2018,"1,500.00",M,80121600,Business law services
"Ministry of Housing, Communities and Local Government",Homes England,South West Hants-Iow-Dorset-Bu,South West,HEWITSONS SOLICITORS,07/11/2018,350,M,80121600,Business law services
"Ministry of Housing, Communities and Local Government",Homes England,Area Dir Manchester Nw,North West,HEWITSONS SOLICITORS,08/11/2018,"2,375.00",M,80121600,Business law services
"Ministry of Housing, Communities and Local Government",Homes England,Economic Assets Nw Prog,North West,HEWITSONS SOLICITORS,08/11/2018,760,M,80121600,Business law services
"Ministry of Housing, Communities and Local Government",Homes England,East And Se Essex And Kent,East And South East,HEWITSONS SOLICITORS,08/11/2018,285,M,80121600,Business law services
"Ministry of Housing, Communities and Local Government",Homes England,Economic Assets E-Se Progs,East And South East,HEWITSONS SOLICITORS,12/11/2018,324,M,80121600,Business law services
"Ministry of Housing, Communities and Local Government",Homes England,Economic Assets E-Se Progs,East And South East,HEWITSONS SOLICITORS,12/11/2018,324,M,80121600,Business law services
"Ministry of Housing, Communities and Local Government",Homes England,East And South East,East And South East,HEWITSONS SOLICITORS,12/11/2018,760,M,80121600,Business law services
"Ministry of Housing, Communities and Local Government",Homes England,Area Dir Mids Se Mids Mk Tarri,Midlands,HEWITSONS SOLICITORS,14/11/2018,643.5,M,80121600,Business law services
"Ministry of Housing, Communities and Local Government",Homes England,Ad West Mids West Telford,Midlands,HEWITSONS SOLICITORS,19/11/2018,"2,850.00",M,80121600,Business law services
"Ministry of Housing, Communities and Local Government",Homes England,Ftbi South East,East And South East,HEWITSONS SOLICITORS,22/11/2018,339,M,80121600,Business law services
"Ministry of Housing, Communities and Local Government",Homes England,Economic Assets Ne-Y Prog,North East And Yorkshire,HEWITSONS SOLICITORS,22/11/2018,475,M,80121600,Business law services
"Ministry of Housing, Communities and Local Government",Homes England,Ne-Y North East Hospital Sites,North East And Yorkshire,HEWITSONS SOLICITORS,23/11/2018,285,M,80121600,Business law services
"Ministry of Housing, Communities and Local Government",Homes England,Area Dir Mids Se Mids Mk Tarri,Midlands,HEWITSONS SOLICITORS,26/11/2018,380,M,80121600,Business law services
"Ministry of Housing, Communities and Local Government",Homes England,East And South East,East And South East,GL HEARN LIMITED,19/11/2018,"8,500.00",S,80131800,Real estate management services
"Ministry of Housing, Communities and Local Government",Homes England,Economic Assets S&Sw Prog,South West,HUGHES & SALVIDGE LIMITED,13/11/2018,"166,437.15",M,72141500,Land preparation services
"Ministry of Housing, Communities and Local Government",Homes England,Economic Assets S&Sw Prog,South West,HUGHES & SALVIDGE LIMITED,28/11/2018,"81,524.25",M,72141500,Land preparation services
"Ministry of Housing, Communities and Local Government",Homes England,Economic Assets S&Sw Prog,South West,HUGHES & SALVIDGE LIMITED,29/11/2018,"42,849.75",M,72141500,Land preparation services
"Ministry of Housing, Communities and Local Government",Homes England,Economic Assets S&Sw Prog,South West,HUGHES & SALVIDGE LIMITED,30/11/2018,"36,749.79",M,72141500,Land preparation services
"Ministry of Housing, Communities and Local Government",Homes England,Comms Transition Budget,Finance & Corporate Services,INDUSTRIAL LANDSCAPES LIMITED,02/11/2018,293.85,S,72101500,Building maintenance and repair services
"Ministry of Housing, Communities and Local Government",Homes England,Finance Sgh,Finance & Corporate Services,INSTITUTE OF CHARTERED ACCOUNTANTS ENG/WALES,14/11/2018,"3,625.00",L,94101600,Professional associations
"Ministry of Housing, Communities and Local Government",Homes England,Comms Transition Budget,Finance & Corporate Services,INDEPTH MANAGED SERVICES,01/11/2018,"1,297.83",L,76111500,General building and office cleaining and maintenance services
"Ministry of Housing, Communities and Local Government",Homes England,Comms Transition Budget,Finance & Corporate Services,INDEPTH MANAGED SERVICES,01/11/2018,"2,813.12",L,76111500,General building and office cleaining and maintenance services
"Ministry of Housing, Communities and Local Government",Homes England,Comms Transition Budget,Finance & Corporate Services,INDEPTH MANAGED SERVICES,23/11/2018,"1,297.83",L,76111500,General building and office cleaining and maintenance services
"Ministry of Housing, Communities and Local Government",Homes England,Comms Transition Budget,Finance & Corporate Services,INDEPTH MANAGED SERVICES,23/11/2018,"2,813.12",L,76111500,General building and office cleaining and maintenance services
"Ministry of Housing, Communities and Local Government",Homes England,Facilities Arpley House,Finance & Corporate Services,INDEPTH MANAGED SERVICES,23/11/2018,"1,166.20",L,76111500,General building and office cleaining and maintenance services
"Ministry of Housing, Communities and Local Government",Homes England,Facilities Arpley House,Finance & Corporate Services,INDEPTH MANAGED SERVICES,23/11/2018,"2,829.00",L,76111500,General building and office cleaining and maintenance services
"Ministry of Housing, Communities and Local Government",Homes England,Economic Assets Hub Transition,Economic Assets Hub,IPSWICH WHARF DEVELOPMENTS LIMITED,13/11/2018,"51,827.47",,N/A,Loans
"Ministry of Housing, Communities and Local Government",Homes England,Economic Assets Hub Transition,Economic Assets Hub,IPSWICH WHARF DEVELOPMENTS LIMITED,21/11/2018,"1,728,609.89",,N/A,Loans
"Ministry of Housing, Communities and Local Government",Homes England,Economic Assets Ne-Y Prog,North East And Yorkshire,IOM CONSULTING LIMITED,19/11/2018,"2,600.00",S,81141801,Safety or risk analysis
"Ministry of Housing, Communities and Local Government",Homes England,Economic Assets S&Sw Prog,South West,ITURRI LIMITED,02/11/2018,"4,778.76",L,72102900,Facility maintenance and repair services
"Ministry of Housing, Communities and Local Government",Homes England,Economic Assets Ne-Y Prog,North East And Yorkshire,INDUSTRIAL WATER JETTING SYSTEMS LIMITED,08/11/2018,"1,016.21",S,72101500,Building maintenance and repair services
"Ministry of Housing, Communities and Local Government",Homes England,Area Dir Mids Se Mids Mk Tarri,Midlands,INTEGRITY FACILITIES MANAGEMENT LTD.,19/11/2018,860,S,72153501,Building exterior cleaning service  
"Ministry of Housing, Communities and Local Government",Homes England,Land And Regeneration Mh,Programmes,JONES LANG LASALLE,01/11/2018,750,L,80131800,Real estate management services
"Ministry of Housing, Communities and Local Government",Homes England,Kickstart Yorks & Humber,Programmes,JONES LANG LASALLE,01/11/2018,900,L,80131800,Real estate management services
"Ministry of Housing, Communities and Local Government",Homes England,Economic Assets Hub Transition,Economic Assets Hub,JONES LANG LASALLE,06/11/2018,950,L,80131800,Real estate management services
"Ministry of Housing, Communities and Local Government",Homes England,Economic Assets Ne-Y Prog,North East And Yorkshire,JONES LANG LASALLE,21/11/2018,"3,500.00",L,80131800,Real estate management services
"Ministry of Housing, Communities and Local Government",Homes England,Public Land and Regeneration,Programmes,JONES LANG LASALLE,28/11/2018,"1,180.00",L,80131800,Real estate management services
"Ministry of Housing, Communities and Local Government",Homes England,Nat Brownfield Strat National,Programmes,JG PEST CONTROL,12/11/2018,250,S,72102100,Pest control
"Ministry of Housing, Communities and Local Government",Homes England,Nat Brownfield Strat National,Programmes,JG PEST CONTROL,21/11/2018,250,S,72102100,Pest control
"Ministry of Housing, Communities and Local Government",Homes England,Economic Assets Ne-Y Prog,North East And Yorkshire,JAPANESE KNOTWEED SOLUTIONS LTD,21/11/2018,"29,153.00",S,72101500,Building maintenance and repair services
"Ministry of Housing, Communities and Local Government",Homes England,Economic Assets Ne-Y Prog,North East And Yorkshire,JAPANESE KNOTWEED SOLUTIONS LTD,27/11/2018,605,S,72101500,Building maintenance and repair services
"Ministry of Housing, Communities and Local Government",Homes England,Wakefield Magistrates Court,North East And Yorkshire,KMS COMMERCIAL PROPERTY MAINTENANCE LTD,06/11/2018,298.75,M,72101500,Building maintenance and repair services
"Ministry of Housing, Communities and Local Government",Homes England,Halifax Cc,North East And Yorkshire,KMS COMMERCIAL PROPERTY MAINTENANCE LTD,30/11/2018,378,M,72101500,Building maintenance and repair services
"Ministry of Housing, Communities and Local Government",Homes England,Halifax Cc,North East And Yorkshire,KMS COMMERCIAL PROPERTY MAINTENANCE LTD,30/11/2018,650,M,72101500,Building maintenance and repair services
"Ministry of Housing, Communities and Local Government",Homes England,Halifax Cc,North East And Yorkshire,KMS COMMERCIAL PROPERTY MAINTENANCE LTD,30/11/2018,985,M,72101500,Building maintenance and repair services
"Ministry of Housing, Communities and Local Government",Homes England,It Sgh,Finance & Corporate Services,CSL - KPMG LLP,15/11/2018,"3,669.00",L,84111700,Corporate finance
"Ministry of Housing, Communities and Local Government",Homes England,Economic Assets Hub Transition,Economic Assets Hub,KEBBELL DEVELOPMENT LIMITED,16/11/2018,"352,705.00",,,Loans
"Ministry of Housing, Communities and Local Government",Homes England,Economic Assets Hub Transition,Economic Assets Hub,KIRKCROSS DEVELOPMENTS LIMITED,15/11/2018,"362,059.00",,,Loans
"Ministry of Housing, Communities and Local Government",Homes England,Estate Management Crawley,North West,KINGS LANDSCAPES,05/11/2018,"3,040.00",S,72101500,Building maintenance and repair services
"Ministry of Housing, Communities and Local Government",Homes England,East And South East,East And South East,KINGS LANDSCAPES,29/11/2018,740,S,72101500,Building maintenance and repair services
"Ministry of Housing, Communities and Local Government",Homes England,Land And Regeneration Mh,Programmes,LAMBERT SMITH HAMPTON,01/11/2018,650,L,80131800,Real estate management services
"Ministry of Housing, Communities and Local Government",Homes England,Land And Regeneration Mh,Programmes,LAMBERT SMITH HAMPTON,01/11/2018,850,L,80131800,Real estate management services
"Ministry of Housing, Communities and Local Government",Homes England,Land And Regeneration Mh,Programmes,LAMBERT SMITH HAMPTON,01/11/2018,950,L,80131800,Real estate management services
"Ministry of Housing, Communities and Local Government",Homes England,Land And Regeneration Mh,Programmes,LAMBERT SMITH HAMPTON,01/11/2018,950,L,80131800,Real estate management services
"Ministry of Housing, Communities and Local Government",Homes England,Land And Regeneration Mh,Programmes,LAMBERT SMITH HAMPTON,02/11/2018,650,L,80131800,Real estate management services
"Ministry of Housing, Communities and Local Government",Homes England,Land And Regeneration Mh,Programmes,LAMBERT SMITH HAMPTON,02/11/2018,650,L,80131800,Real estate management services
"Ministry of Housing, Communities and Local Government",Homes England,East And South East,East And South East,LAMBERT SMITH HAMPTON,02/11/2018,"4,500.00",L,80131800,Real estate management services
"Ministry of Housing, Communities and Local Government",Homes England,Land And Regeneration Mh,Programmes,LAMBERT SMITH HAMPTON,02/11/2018,750,L,80131800,Real estate management services
"Ministry of Housing, Communities and Local Government",Homes England,Land And Regeneration Mh,Programmes,LAMBERT SMITH HAMPTON,05/11/2018,600,L,80131800,Real estate management services
"Ministry of Housing, Communities and Local Government",Homes England,Economic Assets E-Se Progs,East And South East,LAMBERT SMITH HAMPTON,05/11/2018,"1,250.00",L,80131800,Real estate management services
"Ministry of Housing, Communities and Local Government",Homes England,Land And Regeneration Mh,Programmes,LAMBERT SMITH HAMPTON,05/11/2018,650,L,80131800,Real estate management services
"Ministry of Housing, Communities and Local Government",Homes England,Land And Regeneration Mh,Programmes,LAMBERT SMITH HAMPTON,07/11/2018,750,L,80131800,Real estate management services
"Ministry of Housing, Communities and Local Government",Homes England,Meacham Day Centre,East And South East,LAMBERT SMITH HAMPTON,07/11/2018,"6,000.00",L,80131800,Real estate management services
"Ministry of Housing, Communities and Local Government",Homes England,Economic Assets Hub Transition,Economic Assets Hub,LAMBERT SMITH HAMPTON,13/11/2018,"4,100.00",L,80131800,Real estate management services
"Ministry of Housing, Communities and Local Government",Homes England,Economic Assets Ne-Y Prog,North East And Yorkshire,LAMBERT SMITH HAMPTON,19/11/2018,952.5,L,80131800,Real estate management services
"Ministry of Housing, Communities and Local Government",Homes England,Economic Assets Ne-Y Prog,North East And Yorkshire,LAMBERT SMITH HAMPTON,29/11/2018,657,L,80131800,Real estate management services
"Ministry of Housing, Communities and Local Government",Homes England,Land And Regeneration Mh,Programmes,LAMBERT SMITH HAMPTON,29/11/2018,850,L,80131800,Real estate management services
"Ministry of Housing, Communities and Local Government",Homes England,Land And Regeneration Mh,Programmes,LAMBERT SMITH HAMPTON,29/11/2018,950,L,80131800,Real estate management services
"Ministry of Housing, Communities and Local Government",Homes England,Land And Regeneration Mh,Programmes,LAMBERT SMITH HAMPTON,29/11/2018,950,L,80131800,Real estate management services
"Ministry of Housing, Communities and Local Government",Homes England,Economic Assets Hub Transition,Economic Assets Hub,LAMBERT SMITH HAMPTON,30/11/2018,"4,750.00",L,80131800,Real estate management services
"Ministry of Housing, Communities and Local Government",Homes England,Capital Grant to RPs,North East And Yorkshire,THE RIVERSIDE GROUP,09/11/2018,"56,000.00",L,N/A,Grant
"Ministry of Housing, Communities and Local Government",Homes England,Capital Grant to RPs,North East And Yorkshire,THE RIVERSIDE GROUP,26/11/2018,"336,000.00",L,N/A,Grant
"Ministry of Housing, Communities and Local Government",Homes England,Capital Grant to RPs,North East And Yorkshire,THE RIVERSIDE GROUP,26/11/2018,"210,000.00",L,N/A,Grant
"Ministry of Housing, Communities and Local Government",Homes England,Capital Grant to RPs,North East And Yorkshire,THE RIVERSIDE GROUP,26/11/2018,"392,000.00",L,N/A,Grant
"Ministry of Housing, Communities and Local Government",Homes England,Capital Grant to RPs,North East And Yorkshire,THE RIVERSIDE GROUP,30/11/2018,"9,000.00",L,N/A,Grant
"Ministry of Housing, Communities and Local Government",Homes England,Capital Grant to RPs,North East And Yorkshire,THE RIVERSIDE GROUP,30/11/2018,"9,000.00",L,N/A,Grant
"Ministry of Housing, Communities and Local Government",Homes England,Capital Grant to RPs,North East And Yorkshire,THE RIVERSIDE GROUP,30/11/2018,"9,000.00",L,N/A,Grant
"Ministry of Housing, Communities and Local Government",Homes England,Capital Grant to RPs,North East And Yorkshire,THE RIVERSIDE GROUP,30/11/2018,"9,000.00",L,N/A,Grant
"Ministry of Housing, Communities and Local Government",Homes England,Capital Grant to RPs,North East And Yorkshire,THE RIVERSIDE GROUP,30/11/2018,"105,000.00",L,N/A,Grant
"Ministry of Housing, Communities and Local Government",Homes England,Capital Grant to RPs,North East And Yorkshire,THE RIVERSIDE GROUP,30/11/2018,"2,156,000.00",L,N/A,Grant
"Ministry of Housing, Communities and Local Government",Homes England,Capital Grant to RPs,London,HOUSING & CARE 21,30/11/2018,"199,500.00",L,N/A,Grant
"Ministry of Housing, Communities and Local Government",Homes England,Capital Grant to RPs,London,HOUSING & CARE 21,30/11/2018,"288,000.00",L,N/A,Grant
"Ministry of Housing, Communities and Local Government",Homes England,Capital Grant to RPs,London,HOUSING & CARE 21,30/11/2018,"655,500.00",L,N/A,Grant
"Ministry of Housing, Communities and Local Government",Homes England,Capital Grant to RPs,London,HOUSING & CARE 21,30/11/2018,"720,000.00",L,N/A,Grant
"Ministry of Housing, Communities and Local Government",Homes England,Capital Grant to RPs,London,HOUSING & CARE 21,30/11/2018,"600,000.00",L,N/A,Grant
"Ministry of Housing, Communities and Local Government",Homes England,Capital Grant to RPs,London,HOUSING & CARE 21,30/11/2018,"192,000.00",L,N/A,Grant
"Ministry of Housing, Communities and Local Government",Homes England,Capital Grant to RPs,London,HOUSING & CARE 21,30/11/2018,"399,000.00",L,N/A,Grant
"Ministry of Housing, Communities and Local Government",Homes England,Capital Grant to RPs,London,HOUSING & CARE 21,30/11/2018,"513,000.00",L,N/A,Grant
"Ministry of Housing, Communities and Local Government",Homes England,Nat Brownfield Strat National,Programmes,LANES GROUP LTD,09/11/2018,392,S,72101500,Building maintenance and repair services
"Ministry of Housing, Communities and Local Government",Homes England,Nat Brownfield Strat National,Programmes,LANES GROUP LTD,09/11/2018,650,S,72101500,Building maintenance and repair services
"Ministry of Housing, Communities and Local Government",Homes England,Nat Brownfield Strat National,Programmes,LANES GROUP LTD,09/11/2018,695,S,72101500,Building maintenance and repair services
"Ministry of Housing, Communities and Local Government",Homes England,Economic Assets Nw Prog,North West,LANES GROUP LTD,14/11/2018,395,S,72101500,Building maintenance and repair services
"Ministry of Housing, Communities and Local Government",Homes England,Economic Assets Nw Prog,North West,LOCKTON COMPANIES LLP,09/11/2018,581.72,L,84131500,Insurance services for strcutures and property and possessions
"Ministry of Housing, Communities and Local Government",Homes England,Worksop & Retford Magist Court,Midlands,LILQUEST ASBESTOS MANAGEMENT LTD,02/11/2018,770,M,72101500,Building maintenance and repair services
"Ministry of Housing, Communities and Local Government",Homes England,Economic Assets Ne-Y Prog,North East And Yorkshire,LILQUEST ASBESTOS MANAGEMENT LTD,29/11/2018,320,M,72101500,Building maintenance and repair services
"Ministry of Housing, Communities and Local Government",Homes England,Capital Grant to RPs,South West,STONEWATER (2) LTD,08/11/2018,"11,000.00",,N/A,Grant
"Ministry of Housing, Communities and Local Government",Homes England,Capital Grant to RPs,Programmes,SANCTUARY HOUSING ASSOCIATION,09/11/2018,"11,000.00",L,N/A,Grant
"Ministry of Housing, Communities and Local Government",Homes England,Capital Grant to RPs,Programmes,SANCTUARY HOUSING ASSOCIATION,15/11/2018,"60,450.00",L,N/A,Grant
"Ministry of Housing, Communities and Local Government",Homes England,Capital Grant to RPs,Programmes,SANCTUARY HOUSING ASSOCIATION,21/11/2018,"11,000.00",L,N/A,Grant
"Ministry of Housing, Communities and Local Government",Homes England,Capital Grant to RPs,Programmes,SANCTUARY HOUSING ASSOCIATION,30/11/2018,"240,000.00",L,N/A,Grant
"Ministry of Housing, Communities and Local Government",Homes England,Capital Grant to RPs,South West,KNIGHTSTONE HOUSING ASSOCIATION LIMITED,08/11/2018,"93,917.00",,N/A,Grant
"Ministry of Housing, Communities and Local Government",Homes England,Capital Grant to RPs,East And South East,THAMES VALLEY HOUSING ASSOCIATION LTD,27/11/2018,"13,500.00",,N/A,Grant
"Ministry of Housing, Communities and Local Government",Homes England,Land And Regeneration National,Programmes,THOMAS LISTER LTD,08/11/2018,"3,612.50",S,80131800,Real estate management services
"Ministry of Housing, Communities and Local Government",Homes England,Halifax Magistrates' Court,North East And Yorkshire,THOMAS LISTER LTD,15/11/2018,"3,937.50",S,80131800,Real estate management services
"Ministry of Housing, Communities and Local Government",Homes England,Nat Brownfield Strat National,Programmes,THOMAS LISTER LTD,15/11/2018,"1,125.00",S,80131800,Real estate management services
"Ministry of Housing, Communities and Local Government",Homes England,Economic Assets Ne-Y Prog,North East And Yorkshire,THOMAS LISTER LTD,16/11/2018,"1,625.00",S,80131800,Real estate management services
"Ministry of Housing, Communities and Local Government",Homes England,Nat Brownfield Strat National,Programmes,THOMAS LISTER LTD,16/11/2018,"1,062.50",S,80131800,Real estate management services
"Ministry of Housing, Communities and Local Government",Homes England,Economic Assets Ne-Y Prog,North East And Yorkshire,THOMAS LISTER LTD,16/11/2018,"8,127.50",S,80131800,Real estate management services
"Ministry of Housing, Communities and Local Government",Homes England,Wakefield Magistrates Court,North East And Yorkshire,THOMAS LISTER LTD,16/11/2018,"1,147.50",S,80131800,Real estate management services
"Ministry of Housing, Communities and Local Government",Homes England,Doncaster Cc,North East And Yorkshire,THOMAS LISTER LTD,19/11/2018,"4,960.00",S,80131800,Real estate management services
"Ministry of Housing, Communities and Local Government",Homes England,Nat Brownfield Strat National,Programmes,THOMAS LISTER LTD,19/11/2018,950,S,80131800,Real estate management services
"Ministry of Housing, Communities and Local Government",Homes England,Nat Brownfield Strat National,Programmes,THOMAS LISTER LTD,19/11/2018,950,S,80131800,Real estate management services
"Ministry of Housing, Communities and Local Government",Homes England,Nat Brownfield Strat National,Programmes,THOMAS LISTER LTD,21/11/2018,575,S,80131800,Real estate management services
"Ministry of Housing, Communities and Local Government",Homes England,Area Dir Mids Se Mids Mk Tarri,Midlands,THOMAS LISTER LTD,22/11/2018,"5,737.50",S,80131800,Real estate management services
"Ministry of Housing, Communities and Local Government",Homes England,Economic Assets Ne-Y Prog,North East And Yorkshire,THOMAS LISTER LTD,22/11/2018,"1,050.00",S,80131800,Real estate management services
"Ministry of Housing, Communities and Local Government",Homes England,Economic Assets Ne-Y Prog,North East And Yorkshire,THOMAS LISTER LTD,22/11/2018,750,S,80131800,Real estate management services
"Ministry of Housing, Communities and Local Government",Homes England,Help to Buy Additions,South West,SWAYTHLING HOUSING SOCIETY LIMITED,08/11/2018,361,L,N/A,Grant
"Ministry of Housing, Communities and Local Government",Homes England,Help to Buy Additions,South West,SWAYTHLING HOUSING SOCIETY LIMITED,08/11/2018,361,L,N/A,Grant
"Ministry of Housing, Communities and Local Government",Homes England,Help to Buy Additions,South West,SWAYTHLING HOUSING SOCIETY LIMITED,08/11/2018,361,L,N/A,Grant
"Ministry of Housing, Communities and Local Government",Homes England,Help to Buy Additions,South West,SWAYTHLING HOUSING SOCIETY LIMITED,08/11/2018,361,L,N/A,Grant
"Ministry of Housing, Communities and Local Government",Homes England,Help to Buy Additions,South West,SWAYTHLING HOUSING SOCIETY LIMITED,08/11/2018,361,L,N/A,Grant
"Ministry of Housing, Communities and Local Government",Homes England,Help to Buy Additions,South West,SWAYTHLING HOUSING SOCIETY LIMITED,08/11/2018,361,L,N/A,Grant
"Ministry of Housing, Communities and Local Government",Homes England,Help to Buy Additions,South West,SWAYTHLING HOUSING SOCIETY LIMITED,08/11/2018,361,L,N/A,Grant
"Ministry of Housing, Communities and Local Government",Homes England,Help to Buy Additions,South West,SWAYTHLING HOUSING SOCIETY LIMITED,08/11/2018,361,L,N/A,Grant
"Ministry of Housing, Communities and Local Government",Homes England,Help to Buy Additions,South West,SWAYTHLING HOUSING SOCIETY LIMITED,08/11/2018,361,L,N/A,Grant
"Ministry of Housing, Communities and Local Government",Homes England,Help to Buy Additions,South West,SWAYTHLING HOUSING SOCIETY LIMITED,08/11/2018,361,L,N/A,Grant
"Ministry of Housing, Communities and Local Government",Homes England,Help to Buy Additions,South West,SWAYTHLING HOUSING SOCIETY LIMITED,08/11/2018,361,L,N/A,Grant
"Ministry of Housing, Communities and Local Government",Homes England,Help to Buy Additions,South West,SWAYTHLING HOUSING SOCIETY LIMITED,08/11/2018,361,L,N/A,Grant
"Ministry of Housing, Communities and Local Government",Homes England,Help to Buy Additions,South West,SWAYTHLING HOUSING SOCIETY LIMITED,08/11/2018,361,L,N/A,Grant
"Ministry of Housing, Communities and Local Government",Homes England,Help to Buy Additions,South West,SWAYTHLING HOUSING SOCIETY LIMITED,08/11/2018,361,L,N/A,Grant
"Ministry of Housing, Communities and Local Government",Homes England,Help to Buy Additions,South West,SWAYTHLING HOUSING SOCIETY LIMITED,08/11/2018,361,L,N/A,Grant
"Ministry of Housing, Communities and Local Government",Homes England,Help to Buy Additions,South West,SWAYTHLING HOUSING SOCIETY LIMITED,08/11/2018,361,L,N/A,Grant
"Ministry of Housing, Communities and Local Government",Homes England,Help to Buy Additions,South West,SWAYTHLING HOUSING SOCIETY LIMITED,08/11/2018,361,L,N/A,Grant
"Ministry of Housing, Communities and Local Government",Homes England,Help to Buy Additions,South West,SWAYTHLING HOUSING SOCIETY LIMITED,08/11/2018,361,L,N/A,Grant
"Ministry of Housing, Communities and Local Government",Homes England,Help to Buy Additions,South West,SWAYTHLING HOUSING SOCIETY LIMITED,08/11/2018,361,L,N/A,Grant
"Ministry of Housing, Communities and Local Government",Homes England,Help to Buy Additions,South West,SWAYTHLING HOUSING SOCIETY LIMITED,08/11/2018,361,L,N/A,Grant
"Ministry of Housing, Communities and Local Government",Homes England,Help to Buy Additions,South West,SWAYTHLING HOUSING SOCIETY LIMITED,08/11/2018,361,L,N/A,Grant
"Ministry of Housing, Communities and Local Government",Homes England,Help to Buy Additions,South West,SWAYTHLING HOUSING SOCIETY LIMITED,09/11/2018,361,L,N/A,Grant
"Ministry of Housing, Communities and Local Government",Homes England,Help to Buy Additions,South West,SWAYTHLING HOUSING SOCIETY LIMITED,09/11/2018,361,L,N/A,Grant
"Ministry of Housing, Communities and Local Government",Homes England,Help to Buy Additions,South West,SWAYTHLING HOUSING SOCIETY LIMITED,09/11/2018,361,L,N/A,Grant
"Ministry of Housing, Communities and Local Government",Homes England,Help to Buy Additions,South West,SWAYTHLING HOUSING SOCIETY LIMITED,09/11/2018,361,L,N/A,Grant
"Ministry of Housing, Communities and Local Government",Homes England,Help to Buy Additions,South West,SWAYTHLING HOUSING SOCIETY LIMITED,09/11/2018,361,L,N/A,Grant
"Ministry of Housing, Communities and Local Government",Homes England,Help to Buy Additions,South West,SWAYTHLING HOUSING SOCIETY LIMITED,09/11/2018,361,L,N/A,Grant
"Ministry of Housing, Communities and Local Government",Homes England,Help to Buy Additions,South West,SWAYTHLING HOUSING SOCIETY LIMITED,09/11/2018,361,L,N/A,Grant
"Ministry of Housing, Communities and Local Government",Homes England,Help to Buy Additions,South West,SWAYTHLING HOUSING SOCIETY LIMITED,09/11/2018,361,L,N/A,Grant
"Ministry of Housing, Communities and Local Government",Homes England,Help to Buy Additions,South West,SWAYTHLING HOUSING SOCIETY LIMITED,09/11/2018,361,L,N/A,Grant
"Ministry of Housing, Communities and Local Government",Homes England,Help to Buy Additions,South West,SWAYTHLING HOUSING SOCIETY LIMITED,09/11/2018,361,L,N/A,Grant
"Ministry of Housing, Communities and Local Government",Homes England,Help to Buy Additions,South West,SWAYTHLING HOUSING SOCIETY LIMITED,09/11/2018,361,L,N/A,Grant
"Ministry of Housing, Communities and Local Government",Homes England,Help to Buy Additions,South West,SWAYTHLING HOUSING SOCIETY LIMITED,09/11/2018,361,L,N/A,Grant
"Ministry of Housing, Communities and Local Government",Homes England,Help to Buy Additions,South West,SWAYTHLING HOUSING SOCIETY LIMITED,12/11/2018,361,L,N/A,Grant
"Ministry of Housing, Communities and Local Government",Homes England,Help to Buy Additions,South West,SWAYTHLING HOUSING SOCIETY LIMITED,12/11/2018,361,L,N/A,Grant
"Ministry of Housing, Communities and Local Government",Homes England,Help to Buy Additions,South West,SWAYTHLING HOUSING SOCIETY LIMITED,12/11/2018,361,L,N/A,Grant
"Ministry of Housing, Communities and Local Government",Homes England,Help to Buy Additions,South West,SWAYTHLING HOUSING SOCIETY LIMITED,12/11/2018,361,L,N/A,Grant
"Ministry of Housing, Communities and Local Government",Homes England,Help to Buy Additions,South West,SWAYTHLING HOUSING SOCIETY LIMITED,12/11/2018,361,L,N/A,Grant
"Ministry of Housing, Communities and Local Government",Homes England,Help to Buy Additions,South West,SWAYTHLING HOUSING SOCIETY LIMITED,12/11/2018,361,L,N/A,Grant
"Ministry of Housing, Communities and Local Government",Homes England,Help to Buy Additions,South West,SWAYTHLING HOUSING SOCIETY LIMITED,12/11/2018,361,L,N/A,Grant
"Ministry of Housing, Communities and Local Government",Homes England,Help to Buy Additions,South West,SWAYTHLING HOUSING SOCIETY LIMITED,12/11/2018,361,L,N/A,Grant
"Ministry of Housing, Communities and Local Government",Homes England,Help to Buy Additions,South West,SWAYTHLING HOUSING SOCIETY LIMITED,12/11/2018,361,L,N/A,Grant
"Ministry of Housing, Communities and Local Government",Homes England,Help to Buy Additions,South West,SWAYTHLING HOUSING SOCIETY LIMITED,14/11/2018,361,L,N/A,Grant
"Ministry of Housing, Communities and Local Government",Homes England,Help to Buy Additions,South West,SWAYTHLING HOUSING SOCIETY LIMITED,13/11/2018,361,L,N/A,Grant
"Ministry of Housing, Communities and Local Government",Homes England,Help to Buy Additions,South West,SWAYTHLING HOUSING SOCIETY LIMITED,13/11/2018,361,L,N/A,Grant
"Ministry of Housing, Communities and Local Government",Homes England,Help to Buy Additions,South West,SWAYTHLING HOUSING SOCIETY LIMITED,14/11/2018,361,L,N/A,Grant
"Ministry of Housing, Communities and Local Government",Homes England,Help to Buy Additions,South West,SWAYTHLING HOUSING SOCIETY LIMITED,13/11/2018,361,L,N/A,Grant
"Ministry of Housing, Communities and Local Government",Homes England,Help to Buy Additions,South West,SWAYTHLING HOUSING SOCIETY LIMITED,13/11/2018,361,L,N/A,Grant
"Ministry of Housing, Communities and Local Government",Homes England,Help to Buy Additions,South West,SWAYTHLING HOUSING SOCIETY LIMITED,13/11/2018,361,L,N/A,Grant
"Ministry of Housing, Communities and Local Government",Homes England,Help to Buy Additions,South West,SWAYTHLING HOUSING SOCIETY LIMITED,13/11/2018,361,L,N/A,Grant
"Ministry of Housing, Communities and Local Government",Homes England,Help to Buy Additions,South West,SWAYTHLING HOUSING SOCIETY LIMITED,13/11/2018,361,L,N/A,Grant
"Ministry of Housing, Communities and Local Government",Homes England,Help to Buy Additions,South West,SWAYTHLING HOUSING SOCIETY LIMITED,14/11/2018,361,L,N/A,Grant
"Ministry of Housing, Communities and Local Government",Homes England,Help to Buy Additions,South West,SWAYTHLING HOUSING SOCIETY LIMITED,13/11/2018,361,L,N/A,Grant
"Ministry of Housing, Communities and Local Government",Homes England,Help to Buy Additions,South West,SWAYTHLING HOUSING SOCIETY LIMITED,14/11/2018,361,L,N/A,Grant
"Ministry of Housing, Communities and Local Government",Homes England,Help to Buy Additions,South West,SWAYTHLING HOUSING SOCIETY LIMITED,14/11/2018,361,L,N/A,Grant
"Ministry of Housing, Communities and Local Government",Homes England,Help to Buy Additions,South West,SWAYTHLING HOUSING SOCIETY LIMITED,14/11/2018,361,L,N/A,Grant
"Ministry of Housing, Communities and Local Government",Homes England,Help to Buy Additions,South West,SWAYTHLING HOUSING SOCIETY LIMITED,14/11/2018,361,L,N/A,Grant
"Ministry of Housing, Communities and Local Government",Homes England,Help to Buy Additions,South West,SWAYTHLING HOUSING SOCIETY LIMITED,13/11/2018,361,L,N/A,Grant
"Ministry of Housing, Communities and Local Government",Homes England,Help to Buy Additions,South West,SWAYTHLING HOUSING SOCIETY LIMITED,14/11/2018,361,L,N/A,Grant
"Ministry of Housing, Communities and Local Government",Homes England,Help to Buy Additions,South West,SWAYTHLING HOUSING SOCIETY LIMITED,14/11/2018,361,L,N/A,Grant
"Ministry of Housing, Communities and Local Government",Homes England,Help to Buy Additions,South West,SWAYTHLING HOUSING SOCIETY LIMITED,14/11/2018,361,L,N/A,Grant
"Ministry of Housing, Communities and Local Government",Homes England,Help to Buy Additions,South West,SWAYTHLING HOUSING SOCIETY LIMITED,13/11/2018,361,L,N/A,Grant
"Ministry of Housing, Communities and Local Government",Homes England,Help to Buy Additions,South West,SWAYTHLING HOUSING SOCIETY LIMITED,14/11/2018,361,L,N/A,Grant
"Ministry of Housing, Communities and Local Government",Homes England,Help to Buy Additions,South West,SWAYTHLING HOUSING SOCIETY LIMITED,13/11/2018,361,L,N/A,Grant
"Ministry of Housing, Communities and Local Government",Homes England,Help to Buy Additions,South West,SWAYTHLING HOUSING SOCIETY LIMITED,13/11/2018,361,L,N/A,Grant
"Ministry of Housing, Communities and Local Government",Homes England,Help to Buy Additions,South West,SWAYTHLING HOUSING SOCIETY LIMITED,14/11/2018,361,L,N/A,Grant
"Ministry of Housing, Communities and Local Government",Homes England,Help to Buy Additions,South West,SWAYTHLING HOUSING SOCIETY LIMITED,13/11/2018,361,L,N/A,Grant
"Ministry of Housing, Communities and Local Government",Homes England,Help to Buy Additions,South West,SWAYTHLING HOUSING SOCIETY LIMITED,13/11/2018,361,L,N/A,Grant
"Ministry of Housing, Communities and Local Government",Homes England,Help to Buy Additions,South West,SWAYTHLING HOUSING SOCIETY LIMITED,13/11/2018,361,L,N/A,Grant
"Ministry of Housing, Communities and Local Government",Homes England,Help to Buy Additions,South West,SWAYTHLING HOUSING SOCIETY LIMITED,14/11/2018,361,L,N/A,Grant
"Ministry of Housing, Communities and Local Government",Homes England,Help to Buy Additions,South West,SWAYTHLING HOUSING SOCIETY LIMITED,13/11/2018,361,L,N/A,Grant
"Ministry of Housing, Communities and Local Government",Homes England,Help to Buy Additions,South West,SWAYTHLING HOUSING SOCIETY LIMITED,14/11/2018,361,L,N/A,Grant
"Ministry of Housing, Communities and Local Government",Homes England,Help to Buy Additions,South West,SWAYTHLING HOUSING SOCIETY LIMITED,13/11/2018,361,L,N/A,Grant
"Ministry of Housing, Communities and Local Government",Homes England,Help to Buy Additions,South West,SWAYTHLING HOUSING SOCIETY LIMITED,13/11/2018,361,L,N/A,Grant
"Ministry of Housing, Communities and Local Government",Homes England,Help to Buy Additions,South West,SWAYTHLING HOUSING SOCIETY LIMITED,13/11/2018,361,L,N/A,Grant
"Ministry of Housing, Communities and Local Government",Homes England,Help to Buy Additions,South West,SWAYTHLING HOUSING SOCIETY LIMITED,13/11/2018,361,L,N/A,Grant
"Ministry of Housing, Communities and Local Government",Homes England,Help to Buy Additions,South West,SWAYTHLING HOUSING SOCIETY LIMITED,13/11/2018,361,L,N/A,Grant
"Ministry of Housing, Communities and Local Government",Homes England,Help to Buy Additions,South West,SWAYTHLING HOUSING SOCIETY LIMITED,13/11/2018,361,L,N/A,Grant
"Ministry of Housing, Communities and Local Government",Homes England,Help to Buy Additions,South West,SWAYTHLING HOUSING SOCIETY LIMITED,13/11/2018,361,L,N/A,Grant
"Ministry of Housing, Communities and Local Government",Homes England,Help to Buy Additions,South West,SWAYTHLING HOUSING SOCIETY LIMITED,13/11/2018,361,L,N/A,Grant
"Ministry of Housing, Communities and Local Government",Homes England,Help to Buy Additions,South West,SWAYTHLING HOUSING SOCIETY LIMITED,14/11/2018,361,L,N/A,Grant
"Ministry of Housing, Communities and Local Government",Homes England,Help to Buy Additions,South West,SWAYTHLING HOUSING SOCIETY LIMITED,14/11/2018,361,L,N/A,Grant
"Ministry of Housing, Communities and Local Government",Homes England,Help to Buy Additions,South West,SWAYTHLING HOUSING SOCIETY LIMITED,13/11/2018,361,L,N/A,Grant
"Ministry of Housing, Communities and Local Government",Homes England,Help to Buy Additions,South West,SWAYTHLING HOUSING SOCIETY LIMITED,13/11/2018,361,L,N/A,Grant
"Ministry of Housing, Communities and Local Government",Homes England,Help to Buy Additions,South West,SWAYTHLING HOUSING SOCIETY LIMITED,13/11/2018,361,L,N/A,Grant
"Ministry of Housing, Communities and Local Government",Homes England,Help to Buy Additions,South West,SWAYTHLING HOUSING SOCIETY LIMITED,14/11/2018,361,L,N/A,Grant
"Ministry of Housing, Communities and Local Government",Homes England,Help to Buy Additions,South West,SWAYTHLING HOUSING SOCIETY LIMITED,14/11/2018,361,L,N/A,Grant
"Ministry of Housing, Communities and Local Government",Homes England,Help to Buy Additions,South West,SWAYTHLING HOUSING SOCIETY LIMITED,13/11/2018,361,L,N/A,Grant
"Ministry of Housing, Communities and Local Government",Homes England,Help to Buy Additions,South West,SWAYTHLING HOUSING SOCIETY LIMITED,14/11/2018,361,L,N/A,Grant
"Ministry of Housing, Communities and Local Government",Homes England,Help to Buy Additions,South West,SWAYTHLING HOUSING SOCIETY LIMITED,13/11/2018,361,L,N/A,Grant
"Ministry of Housing, Communities and Local Government",Homes England,Help to Buy Additions,South West,SWAYTHLING HOUSING SOCIETY LIMITED,13/11/2018,361,L,N/A,Grant
"Ministry of Housing, Communities and Local Government",Homes England,Help to Buy Additions,South West,SWAYTHLING HOUSING SOCIETY LIMITED,13/11/2018,361,L,N/A,Grant
"Ministry of Housing, Communities and Local Government",Homes England,Help to Buy Additions,South West,SWAYTHLING HOUSING SOCIETY LIMITED,13/11/2018,361,L,N/A,Grant
"Ministry of Housing, Communities and Local Government",Homes England,Help to Buy Additions,South West,SWAYTHLING HOUSING SOCIETY LIMITED,13/11/2018,361,L,N/A,Grant
"Ministry of Housing, Communities and Local Government",Homes England,Help to Buy Additions,South West,SWAYTHLING HOUSING SOCIETY LIMITED,13/11/2018,361,L,N/A,Grant
"Ministry of Housing, Communities and Local Government",Homes England,Help to Buy Additions,South West,SWAYTHLING HOUSING SOCIETY LIMITED,15/11/2018,361,L,N/A,Grant
"Ministry of Housing, Communities and Local Government",Homes England,Help to Buy Additions,South West,SWAYTHLING HOUSING SOCIETY LIMITED,15/11/2018,361,L,N/A,Grant
"Ministry of Housing, Communities and Local Government",Homes England,Help to Buy Additions,South West,SWAYTHLING HOUSING SOCIETY LIMITED,15/11/2018,361,L,N/A,Grant
"Ministry of Housing, Communities and Local Government",Homes England,Help to Buy Additions,South West,SWAYTHLING HOUSING SOCIETY LIMITED,15/11/2018,361,L,N/A,Grant
"Ministry of Housing, Communities and Local Government",Homes England,Help to Buy Additions,South West,SWAYTHLING HOUSING SOCIETY LIMITED,15/11/2018,361,L,N/A,Grant
"Ministry of Housing, Communities and Local Government",Homes England,Help to Buy Additions,South West,SWAYTHLING HOUSING SOCIETY LIMITED,15/11/2018,361,L,N/A,Grant
"Ministry of Housing, Communities and Local Government",Homes England,Help to Buy Additions,South West,SWAYTHLING HOUSING SOCIETY LIMITED,15/11/2018,361,L,N/A,Grant
"Ministry of Housing, Communities and Local Government",Homes England,Help to Buy Additions,South West,SWAYTHLING HOUSING SOCIETY LIMITED,15/11/2018,361,L,N/A,Grant
"Ministry of Housing, Communities and Local Government",Homes England,Help to Buy Additions,South West,SWAYTHLING HOUSING SOCIETY LIMITED,15/11/2018,361,L,N/A,Grant
"Ministry of Housing, Communities and Local Government",Homes England,Help to Buy Additions,South West,SWAYTHLING HOUSING SOCIETY LIMITED,15/11/2018,361,L,N/A,Grant
"Ministry of Housing, Communities and Local Government",Homes England,Help to Buy Additions,South West,SWAYTHLING HOUSING SOCIETY LIMITED,15/11/2018,361,L,N/A,Grant
"Ministry of Housing, Communities and Local Government",Homes England,Help to Buy Additions,South West,SWAYTHLING HOUSING SOCIETY LIMITED,15/11/2018,361,L,N/A,Grant
"Ministry of Housing, Communities and Local Government",Homes England,Help to Buy Additions,South West,SWAYTHLING HOUSING SOCIETY LIMITED,15/11/2018,361,L,N/A,Grant
"Ministry of Housing, Communities and Local Government",Homes England,Help to Buy Additions,South West,SWAYTHLING HOUSING SOCIETY LIMITED,15/11/2018,361,L,N/A,Grant
"Ministry of Housing, Communities and Local Government",Homes England,Help to Buy Additions,South West,SWAYTHLING HOUSING SOCIETY LIMITED,15/11/2018,361,L,N/A,Grant
"Ministry of Housing, Communities and Local Government",Homes England,Help to Buy Additions,South West,SWAYTHLING HOUSING SOCIETY LIMITED,15/11/2018,361,L,N/A,Grant
"Ministry of Housing, Communities and Local Government",Homes England,Help to Buy Additions,South West,SWAYTHLING HOUSING SOCIETY LIMITED,15/11/2018,361,L,N/A,Grant
"Ministry of Housing, Communities and Local Government",Homes England,Help to Buy Additions,South West,SWAYTHLING HOUSING SOCIETY LIMITED,15/11/2018,361,L,N/A,Grant
"Ministry of Housing, Communities and Local Government",Homes England,Help to Buy Additions,South West,SWAYTHLING HOUSING SOCIETY LIMITED,16/11/2018,361,L,N/A,Grant
"Ministry of Housing, Communities and Local Government",Homes England,Help to Buy Additions,South West,SWAYTHLING HOUSING SOCIETY LIMITED,16/11/2018,361,L,N/A,Grant
"Ministry of Housing, Communities and Local Government",Homes England,Help to Buy Additions,South West,SWAYTHLING HOUSING SOCIETY LIMITED,16/11/2018,361,L,N/A,Grant
"Ministry of Housing, Communities and Local Government",Homes England,Help to Buy Additions,South West,SWAYTHLING HOUSING SOCIETY LIMITED,16/11/2018,361,L,N/A,Grant
"Ministry of Housing, Communities and Local Government",Homes England,Help to Buy Additions,South West,SWAYTHLING HOUSING SOCIETY LIMITED,16/11/2018,361,L,N/A,Grant
"Ministry of Housing, Communities and Local Government",Homes England,Help to Buy Additions,South West,SWAYTHLING HOUSING SOCIETY LIMITED,16/11/2018,361,L,N/A,Grant
"Ministry of Housing, Communities and Local Government",Homes England,Help to Buy Additions,South West,SWAYTHLING HOUSING SOCIETY LIMITED,16/11/2018,361,L,N/A,Grant
"Ministry of Housing, Communities and Local Government",Homes England,Help to Buy Additions,South West,SWAYTHLING HOUSING SOCIETY LIMITED,16/11/2018,361,L,N/A,Grant
"Ministry of Housing, Communities and Local Government",Homes England,Help to Buy Additions,South West,SWAYTHLING HOUSING SOCIETY LIMITED,16/11/2018,361,L,N/A,Grant
"Ministry of Housing, Communities and Local Government",Homes England,Help to Buy Additions,South West,SWAYTHLING HOUSING SOCIETY LIMITED,16/11/2018,361,L,N/A,Grant
"Ministry of Housing, Communities and Local Government",Homes England,Help to Buy Additions,South West,SWAYTHLING HOUSING SOCIETY LIMITED,16/11/2018,361,L,N/A,Grant
"Ministry of Housing, Communities and Local Government",Homes England,Help to Buy Additions,South West,SWAYTHLING HOUSING SOCIETY LIMITED,16/11/2018,361,L,N/A,Grant
"Ministry of Housing, Communities and Local Government",Homes England,Help to Buy Additions,South West,SWAYTHLING HOUSING SOCIETY LIMITED,16/11/2018,361,L,N/A,Grant
"Ministry of Housing, Communities and Local Government",Homes England,Help to Buy Additions,South West,SWAYTHLING HOUSING SOCIETY LIMITED,16/11/2018,361,L,N/A,Grant
"Ministry of Housing, Communities and Local Government",Homes England,Help to Buy Additions,South West,SWAYTHLING HOUSING SOCIETY LIMITED,16/11/2018,361,L,N/A,Grant
"Ministry of Housing, Communities and Local Government",Homes England,Help to Buy Additions,South West,SWAYTHLING HOUSING SOCIETY LIMITED,16/11/2018,361,L,N/A,Grant
"Ministry of Housing, Communities and Local Government",Homes England,Help to Buy Additions,South West,SWAYTHLING HOUSING SOCIETY LIMITED,16/11/2018,361,L,N/A,Grant
"Ministry of Housing, Communities and Local Government",Homes England,Help to Buy Additions,South West,SWAYTHLING HOUSING SOCIETY LIMITED,16/11/2018,361,L,N/A,Grant
"Ministry of Housing, Communities and Local Government",Homes England,Help to Buy Additions,South West,SWAYTHLING HOUSING SOCIETY LIMITED,16/11/2018,361,L,N/A,Grant
"Ministry of Housing, Communities and Local Government",Homes England,Help to Buy Additions,South West,SWAYTHLING HOUSING SOCIETY LIMITED,16/11/2018,361,L,N/A,Grant
"Ministry of Housing, Communities and Local Government",Homes England,Help to Buy Additions,South West,SWAYTHLING HOUSING SOCIETY LIMITED,16/11/2018,361,L,N/A,Grant
"Ministry of Housing, Communities and Local Government",Homes England,Help to Buy Additions,South West,SWAYTHLING HOUSING SOCIETY LIMITED,16/11/2018,361,L,N/A,Grant
"Ministry of Housing, Communities and Local Government",Homes England,Help to Buy Additions,South West,SWAYTHLING HOUSING SOCIETY LIMITED,16/11/2018,361,L,N/A,Grant
"Ministry of Housing, Communities and Local Government",Homes England,Help to Buy Additions,South West,SWAYTHLING HOUSING SOCIETY LIMITED,16/11/2018,361,L,N/A,Grant
"Ministry of Housing, Communities and Local Government",Homes England,Help to Buy Additions,South West,SWAYTHLING HOUSING SOCIETY LIMITED,16/11/2018,361,L,N/A,Grant
